Ref No,Fund Type,Dept,Cost Centre Description    ,Description    ,Creditor Name    ,GL Code Net Amount,Payment date        
2,Revenue,CAHD,Central - Commissioned Services,Permanent Residential,1 St Georges House,13333.52, 20-Oct-2020
3,Revenue,CAHD,CSC - Care Leavers Support Costs,Leaving Care,1625 Independent People,3343.00, 15-Oct-2020
4,Revenue,CAHD,CSC - Care Leavers Support Costs,Client Transport,1625 Independent People,1031.63, 06-Oct-2020
5,Revenue,CAHD,CSC - LAC Housing Support Grants,Grants to Voluntary Bodies,1625 Independent People,3343.00, 23-Oct-2020
6,Revenue,CAHD,Supporting People Programme,Grants to Voluntary Bodies,1625 Independent People,15167.00, 01-Oct-2020
7,Revenue,CAHD,Supporting People Programme,Grants to Voluntary Bodies,1625 Independent People,15167.00, 30-Oct-2020
8,Revenue,CAHD,CSC - Care Leavers Independent Living,Independent Living,16Pluscare Support Solutions,7919.34, 08-Oct-2020
9,Revenue,CAHD,South - Commissioned Services,Permanent Residential,2Nd Floor Building,5630.76, 20-Oct-2020
10,Revenue,CAHD,South - Commissioned Services,Permanent Residential,2Nd Floor Building,2806.12, 20-Oct-2020
11,Revenue,CAHD,Central - Commissioned Services,Other Small Contracts,3 Trees Community Support Ltd,5271.28, 07-Oct-2020
12,Revenue,CAHD,Central - Commissioned Services,Supported Living,3 Trees Community Support Ltd,4958.02, 07-Oct-2020
13,Revenue,CAHD,Central - Commissioned Services,Other Small Contracts,3 Trees Community Support Ltd,5115.41, 09-Oct-2020
14,Revenue,CAHD,Central - Commissioned Services,Supported Living,3 Trees Community Support Ltd,4947.37, 09-Oct-2020
15,Revenue,CAHD,Central - Commissioned Services,Other Small Contracts,3 Trees Community Support Ltd,5271.28, 22-Oct-2020
16,Revenue,CAHD,Central - Commissioned Services,Supported Living,3 Trees Community Support Ltd,4950.92, 22-Oct-2020
17,Revenue,CAHD,Central - Commissioned Services,Other Small Contracts,3 Trees Community Support Ltd,5135.33, 22-Oct-2020
18,Revenue,CAHD,Central - Commissioned Services,Supported Living,3 Trees Community Support Ltd,4795.49, 22-Oct-2020
19,Revenue,CAHD,South - Commissioned Services,Permanent Nursing,3Rd Floor  The Aspect,3593.88, 20-Oct-2020
20,Revenue,CAHD,North - Community based support,Permanent Nursing,3Rd Floor  The Aspect,3234.72, 20-Oct-2020
21,Revenue,CAHD,South - Commissioned Services,Permanent Nursing,3Rd Floor  The Aspect,2287.36, 20-Oct-2020
22,Revenue,CAHD,South - Commissioned Services,Permanent Residential,5Th Floor Harlech Court,17000.48, 20-Oct-2020
23,Revenue,CAHD,South - Commissioned Services,Permanent Residential,5Th Floor Harlech Court,10627.92, 20-Oct-2020
24,Revenue,CAHD,S28A cases,Permanent Residential,5Th Floor Harlech Court,11122.76, 20-Oct-2020
25,Revenue,CAHD,South - Commissioned Services,Permanent Residential,5Th Floor Harlech Court,11665.12, 20-Oct-2020
26,Revenue,CAHD,North - Community based support,Permanent Residential,5Th Floor Harlech Court,12498.56, 20-Oct-2020
27,Revenue,CAHD,North - Community based support,Permanent Residential,5Th Floor Harlech Court,10537.24, 20-Oct-2020
28,Revenue,CAHD,North - Community based support,Permanent Residential,5Th Floor Harlech Court,9071.12, 20-Oct-2020
29,Revenue,CAHD,EARLY YEARS DISABILITY  ACCES FUND,Preventative Assistance,Abacus Pre School @ Mangotsfield,615.00, 16-Oct-2020
30,Revenue,CAHD,CSC - Vinney Green Secure Unit,Service Contracts (Premises),Abbey Fire Protection Limited,1456.63, 07-Oct-2020
31,Revenue,CAHD,South - Commissioned Services,Permanent Nursing,Acacia House,2996.00, 20-Oct-2020
32,Revenue,CAHD,Jointly Funded H&SC Packages,Permanent Residential,Acorn Care Providers,2310.92, 20-Oct-2020
33,Revenue,CAHD,Section 117 Placements MH Younger,Permanent Residential,Acorn Care Providers,5481.28, 20-Oct-2020
34,Revenue,CAHD,North - S117,Permanent Residential,Acorn Care Providers,3978.00, 20-Oct-2020
35,Revenue,CAHD,Jointly Funded H&SC Packages,Permanent Residential,Acorn Care Providers,2142.00, 20-Oct-2020
36,Revenue,CAHD,MH Purchasing - Younger,Permanent Residential,Acorn Care Providers,6382.04, 20-Oct-2020
37,Revenue,CAHD,Jointly Funded H&SC Packages,Permanent Residential,Acorn Care Providers,3436.48, 20-Oct-2020
38,Revenue,CAHD,MH Purchasing - Younger,Permanent Residential,Acorn Care Providers,6266.88, 20-Oct-2020
39,Revenue,CAHD,Training Budget - Children`s Social Serv,Training Expenses,Acorn Health & Safety Limited,449.00, 08-Oct-2020
40,Revenue,CAHD,Training - Adult Services,Training Expenses,Acorn Health & Safety Limited,477.00, 12-Oct-2020
41,Revenue,CAHD,Training - Adult Services,Training Expenses,Acorn Health & Safety Limited,477.00, 29-Oct-2020
42,Revenue,CAHD,Training Budget - Children`s Social Serv,Training Expenses,Acorn Health & Safety Limited,449.00, 27-Oct-2020
43,Revenue,CAHD,CSC - Agency Fostering,Foster Parent Allowances,Action for Children,5459.23, 16-Oct-2020
44,Revenue,CAHD,CSC - Agency Fostering,Foster Parent Allowances,Action for Children,3542.10, 16-Oct-2020
45,Revenue,CAHD,CSC - Agency Fostering,Foster Parent Allowances,Action for Children,3542.10, 16-Oct-2020
46,Revenue,CAHD,South - Commissioned Services,Supported Living,Action on Hearing Loss DO NOT USE,765.52, 26-Oct-2020
47,Revenue,CAHD,Research & Conferences,Membership Fees,ADASS,2253.00, 22-Oct-2020
48,Revenue,CAHD,South - Commissioned Services,Permanent Nursing,Administration And Revenue Centre,1222.98, 20-Oct-2020
49,Revenue,CAHD,South - Commissioned Services,Fees & Charges Income - General,Administration And Revenue Centre,1222.98, 20-Oct-2020
50,Revenue,CAHD,South - Commissioned Services,Permanent Nursing,Administration And Revenue Centre,11006.82, 20-Oct-2020
51,Revenue,CAHD,South - Commissioned Services,Permanent Nursing,Administration And Revenue Centre,2789.80, 20-Oct-2020
52,Revenue,CAHD,South Glos Users in South Glos Homes,Permanent Nursing,Administration And Revenue Centre,735.68, 20-Oct-2020
53,Revenue,CAHD,South - Commissioned Services,Permanent Nursing,Administration And Revenue Centre,2445.96, 20-Oct-2020
54,Revenue,CAHD,South - Commissioned Services,Permanent Nursing,Administration And Revenue Centre,2445.96, 20-Oct-2020
55,Revenue,CAHD,South Glos Users in South Glos Homes,Permanent Nursing,Administration And Revenue Centre,735.68, 20-Oct-2020
56,Revenue,CAHD,South - Commissioned Services,Permanent Residential,Administration And Revenue Centre,2511.80, 20-Oct-2020
57,Revenue,CAHD,South Glos Users in South Glos Homes,Permanent Nursing,Administration And Revenue Centre,735.68, 20-Oct-2020
58,Revenue,CAHD,South - Commissioned Services,Permanent Nursing,Administration And Revenue Centre,2949.60, 20-Oct-2020
59,Revenue,CAHD,South Glos Users in South Glos Homes,Permanent Nursing,Administration And Revenue Centre,735.68, 20-Oct-2020
60,Revenue,CAHD,South Glos Users in South Glos Homes,Permanent Nursing,Administration And Revenue Centre,735.68, 20-Oct-2020
61,Revenue,CAHD,South Glos Users in South Glos Homes,Permanent Nursing,Administration And Revenue Centre,735.68, 20-Oct-2020
62,Revenue,CAHD,South Glos Users in South Glos Homes,Permanent Nursing,Administration And Revenue Centre,735.68, 20-Oct-2020
63,Revenue,CAHD,South - Commissioned Services,Permanent Nursing,Administration And Revenue Centre,2949.60, 20-Oct-2020
64,Revenue,CAHD,South Glos Users in South Glos Homes,Permanent Nursing,Administration And Revenue Centre,735.68, 20-Oct-2020
65,Revenue,CAHD,South - Commissioned Services,Permanent Residential,Administration And Revenue Centre,3203.04, 20-Oct-2020
66,Revenue,CAHD,South - Commissioned Services,Permanent Residential,Administration And Revenue Centre,3000.00, 20-Oct-2020
67,Revenue,CAHD,South Glos Users in South Glos Homes,Permanent Nursing,Administration And Revenue Centre,735.68, 20-Oct-2020
68,Revenue,CAHD,South Glos Users in South Glos Homes,Permanent Nursing,Administration And Revenue Centre,735.68, 20-Oct-2020
69,Revenue,CAHD,South - Commissioned Services,Permanent Residential,Administration And Revenue Centre,3366.00, 20-Oct-2020
70,Revenue,CAHD,South - Commissioned Services,Permanent Nursing,Administration And Revenue Centre,2924.56, 20-Oct-2020
71,Revenue,CAHD,South - Commissioned Services,Permanent Nursing,Administration And Revenue Centre,3300.00, 20-Oct-2020
72,Revenue,CAHD,South - Commissioned Services,Permanent Nursing,Administration And Revenue Centre,2511.80, 20-Oct-2020
73,Revenue,CAHD,South Glos Users in South Glos Homes,Permanent Nursing,Administration And Revenue Centre,735.68, 20-Oct-2020
74,Revenue,CAHD,South - Commissioned Services,Permanent Nursing,Administration And Revenue Centre,4891.92, 20-Oct-2020
75,Revenue,CAHD,South - Commissioned Services,Permanent Nursing,Administration And Revenue Centre,2445.96, 20-Oct-2020
76,Revenue,CAHD,South Glos Users in South Glos Homes,Permanent Nursing,Administration And Revenue Centre,735.68, 20-Oct-2020
77,Revenue,CAHD,South - Commissioned Services,Fees & Charges Income - General,Administration And Revenue Centre,1250.70, 20-Oct-2020
78,Revenue,CAHD,South - Commissioned Services,Permanent Nursing,Administration And Revenue Centre,2445.96, 20-Oct-2020
79,Revenue,CAHD,South Glos Users in South Glos Homes,Permanent Nursing,Administration And Revenue Centre,735.68, 20-Oct-2020
80,Revenue,CAHD,South - Commissioned Services,Permanent Residential,Administration And Revenue Centre,3190.56, 20-Oct-2020
81,Revenue,CAHD,South - Commissioned Services,Permanent Nursing,Administration And Revenue Centre,2445.96, 20-Oct-2020
82,Revenue,CAHD,South Glos Users in South Glos Homes,Permanent Nursing,Administration And Revenue Centre,735.68, 20-Oct-2020
83,Revenue,CAHD,South - Commissioned Services,Permanent Residential,Administration And Revenue Centre,2949.60, 20-Oct-2020
84,Revenue,CAHD,South Glos Users in South Glos Homes,Permanent Nursing,Administration And Revenue Centre,735.68, 20-Oct-2020
85,Revenue,CAHD,North - Community based support,Permanent Nursing,Administration And Revenue Centre,2367.00, 20-Oct-2020
86,Revenue,CAHD,South - Commissioned Services,Other Small Contracts,Advantedge Commercial Finance Limited,680.40, 12-Oct-2020
87,Revenue,CAHD,South - Commissioned Services,Other Small Contracts,Advantedge Commercial Finance Limited,544.32, 09-Oct-2020
88,Revenue,CAHD,South - Commissioned Services,Other Small Contracts,Advantedge Commercial Finance Limited,816.48, 12-Oct-2020
89,Revenue,CAHD,South - Commissioned Services,Other Small Contracts,Advantedge Commercial Finance Limited,685.26, 12-Oct-2020
90,Revenue,CAHD,South - Commissioned Services,Other Small Contracts,Advantedge Commercial Finance Limited,2449.44, 12-Oct-2020
91,Revenue,CAHD,South - Commissioned Services,Other Small Contracts,Advantedge Commercial Finance Limited,544.32, 09-Oct-2020
92,Revenue,CAHD,South - Commissioned Services,Other Small Contracts,Advantedge Commercial Finance Limited,1355.94, 12-Oct-2020
93,Revenue,CAHD,South - Commissioned Services,Day Care / Social Activities,Age Concern,634.08, 20-Oct-2020
94,Revenue,CAHD,Central - Commissioned Services,Day Care / Social Activities,Age Concern,546.72, 20-Oct-2020
95,Revenue,CAHD,North - Community based support,Day Care / Social Activities,Age Concern,734.40, 20-Oct-2020
96,Revenue,CAHD,Central - Commissioned Services,Day Care / Social Activities,Age Concern,546.72, 20-Oct-2020
97,Revenue,CAHD,Central - Commissioned Services,Day Care / Social Activities,Age Concern,634.08, 20-Oct-2020
98,Revenue,CAHD,Mental Health and Emotional Wellbeing,Grants to Voluntary Bodies,Age UK South Gloucestershire,13725.00, 01-Oct-2020
99,Revenue,CAHD,South - Commissioned Services,Other Small Contracts,Agincare UK Limited,1531.11, 09-Oct-2020
100,Revenue,CAHD,Younger MH non-res purchasing,Other Small Contracts,Agincare UK Limited,38.64, 09-Oct-2020
101,Revenue,CAHD,South - Commissioned Services,Other Small Contracts,Agincare UK Limited,1574.58, 09-Oct-2020
102,Revenue,CAHD,Younger MH non-res purchasing,Other Small Contracts,Agincare UK Limited,77.28, 09-Oct-2020
103,Revenue,CAHD,South - Commissioned Services,Other Small Contracts,Agincare UK Limited,1535.94, 22-Oct-2020
104,Revenue,CAHD,Younger MH non-res purchasing,Other Small Contracts,Agincare UK Limited,77.28, 22-Oct-2020
105,Revenue,CAHD,South - Commissioned Services,Other Small Contracts,Agincare UK Limited,1502.13, 26-Oct-2020
106,Revenue,CAHD,Younger MH non-res purchasing,Other Small Contracts,Agincare UK Limited,77.28, 26-Oct-2020
107,Revenue,CAHD,Extra Care Housing,Private & Voluntary Home Care,Agincare UK Limited,24391.34, 01-Oct-2020
108,Revenue,CAHD,Extra Care Housing,Private & Voluntary Home Care,Agincare UK Limited,24391.34, 30-Oct-2020
109,Revenue,CAHD,Extra Care Housing,Private & Voluntary Home Care,Agincare UK Limited,11734.93, 01-Oct-2020
110,Revenue,CAHD,Extra Care Housing,Private & Voluntary Home Care,Agincare UK Limited,11734.93, 30-Oct-2020
111,Revenue,CAHD,Extra Care Housing,Private & Voluntary Home Care,Agincare UK Limited,29078.70, 02-Oct-2020
112,Revenue,CAHD,Prison Assessments & Costs,Other Supplies & Services,Agincare UK Limited,2580.00, 07-Oct-2020
113,Revenue,CAHD,Central - Commissioned Services,Permanent Residential,Alexander House,12155.16, 20-Oct-2020
114,Revenue,CAHD,CSC - Adoption Support Fund,Post Adoption,Individual,675.00, 06-Oct-2020
115,Revenue,CAHD,CSC - Adoption Support Fund,Post Adoption,Individual,746.00, 20-Oct-2020
116,Revenue,CAHD,Covid 19 -Adult Social Care,Other Small Contracts,AliMo Care Ltd,9.56, 07-Oct-2020
117,Revenue,CAHD,South - Commissioned Services,Other Small Contracts,AliMo Care Ltd,927.32, 07-Oct-2020
118,Revenue,CAHD,North - Community based support,Other Small Contracts,AliMo Care Ltd,253.34, 07-Oct-2020
119,Revenue,CAHD,Covid 19 -Adult Social Care,Other Small Contracts,AliMo Care Ltd,9.56, 15-Oct-2020
120,Revenue,CAHD,South - Commissioned Services,Other Small Contracts,AliMo Care Ltd,1003.80, 15-Oct-2020
121,Revenue,CAHD,North - Community based support,Other Small Contracts,AliMo Care Ltd,229.44, 15-Oct-2020
122,Revenue,CAHD,Covid 19 -Adult Social Care,Other Small Contracts,AliMo Care Ltd,4.78, 07-Oct-2020
123,Revenue,CAHD,South - Commissioned Services,Other Small Contracts,AliMo Care Ltd,960.78, 07-Oct-2020
124,Revenue,CAHD,North - Community based support,Other Small Contracts,AliMo Care Ltd,229.44, 07-Oct-2020
125,Revenue,CAHD,Covid 19 -Adult Social Care,Other Small Contracts,AliMo Care Ltd,9.56, 22-Oct-2020
126,Revenue,CAHD,South - Commissioned Services,Other Small Contracts,AliMo Care Ltd,879.52, 22-Oct-2020
127,Revenue,CAHD,North - Community based support,Other Small Contracts,AliMo Care Ltd,239.00, 22-Oct-2020
128,Revenue,CAHD,Covid 19 -Adult Social Care,Other Small Contracts,AliMo Care Ltd,9.56, 14-Oct-2020
129,Revenue,CAHD,South - Commissioned Services,Other Small Contracts,AliMo Care Ltd,912.98, 14-Oct-2020
130,Revenue,CAHD,North - Community based support,Other Small Contracts,AliMo Care Ltd,215.10, 14-Oct-2020
131,Revenue,CAHD,Covid 19 -Adult Social Care,Other Small Contracts,AliMo Care Ltd,9.56, 14-Oct-2020
132,Revenue,CAHD,South - Commissioned Services,Other Small Contracts,AliMo Care Ltd,898.64, 14-Oct-2020
133,Revenue,CAHD,North - Community based support,Other Small Contracts,AliMo Care Ltd,124.28, 14-Oct-2020
134,Revenue,CAHD,Covid 19 -Adult Social Care,Other Small Contracts,AliMo Care Ltd,4.78, 21-Oct-2020
135,Revenue,CAHD,South - Commissioned Services,Other Small Contracts,AliMo Care Ltd,860.40, 21-Oct-2020
136,Revenue,CAHD,North - Community based support,Other Small Contracts,AliMo Care Ltd,114.72, 21-Oct-2020
137,Revenue,CAHD,North - Community based support,Permanent Nursing,Allambie Court,2320.44, 20-Oct-2020
138,Revenue,CAHD,Central - Commissioned Services,Permanent Residential,Alvony House Residential Care Home,3000.00, 20-Oct-2020
139,Revenue,CAHD,Mental Health and Emotional Wellbeing,Grants to Voluntary Bodies,Alzheimers Society,11142.75, 01-Oct-2020
140,Revenue,CAHD,CSC - Vinney Green Secure Unit,R & M by Departments,Amari Plastics PLC,456.50, 23-Oct-2020
141,Revenue,CAHD,CSC - Residential Placements,Permanent Residential,Amberleigh Care Ltd,16877.14, 01-Oct-2020
142,Revenue,CAHD,CSC - Residential Placements,Permanent Residential,Amberleigh Care Ltd,16877.14, 01-Oct-2020
143,Revenue,CAHD,CSC - Residential Placements,Permanent Residential,Amberleigh Care Ltd,17439.71, 26-Oct-2020
144,Revenue,CAHD,CSC - Residential Placements,Permanent Residential,Amberleigh Care Ltd,17439.71, 26-Oct-2020
145,Revenue,CAHD,North - Community based support,Permanent Nursing,Amerind Grove Nursing Home,2706.32, 20-Oct-2020
146,Revenue,CAHD,CSC - Agency Fostering,Foster Parent Allowances,Amicus Foster Care Ltd,4714.60, 05-Oct-2020
147,Revenue,CAHD,CSC - Agency Fostering,Foster Parent Allowances,Amicus Foster Care Ltd,4989.60, 05-Oct-2020
148,Revenue,CAHD,CSC - Agency Fostering,Foster Parent Allowances,Amicus Foster Care Ltd,4721.61, 02-Oct-2020
149,Revenue,CAHD,CSC - Agency Fostering,Foster Parent Allowances,Amicus Foster Care Ltd,4598.00, 02-Oct-2020
150,Revenue,CAHD,Early Years High Needs Support,Other Private Contractors,Anchor Day Nursery Ltd,910.07, 27-Oct-2020
151,Revenue,CAHD,Supporting People Programme,Grants to Voluntary Bodies,Anchor Hanover Group,1039.00, 01-Oct-2020
152,Revenue,CAHD,Supporting People Programme,Grants to Voluntary Bodies,Anchor Hanover Group,1039.00, 30-Oct-2020
153,Revenue,CAHD,Supporting People Programme,Grants to Voluntary Bodies,Anchor Hanover Group,847.00, 01-Oct-2020
154,Revenue,CAHD,Supporting People Programme,Grants to Voluntary Bodies,Anchor Hanover Group,847.00, 30-Oct-2020
155,Revenue,CAHD,CSC - Legal Fees,Legal Fees,Individual,790.00, 13-Oct-2020
156,Revenue,CAHD,Younger MH non-res purchasing,Supported Living,Arch Care Rehab Services Ltd,5695.60, 26-Oct-2020
157,Revenue,CAHD,Younger MH non-res purchasing,Supported Living,Archcare Rehab Limited,1957.40, 20-Oct-2020
158,Revenue,CAHD,North - Community based support,Permanent Nursing,Argentum Lodge,4000.00, 20-Oct-2020
159,Revenue,CAHD,South - Commissioned Services,Permanent Residential,Ash View House,5529.44, 20-Oct-2020
160,Revenue,CAHD,Jointly Funded H&SC Packages,Permanent Residential,Ash View House,1133.64, 20-Oct-2020
161,Revenue,CAHD,S117 Placements PCT,Permanent Residential,Ash View House,7707.44, 20-Oct-2020
162,Revenue,CAHD,North - Community based support,Permanent Residential,Ash View House,7099.52, 20-Oct-2020
163,Revenue,CAHD,North - Community based support,Permanent Residential,Ash View House,7120.00, 20-Oct-2020
164,Revenue,CAHD,Section 117 Placements MH Younger,Permanent Residential,Ash View House,5022.60, 20-Oct-2020
165,Revenue,CAHD,Jointly Funded H&SC Packages,Permanent Residential,Ash View House,2152.60, 20-Oct-2020
166,Revenue,CAHD,South - S117,Permanent Residential,Ash View House,6826.64, 20-Oct-2020
167,Revenue,CAHD,South - Commissioned Services,Permanent Residential,Ash View House,6747.84, 20-Oct-2020
168,Revenue,CAHD,CSC - Legal Fees,Legal Fees,Individual,800.00, 13-Oct-2020
169,Revenue,CAHD,CSC - Legal Fees,Legal Fees,Individual,750.00, 13-Oct-2020
170,Revenue,CAHD,Drug and Alcohol Programme,Rent,Ashville Asset Management Limited,1213.70, 02-Oct-2020
171,Revenue,CAHD,Drug and Alcohol Programme,Rent,Ashville Asset Management Limited,4550.00, 02-Oct-2020
172,Revenue,CAHD,North - Community based support,Permanent Residential,Aspects 2 Limited,7231.88, 20-Oct-2020
173,Revenue,CAHD,Supporting People Programme,Grants to Voluntary Bodies,Aspects and Milestones Trust,3441.00, 01-Oct-2020
174,Revenue,CAHD,Supporting People Programme,Grants to Voluntary Bodies,Aspects and Milestones Trust,1725.00, 01-Oct-2020
175,Revenue,CAHD,Supporting People Programme,Grants to Voluntary Bodies,Aspects and Milestones Trust,3441.00, 30-Oct-2020
176,Revenue,CAHD,Supporting People Programme,Grants to Voluntary Bodies,Aspects and Milestones Trust,1725.00, 30-Oct-2020
177,Revenue,CAHD,CSC - Care Leavers Independent Living,Adults - Family Support,Aspirations Support Bristol Limited,15419.68, 08-Oct-2020
178,Revenue,CAHD,South - Commissioned Services,Adults - Family Support,Ategi Limited,1603.68, 29-Oct-2020
179,Revenue,CAHD,South - Commissioned Services,Adults - Family Support,Ategi Limited,1774.20, 29-Oct-2020
180,Revenue,CAHD,South - Commissioned Services,Adults - Family Support,Ategi Limited,16210.88, 14-Oct-2020
181,Revenue,CAHD,South - Commissioned Services,Adults - Family Support,Ategi Limited,2176.53, 23-Oct-2020
182,Revenue,CAHD,CSC - Vinney Green Secure Unit,Mechanical & Electrical Maintenance,Atus Systems Limited,845.36, 09-Oct-2020
183,Revenue,CAHD,South - Commissioned Services,Permanent Residential,Autism Specialised Care Homes,6506.88, 20-Oct-2020
184,Revenue,CAHD,CSC - Adoption Support Fund,Post Adoption,Avalon Thomas,702.00, 06-Oct-2020
185,Revenue,CAHD,CSC - LAC - Counselling & Therapy,Other Supplies & Services,Avon & Wiltshire Mental Health,5930.00, 30-Oct-2020
186,Revenue,CAHD,CSC - LAC - Counselling & Therapy,Other Supplies & Services,Avon & Wiltshire Mental Health,8895.00, 30-Oct-2020
187,Revenue,CAHD,CSC - LAC - Counselling & Therapy,Other Supplies & Services,Avon & Wiltshire Mental Health,15000.00, 26-Oct-2020
188,Revenue,CAHD,South - Commissioned Services,Permanent Nursing,Avon Lodge Care Centre,4341.36, 20-Oct-2020
189,Revenue,CAHD,South Glos Users in South Glos Homes,Permanent Nursing,Avon Lodge Care Centre,735.68, 20-Oct-2020
190,Revenue,CAHD,South Glos Users in South Glos Homes,Permanent Nursing,Avon Lodge Care Centre,735.68, 20-Oct-2020
191,Revenue,CAHD,South - Commissioned Services,Permanent Nursing,Avon Lodge Care Centre,4311.16, 20-Oct-2020
192,Revenue,CAHD,South Glos Users in South Glos Homes,Permanent Nursing,Avon Lodge Care Centre,735.68, 20-Oct-2020
193,Revenue,CAHD,South Glos Users in South Glos Homes,Permanent Nursing,Avon Lodge Care Centre,735.68, 20-Oct-2020
194,Revenue,CAHD,South - Commissioned Services,Permanent Nursing,Avon Lodge Care Centre,4537.76, 20-Oct-2020
195,Revenue,CAHD,South Glos Users in South Glos Homes,Permanent Nursing,Avon Lodge Care Centre,735.68, 20-Oct-2020
196,Revenue,CAHD,Central - Commissioned Services,Permanent Nursing,Avon Lodge Care Centre,4311.16, 20-Oct-2020
197,Revenue,CAHD,South Glos Users in South Glos Homes,Permanent Nursing,Avon Lodge Care Centre,735.68, 20-Oct-2020
198,Revenue,CAHD,South Glos Users in South Glos Homes,Permanent Nursing,Avon Lodge Care Centre,735.68, 20-Oct-2020
199,Revenue,CAHD,South Glos Users in South Glos Homes,Permanent Nursing,Avon Lodge Care Centre,735.68, 20-Oct-2020
200,Revenue,CAHD,South - Commissioned Services,Permanent Nursing,Avon Lodge Care Centre,3448.20, 20-Oct-2020
201,Revenue,CAHD,South Glos Users in South Glos Homes,Permanent Nursing,Avon Lodge Care Centre,735.68, 20-Oct-2020
202,Revenue,CAHD,South - Commissioned Services,Permanent Nursing,Avon Lodge Care Centre,4311.16, 20-Oct-2020
203,Revenue,CAHD,South Glos Users in South Glos Homes,Permanent Nursing,Avon Lodge Care Centre,735.68, 20-Oct-2020
204,Revenue,CAHD,South - Commissioned Services,Permanent Nursing,Avon Lodge Care Centre,4347.88, 20-Oct-2020
205,Revenue,CAHD,South Glos Users in South Glos Homes,Permanent Nursing,Avon Lodge Care Centre,735.68, 20-Oct-2020
206,Revenue,CAHD,South Glos Users in South Glos Homes,Permanent Nursing,Avon Lodge Care Centre,735.68, 20-Oct-2020
207,Revenue,CAHD,South Glos Users in South Glos Homes,Permanent Nursing,Avon Lodge Care Centre,735.68, 20-Oct-2020
208,Revenue,CAHD,South - Commissioned Services,Permanent Nursing,Avon Lodge Care Centre,4403.84, 20-Oct-2020
209,Revenue,CAHD,South Glos Users in South Glos Homes,Permanent Nursing,Avon Lodge Care Centre,735.68, 20-Oct-2020
210,Revenue,CAHD,South - Commissioned Services,Permanent Nursing,Avon Lodge Care Centre,4311.16, 20-Oct-2020
211,Revenue,CAHD,South Glos Users in South Glos Homes,Permanent Nursing,Avon Lodge Care Centre,735.68, 20-Oct-2020
212,Revenue,CAHD,South Glos Users in South Glos Homes,Permanent Nursing,Avon Lodge Care Centre,735.68, 20-Oct-2020
213,Revenue,CAHD,Central - Commissioned Services,Permanent Nursing,Avon Lodge Care Centre,3884.80, 20-Oct-2020
214,Revenue,CAHD,South Glos Users in South Glos Homes,Permanent Nursing,Avon Lodge Care Centre,735.68, 20-Oct-2020
215,Revenue,CAHD,North - Community based support,Respite Planned - Nursing,Avon Lodge Care Centre,3460.00, 20-Oct-2020
216,Revenue,CAHD,North - Community based support,Permanent Residential,Avon Lodge Care Centre,3060.00, 20-Oct-2020
217,Revenue,CAHD,North - Community based support,Permanent Residential,Avon Lodge Care Centre,2841.43, 20-Oct-2020
218,Revenue,CAHD,South - Commissioned Services,Permanent Nursing,Avon Lodge Care Centre,4530.04, 20-Oct-2020
219,Revenue,CAHD,South Glos Users in South Glos Homes,Permanent Nursing,Avon Lodge Care Centre,735.68, 20-Oct-2020
220,Revenue,CAHD,South - S117,Permanent Nursing,Avon Lodge Care Centre,3885.48, 20-Oct-2020
221,Revenue,CAHD,South Glos Users in South Glos Homes,Permanent Nursing,Avon Lodge Care Centre,735.68, 20-Oct-2020
222,Revenue,CAHD,South - Commissioned Services,Permanent Residential,Avon Lodge Care Centre,4917.86, 20-Oct-2020
223,Revenue,CAHD,South - Commissioned Services,Permanent Residential,Avon Lodge Care Centre,3060.00, 20-Oct-2020
224,Revenue,CAHD,South Glos Users in South Glos Homes,Permanent Nursing,Avon Lodge Care Centre,735.68, 20-Oct-2020
225,Revenue,CAHD,South Glos Users in South Glos Homes,Permanent Nursing,Avon Lodge Care Centre,735.68, 20-Oct-2020
226,Revenue,CAHD,South - Commissioned Services,Permanent Residential,Avon Valley Care Home,3960.00, 20-Oct-2020
227,Revenue,CAHD,South - Commissioned Services,Permanent Residential,Avon Valley Care Home,4000.00, 20-Oct-2020
228,Revenue,CAHD,South - Commissioned Services,Permanent Residential,Avon Valley Care Home,3960.00, 20-Oct-2020
229,Revenue,CAHD,South - Commissioned Services,Permanent Residential,Avon Valley Care Home,4000.00, 20-Oct-2020
230,Revenue,CAHD,South - Commissioned Services,Permanent Residential,Avon Valley Care Home,4800.00, 20-Oct-2020
231,Revenue,CAHD,South - Commissioned Services,Permanent Residential,Avon Valley Care Home,3960.00, 20-Oct-2020
232,Revenue,CAHD,South - Commissioned Services,Permanent Residential,Avon Valley Care Home,4000.00, 20-Oct-2020
233,Revenue,CAHD,North - Community based support,Permanent Residential,Avon Valley Care Home,3600.00, 20-Oct-2020
234,Revenue,CAHD,North - Community based support,Fees & Charges Income - General,Avon Valley Care Home,3645.13, 20-Oct-2020
235,Revenue,CAHD,North - Community based support,Fees & Charges Income - General,Avon Valley Care Home,585.71, 20-Oct-2020
236,Revenue,CAHD,North - Community based support,Permanent Residential,Avon Valley Care Home,14271.43, 20-Oct-2020
237,Revenue,CAHD,North - Community based support,Fees & Charges Income - General,Avon Valley Care Home,2360.34, 20-Oct-2020
238,Revenue,CAHD,Central - Commissioned Services,Permanent Residential,Avon Valley Care Home,4000.00, 20-Oct-2020
239,Revenue,CAHD,North - Community based support,Permanent Residential,Avonmere Care Home,9784.00, 20-Oct-2020
240,Revenue,CAHD,North - Community based support,Permanent Residential,Avonmere Care Home,9434.57, 20-Oct-2020
241,Revenue,CAHD,Covid 19- Spend on behalf of NHS,Respite Planned - Residential,Avonmere Care Home,4714.28, 20-Oct-2020
242,Revenue,CAHD,Covid 19- Spend on behalf of NHS,Respite Planned - Nursing,Avonmere Care Home,14142.86, 20-Oct-2020
243,Revenue,CAHD,Covid 19- Spend on behalf of NHS,Respite Planned - Nursing,Avonmere Care Home,8800.00, 20-Oct-2020
244,Revenue,CAHD,North - Community based support,Permanent Residential,Avonmere Care Home,9360.00, 20-Oct-2020
245,Revenue,CAHD,Covid 19- Spend on behalf of NHS,Respite Planned - Residential,Avonmere Care Home,7228.57, 20-Oct-2020
246,Revenue,CAHD,Central - Commissioned Services,Respite Planned - Residential,Avonmere Care Home,8328.57, 20-Oct-2020
247,Revenue,CAHD,Central - Commissioned Services,Respite Planned - Residential,Avonmere Care Home,6128.57, 20-Oct-2020
248,Revenue,CAHD,Covid 19- Spend on behalf of NHS,Respite Planned - Residential,Avonmere Care Home,8800.00, 20-Oct-2020
249,Revenue,CAHD,Covid 19- Spend on behalf of NHS,Respite Planned - Residential,Avonmere Care Home,2985.71, 20-Oct-2020
250,Revenue,CAHD,Covid 19- Spend on behalf of NHS,Respite Planned - Residential,Avonmere Care Home,5342.86, 20-Oct-2020
251,Revenue,CAHD,North - Community based support,Permanent Residential,Avonmere Care Home,24127.40, 20-Oct-2020
252,Revenue,CAHD,North - Community based support,Permanent Residential,Avonmere Care Home,8773.60, 20-Oct-2020
253,Revenue,CAHD,North - Community based support,Fees & Charges Income - General,Avonmere Care Home,3770.79, 20-Oct-2020
254,Revenue,CAHD,Covid 19- Spend on behalf of NHS,Respite Planned - Residential,Avonmere Care Home,6757.14, 20-Oct-2020
255,Revenue,CAHD,North - Community based support,Permanent Residential,Avonmere Care Home,10840.00, 20-Oct-2020
256,Revenue,CAHD,Covid 19 -Adult Social Care,Respite Planned - Residential,Avonmere Care Home,13985.71, 20-Oct-2020
257,Revenue,CAHD,North - Community based support,Permanent Residential,Avonmere Care Home,9784.00, 20-Oct-2020
258,Revenue,CAHD,Covid 19 -Adult Social Care,Respite Planned - Residential,Avonmere Care Home,8800.00, 20-Oct-2020
259,Revenue,CAHD,North - Community based support,Permanent Residential,Avonmere Care Home,2096.57, 20-Oct-2020
260,Revenue,CAHD,North - Community based support,Permanent Residential,Avonmere Care Home,8840.00, 20-Oct-2020
261,Revenue,CAHD,North - Community based support,Permanent Residential,Avonmere Care Home,9240.00, 20-Oct-2020
262,Revenue,CAHD,North - Community based support,Permanent Residential,Avonmere Care Home,10133.43, 20-Oct-2020
263,Revenue,CAHD,North - Community based support,Permanent Residential,Avonmere Care Home,9784.00, 20-Oct-2020
264,Revenue,CAHD,North - Community based support,Permanent Residential,Avonmere Care Home,7064.29, 20-Oct-2020
265,Revenue,CAHD,Covid 19- Spend on behalf of NHS,Respite Planned - Residential,Avonmere Care Home,9585.71, 20-Oct-2020
266,Revenue,CAHD,Covid 19- Spend on behalf of NHS,Respite Planned - Residential,Avonmere Care Home,8800.00, 20-Oct-2020
267,Revenue,CAHD,South - Commissioned Services,Respite Planned - Residential,Avonmere Care Home,6757.14, 20-Oct-2020
268,Revenue,CAHD,Covid 19- Spend on behalf of NHS,Respite Planned - Residential,Avonmere Care Home,8800.00, 20-Oct-2020
269,Revenue,CAHD,North - Community based support,Permanent Residential,Avonmere Care Home,9784.00, 20-Oct-2020
270,Revenue,CAHD,North - Community based support,Permanent Residential,Avonmere Care Home,8910.43, 20-Oct-2020
271,Revenue,CAHD,North - Community based support,Fees & Charges Income - General,Avonmere Care Home,7512.71, 20-Oct-2020
272,Revenue,CAHD,Covid 19- Spend on behalf of NHS,Respite Planned - Residential,Avonmere Care Home,2200.00, 20-Oct-2020
273,Revenue,CAHD,North - Community based support,Fees & Charges Income - General,Avonmere Care Home,1196.59, 20-Oct-2020
274,Revenue,CAHD,North - Community based support,Fees & Charges Income - General,Avonmere Care Home,728.36, 20-Oct-2020
275,Revenue,CAHD,North - Community based support,Permanent Residential,Avonmere Care Home,12230.00, 20-Oct-2020
276,Revenue,CAHD,North - Community based support,Fees & Charges Income - General,Avonmere Care Home,565.46, 20-Oct-2020
277,Revenue,CAHD,North - Community based support,Fees & Charges Income - General,Avonmere Care Home,1456.72, 20-Oct-2020
278,Revenue,CAHD,Covid 19- Spend on behalf of NHS,Respite Planned - Residential,Avonmere Care Home,8800.00, 20-Oct-2020
279,Revenue,CAHD,Covid 19- Spend on behalf of NHS,Respite Planned - Residential,Avonmere Care Home,5342.86, 20-Oct-2020
280,Revenue,CAHD,Covid 19- Spend on behalf of NHS,Respite Planned - Residential,Avonmere Care Home,2671.43, 20-Oct-2020
281,Revenue,CAHD,Covid 19- Spend on behalf of NHS,Respite Planned - Residential,Avonmere Care Home,1100.00, 20-Oct-2020
282,Revenue,CAHD,Covid 19- Spend on behalf of NHS,Respite Planned - Nursing,Badminton Place,2914.29, 20-Oct-2020
283,Revenue,CAHD,Covid 19- Spend on behalf of NHS,Respite Planned - Nursing,Badminton Place,1885.71, 20-Oct-2020
284,Revenue,CAHD,Covid 19- Spend on behalf of NHS,Respite Planned - Nursing,Badminton Place,3771.43, 20-Oct-2020
285,Revenue,CAHD,Covid 19- Spend on behalf of NHS,Respite Planned - Nursing,Badminton Place,1028.57, 20-Oct-2020
286,Revenue,CAHD,Covid 19- Spend on behalf of NHS,Respite Planned - Nursing,Badminton Place,3257.14, 20-Oct-2020
287,Revenue,CAHD,Covid 19- Spend on behalf of NHS,Respite Planned - Nursing,Badminton Place,1542.86, 20-Oct-2020
288,Revenue,CAHD,Covid 19- Spend on behalf of NHS,Respite Planned - Nursing,Badminton Place,4800.00, 20-Oct-2020
289,Revenue,CAHD,Covid 19- Spend on behalf of NHS,Respite Planned - Nursing,Badminton Place,2228.57, 20-Oct-2020
290,Revenue,CAHD,Covid 19- Spend on behalf of NHS,Respite Planned - Nursing,Badminton Place,4114.29, 20-Oct-2020
291,Revenue,CAHD,Covid 19- Spend on behalf of NHS,Respite Planned - Nursing,Badminton Place,685.71, 20-Oct-2020
292,Revenue,CAHD,Covid 19- Spend on behalf of NHS,Respite Planned - Residential,Badminton Place,3257.14, 20-Oct-2020
293,Revenue,CAHD,Covid 19- Spend on behalf of NHS,Respite Planned - Residential,Badminton Place,1542.86, 20-Oct-2020
294,Revenue,CAHD,Covid 19- Spend on behalf of NHS,Respite Planned - Nursing,Badminton Place,4114.29, 20-Oct-2020
295,Revenue,CAHD,Covid 19- Spend on behalf of NHS,Respite Planned - Nursing,Badminton Place,685.71, 20-Oct-2020
296,Revenue,CAHD,Covid 19- Spend on behalf of NHS,Respite Planned - Nursing,Badminton Place,4285.71, 20-Oct-2020
297,Revenue,CAHD,Covid 19- Spend on behalf of NHS,Respite Planned - Nursing,Badminton Place,514.29, 20-Oct-2020
298,Revenue,CAHD,Covid 19- Spend on behalf of NHS,Respite Planned - Nursing,Badminton Place,4800.00, 20-Oct-2020
299,Revenue,CAHD,Covid 19- Spend on behalf of NHS,Respite Planned - Nursing,Badminton Place,2057.14, 20-Oct-2020
300,Revenue,CAHD,CSC - Family Group Conferencing,Grants to Voluntary Bodies,Barnardo Services Limited,5422.75, 21-Oct-2020
301,Revenue,CAHD,Children & Young People�s Health,Other Small Contracts,Barnardos,7650.00, 30-Oct-2020
302,Revenue,CAHD,Pensions - Non DSG,Annual Pension,Bath & North East Somerset Council,6633.42, 22-Oct-2020
303,Revenue,CAHD,Childrens - Safeguarding Board,Premises Hire,Bawa Healthcare & Leisure,517.50, 08-Oct-2020
304,Revenue,CAHD,CSC - Adoption Support Fund,Post Adoption,Individual,840.00, 30-Oct-2020
305,Revenue,CAHD,South Glos Users in South Glos Homes,Permanent Nursing,Beaufort Grange Care Home,735.68, 20-Oct-2020
306,Revenue,CAHD,South Glos Users in South Glos Homes,Permanent Nursing,Beaufort Grange Care Home,735.68, 20-Oct-2020
307,Revenue,CAHD,South Glos Users in South Glos Homes,Permanent Nursing,Beaufort Grange Care Home,735.68, 20-Oct-2020
308,Revenue,CAHD,South Glos Users in South Glos Homes,Permanent Nursing,Beaufort Grange Care Home,735.68, 20-Oct-2020
309,Revenue,CAHD,South Glos Users in South Glos Homes,Permanent Nursing,Beaufort Grange Care Home,735.68, 20-Oct-2020
310,Revenue,CAHD,South Glos Users in South Glos Homes,Permanent Nursing,Beaufort Grange Care Home,735.68, 20-Oct-2020
311,Revenue,CAHD,Central - Commissioned Services,Respite Planned - Residential,Beaufort Grange Care Home,2840.00, 20-Oct-2020
312,Revenue,CAHD,Central - Commissioned Services,Respite Planned - Residential,Beaufort Grange Care Home,1420.00, 20-Oct-2020
313,Revenue,CAHD,Central - Commissioned Services,Respite Planned - Residential,Beaufort Grange Care Home,1420.00, 20-Oct-2020
314,Revenue,CAHD,Central - Commissioned Services,Respite Planned - Residential,Beaufort Grange Care Home,1420.00, 20-Oct-2020
315,Revenue,CAHD,South Glos Users in South Glos Homes,Permanent Nursing,Beaufort Grange Care Home,735.68, 20-Oct-2020
316,Revenue,CAHD,South Glos Users in South Glos Homes,Permanent Nursing,Beaufort Grange Care Home,735.68, 20-Oct-2020
317,Revenue,CAHD,North - S117,Permanent Nursing,Beaufort Grange Care Home,4877.04, 20-Oct-2020
318,Revenue,CAHD,South Glos Users in South Glos Homes,Permanent Nursing,Beaufort Grange Care Home,735.68, 20-Oct-2020
319,Revenue,CAHD,South Glos Users in South Glos Homes,Permanent Nursing,Beaufort Grange Care Home,735.68, 20-Oct-2020
320,Revenue,CAHD,South Glos Users in South Glos Homes,Permanent Nursing,Beaufort Grange Care Home,735.68, 20-Oct-2020
321,Revenue,CAHD,South Glos Users in South Glos Homes,Permanent Nursing,Beaufort Grange Care Home,735.68, 20-Oct-2020
322,Revenue,CAHD,South Glos Users in South Glos Homes,Permanent Nursing,Beaufort Grange Care Home,735.68, 20-Oct-2020
323,Revenue,CAHD,South Glos Users in South Glos Homes,Permanent Nursing,Beaufort Grange Care Home,735.68, 20-Oct-2020
324,Revenue,CAHD,South Glos Users in South Glos Homes,Permanent Nursing,Beaufort Grange Care Home,735.68, 20-Oct-2020
325,Revenue,CAHD,North - S117,Permanent Nursing,Beaufort Grange Care Home,5005.76, 20-Oct-2020
326,Revenue,CAHD,South Glos Users in South Glos Homes,Permanent Nursing,Beaufort Grange Care Home,735.68, 20-Oct-2020
327,Revenue,CAHD,Central - Commissioned Services,Respite Planned - Residential,Beaufort Grange Care Home,4932.32, 20-Oct-2020
328,Revenue,CAHD,South Glos Users in South Glos Homes,Permanent Nursing,Beaufort Grange Care Home,735.68, 20-Oct-2020
329,Revenue,CAHD,South Glos Users in South Glos Homes,Permanent Nursing,Beaufort Grange Care Home,735.68, 20-Oct-2020
330,Revenue,CAHD,South Glos Users in South Glos Homes,Permanent Nursing,Beaufort Grange Care Home,735.68, 20-Oct-2020
331,Revenue,CAHD,South Glos Users in South Glos Homes,Permanent Nursing,Beaufort Grange Care Home,735.68, 20-Oct-2020
332,Revenue,CAHD,South Glos Users in South Glos Homes,Permanent Nursing,Beaufort Grange Care Home,735.68, 20-Oct-2020
333,Revenue,CAHD,South Glos Users in South Glos Homes,Permanent Nursing,Beaufort Grange Care Home,735.68, 20-Oct-2020
334,Revenue,CAHD,South Glos Users in South Glos Homes,Permanent Nursing,Beaufort Grange Care Home,4125.06, 20-Oct-2020
335,Revenue,CAHD,South Glos Users in South Glos Homes,Permanent Nursing,Beaufort Grange Care Home,735.68, 20-Oct-2020
336,Revenue,CAHD,South Glos Users in South Glos Homes,Permanent Nursing,Beaufort Grange Care Home,735.68, 20-Oct-2020
337,Revenue,CAHD,South Glos Users in South Glos Homes,Permanent Nursing,Beaufort Grange Care Home,735.68, 20-Oct-2020
338,Revenue,CAHD,South Glos Users in South Glos Homes,Permanent Nursing,Beaufort Grange Care Home,735.68, 20-Oct-2020
339,Revenue,CAHD,South Glos Users in South Glos Homes,Permanent Nursing,Beaufort Grange Care Home,735.68, 20-Oct-2020
340,Revenue,CAHD,South Glos Users in South Glos Homes,Permanent Nursing,Beaufort Grange Care Home,735.68, 20-Oct-2020
341,Revenue,CAHD,South Glos Users in South Glos Homes,Permanent Nursing,Beaufort Grange Care Home,735.68, 20-Oct-2020
342,Revenue,CAHD,South Glos Users in South Glos Homes,Permanent Nursing,Beaufort Grange Care Home,735.68, 20-Oct-2020
343,Revenue,CAHD,Central - Commissioned Services,Permanent Nursing,Beaufort Grange Care Home,5500.00, 20-Oct-2020
344,Revenue,CAHD,South Glos Users in South Glos Homes,Permanent Nursing,Beaufort Grange Care Home,735.68, 20-Oct-2020
345,Revenue,CAHD,South Glos Users in South Glos Homes,Permanent Nursing,Beaufort Grange Care Home,735.68, 20-Oct-2020
346,Revenue,CAHD,South Glos Users in South Glos Homes,Permanent Nursing,Beaufort Grange Care Home,735.68, 20-Oct-2020
347,Revenue,CAHD,South - S117,Permanent Nursing,Beaufort Grange Care Home,47381.14, 20-Oct-2020
348,Revenue,CAHD,North - S117,Permanent Nursing,Beaufort Grange Care Home,3071.00, 20-Oct-2020
349,Revenue,CAHD,South - S117,Permanent Nursing,Beaufort Grange Care Home,877.43, 20-Oct-2020
350,Revenue,CAHD,South Glos Users in South Glos Homes,Permanent Nursing,Beaufort Grange Care Home,735.68, 20-Oct-2020
351,Revenue,CAHD,Central - Commissioned Services,Permanent Nursing,Beaufort Grange Care Home,5500.00, 20-Oct-2020
352,Revenue,CAHD,South Glos Users in South Glos Homes,Permanent Nursing,Beaufort Grange Care Home,735.68, 20-Oct-2020
353,Revenue,CAHD,South Glos Users in South Glos Homes,Permanent Nursing,Beaufort Grange Care Home,735.68, 20-Oct-2020
354,Revenue,CAHD,South Glos Users in South Glos Homes,Permanent Nursing,Beaufort Grange Care Home,735.68, 20-Oct-2020
355,Revenue,CAHD,South Glos Users in South Glos Homes,Permanent Nursing,Beaufort Grange Care Home,735.68, 20-Oct-2020
356,Revenue,CAHD,South Glos Users in South Glos Homes,Permanent Nursing,Beaufort Grange Care Home,735.68, 20-Oct-2020
357,Revenue,CAHD,South Glos Users in South Glos Homes,Permanent Nursing,Beaufort Grange Care Home,4913.29, 20-Oct-2020
358,Revenue,CAHD,South Glos Users in South Glos Homes,Permanent Nursing,Beaufort Grange Care Home,735.68, 20-Oct-2020
359,Revenue,CAHD,South Glos Users in South Glos Homes,Permanent Nursing,Beaufort Grange Care Home,4913.29, 20-Oct-2020
360,Revenue,CAHD,South Glos Users in South Glos Homes,Permanent Nursing,Beaufort Grange Care Home,735.68, 20-Oct-2020
361,Revenue,CAHD,South Glos Users in South Glos Homes,Permanent Nursing,Beaufort Grange Care Home,4913.29, 20-Oct-2020
362,Revenue,CAHD,South Glos Users in South Glos Homes,Permanent Nursing,Beaufort Grange Care Home,3065.27, 20-Oct-2020
363,Revenue,CAHD,South Glos Users in South Glos Homes,Permanent Nursing,Beaufort Grange Care Home,735.68, 20-Oct-2020
364,Revenue,CAHD,South Glos Users in South Glos Homes,Permanent Nursing,Beaufort Grange Care Home,735.68, 20-Oct-2020
365,Revenue,CAHD,South Glos Users in South Glos Homes,Permanent Nursing,Beaufort Grange Care Home,735.68, 20-Oct-2020
366,Revenue,CAHD,South Glos Users in South Glos Homes,Permanent Nursing,Beaufort Grange Care Home,735.68, 20-Oct-2020
367,Revenue,CAHD,South Glos Users in South Glos Homes,Permanent Nursing,Beaufort Grange Care Home,735.68, 20-Oct-2020
368,Revenue,CAHD,South Glos Users in South Glos Homes,Permanent Nursing,Beaufort Grange Care Home,735.68, 20-Oct-2020
369,Revenue,CAHD,North - Community based support,Permanent Residential,Beaufort House,2600.56, 20-Oct-2020
370,Revenue,CAHD,Central - Commissioned Services,Permanent Residential,Beaufort House,2924.56, 20-Oct-2020
371,Revenue,CAHD,Central - Commissioned Services,Permanent Residential,Beaufort House,2831.12, 20-Oct-2020
372,Revenue,CAHD,North - Community based support,Permanent Residential,Beaufort House,2622.84, 20-Oct-2020
373,Revenue,CAHD,South - Commissioned Services,Permanent Residential,Beaufort House,2587.56, 20-Oct-2020
374,Revenue,CAHD,Central - Commissioned Services,Respite Planned - Nursing,Beaufort House,5250.00, 20-Oct-2020
375,Revenue,CAHD,North - Community based support,Permanent Residential,Beaufort House,2753.92, 20-Oct-2020
376,Revenue,CAHD,South - Commissioned Services,Respite Emergency - Residential,Beaufort House,2200.00, 20-Oct-2020
377,Revenue,CAHD,Central - Bed Purchasing and Direct Payments,Permanent Residential,Beaufort House,3400.00, 20-Oct-2020
378,Revenue,CAHD,South - Commissioned Services,Permanent Residential,Beech House,3018.84, 20-Oct-2020
379,Revenue,CAHD,South Glos Users in South Glos Homes,Permanent Nursing,Beech House,735.68, 20-Oct-2020
380,Revenue,CAHD,North - Community based support,Permanent Nursing,Beech House,4365.60, 20-Oct-2020
381,Revenue,CAHD,South Glos Users in South Glos Homes,Permanent Nursing,Beech House,735.68, 20-Oct-2020
382,Revenue,CAHD,Bed Purchasing - Southmead Hospital,Permanent Residential,Beech House,4280.00, 20-Oct-2020
383,Revenue,CAHD,South Glos Users in South Glos Homes,Permanent Nursing,Beech House,735.68, 20-Oct-2020
384,Revenue,CAHD,South Glos Users in South Glos Homes,Permanent Nursing,Beech House,735.68, 20-Oct-2020
385,Revenue,CAHD,South Glos Users in South Glos Homes,Permanent Nursing,Beech House,735.68, 20-Oct-2020
386,Revenue,CAHD,South Glos Users in South Glos Homes,Permanent Nursing,Beech House,735.68, 20-Oct-2020
387,Revenue,CAHD,South Glos Users in South Glos Homes,Permanent Nursing,Beech House,735.68, 20-Oct-2020
388,Revenue,CAHD,North - Community based support,Permanent Nursing,Beech House,4368.88, 20-Oct-2020
389,Revenue,CAHD,South Glos Users in South Glos Homes,Permanent Nursing,Beech House,735.68, 20-Oct-2020
390,Revenue,CAHD,South Glos Users in South Glos Homes,Permanent Nursing,Beech House,735.68, 20-Oct-2020
391,Revenue,CAHD,South Glos Users in South Glos Homes,Permanent Nursing,Beech House,735.68, 20-Oct-2020
392,Revenue,CAHD,South Glos Users in South Glos Homes,Permanent Nursing,Beech House,735.68, 20-Oct-2020
393,Revenue,CAHD,South Glos Users in South Glos Homes,Permanent Nursing,Beech House,735.68, 20-Oct-2020
394,Revenue,CAHD,South Glos Users in South Glos Homes,Permanent Nursing,Beech House,735.68, 20-Oct-2020
395,Revenue,CAHD,North - Community based support,Permanent Nursing,Beech House,4982.86, 20-Oct-2020
396,Revenue,CAHD,North - Community based support,Permanent Nursing,Beech House,4360.00, 20-Oct-2020
397,Revenue,CAHD,North - Community based support,Permanent Nursing,Beech House,4308.04, 20-Oct-2020
398,Revenue,CAHD,South Glos Users in South Glos Homes,Permanent Nursing,Beech House,735.68, 20-Oct-2020
399,Revenue,CAHD,South Glos Users in South Glos Homes,Permanent Nursing,Beech House,735.68, 20-Oct-2020
400,Revenue,CAHD,South Glos Users in South Glos Homes,Permanent Nursing,Beech House,735.68, 20-Oct-2020
401,Revenue,CAHD,Bed Purchasing - Southmead Hospital,Permanent Nursing,Beech House,5917.14, 20-Oct-2020
402,Revenue,CAHD,Bed Purchasing - Southmead Hospital,Permanent Nursing,Beech House,4360.00, 20-Oct-2020
403,Revenue,CAHD,South Glos Users in South Glos Homes,Permanent Nursing,Beech House,735.68, 20-Oct-2020
404,Revenue,CAHD,South Glos Users in South Glos Homes,Permanent Nursing,Beech House,735.68, 20-Oct-2020
405,Revenue,CAHD,South Glos Users in South Glos Homes,Permanent Nursing,Beech House,735.68, 20-Oct-2020
406,Revenue,CAHD,South Glos Users in South Glos Homes,Permanent Nursing,Beechwood Care Home,1044.00, 20-Oct-2020
407,Revenue,CAHD,Central - Commissioned Services,Permanent Residential,Beechwood Court,15254.92, 20-Oct-2020
408,Revenue,CAHD,Independent Special Placements - Pre 16,Other Private Contractors,Belgrave School,4845.00, 08-Oct-2020
409,Revenue,CAHD,Independent Special Placements - Pre 16,Other Private Contractors,Belgrave School,7283.33, 08-Oct-2020
410,Revenue,CAHD,South - S117,Permanent Residential,Bidna House,3692.64, 20-Oct-2020
411,Revenue,CAHD,Placements OLA Special Schools and RB,Other L.A.s - General,Blaise High School,1642.82, 28-Oct-2020
412,Revenue,CAHD,Statemented Support Payments to OLAs,Other L.A.s - General,Blaise High School,907.83, 01-Oct-2020
413,Revenue,CAHD,Statemented Support Payments to OLAs,Other L.A.s - General,Blaise High School,907.83, 28-Oct-2020
414,Revenue,CAHD,North - Community based support,Other Small Contracts,Blakehill Healthcare Ltd,3131.25, 21-Oct-2020
415,Revenue,CAHD,Central - Commissioned Services,Other Small Contracts,Blakehill Healthcare Ltd,500.00, 14-Oct-2020
416,Revenue,CAHD,South - Commissioned Services,Other Small Contracts,Blakehill Healthcare Ltd,3150.00, 14-Oct-2020
417,Revenue,CAHD,North - Community based support,Other Small Contracts,Blakehill Healthcare Ltd,850.00, 21-Oct-2020
418,Revenue,CAHD,North - Community based support,Other Small Contracts,Blakehill Healthcare Ltd,5241.60, 14-Oct-2020
419,Revenue,CAHD,Central - Commissioned Services,Other Small Contracts,Blakehill Healthcare Ltd,700.00, 13-Oct-2020
420,Revenue,CAHD,Central - Commissioned Services,Other Small Contracts,Blakehill Healthcare Ltd,1050.00, 29-Oct-2020
421,Revenue,CAHD,Central - Commissioned Services,Other Small Contracts,Blakehill Healthcare Ltd,1425.00, 21-Oct-2020
422,Revenue,CAHD,Central - Commissioned Services,Other Small Contracts,Blakehill Healthcare Ltd,4325.00, 16-Oct-2020
423,Revenue,CAHD,South - Commissioned Services,Other Small Contracts,Blakehill Healthcare Ltd,1350.00, 16-Oct-2020
424,Revenue,CAHD,Central - Commissioned Services,Other Small Contracts,Blakehill Healthcare Ltd,2787.50, 16-Oct-2020
425,Revenue,CAHD,Central - Commissioned Services,Other Small Contracts,Blakehill Healthcare Ltd,1575.00, 16-Oct-2020
426,Revenue,CAHD,South - Commissioned Services,Other Small Contracts,Blakehill Healthcare Ltd,650.00, 21-Oct-2020
427,Revenue,CAHD,South Glos Users in South Glos Homes,Permanent Nursing,Blossom Field,735.68, 20-Oct-2020
428,Revenue,CAHD,South Glos Users in South Glos Homes,Permanent Nursing,Blossom Field,525.49, 20-Oct-2020
429,Revenue,CAHD,South Glos Users in South Glos Homes,Permanent Nursing,Blossom Field,735.68, 20-Oct-2020
430,Revenue,CAHD,North - Community based support,Permanent Nursing,Blossom Field,4770.40, 20-Oct-2020
431,Revenue,CAHD,South Glos Users in South Glos Homes,Permanent Nursing,Blossom Field,735.68, 20-Oct-2020
432,Revenue,CAHD,North - Community based support,Permanent Nursing,Blossom Field,4352.80, 20-Oct-2020
433,Revenue,CAHD,South Glos Users in South Glos Homes,Permanent Nursing,Blossom Field,735.68, 20-Oct-2020
434,Revenue,CAHD,South Glos Users in South Glos Homes,Permanent Nursing,Blossom Field,735.68, 20-Oct-2020
435,Revenue,CAHD,South - Commissioned Services,Permanent Nursing,Blossom Field,4501.36, 20-Oct-2020
436,Revenue,CAHD,South Glos Users in South Glos Homes,Permanent Nursing,Blossom Field,735.68, 20-Oct-2020
437,Revenue,CAHD,South Glos Users in South Glos Homes,Permanent Nursing,Blossom Field,735.68, 20-Oct-2020
438,Revenue,CAHD,South Glos Users in South Glos Homes,Permanent Nursing,Blossom Field,735.68, 20-Oct-2020
439,Revenue,CAHD,North - Community based support,Permanent Nursing,Blossom Field,4799.88, 20-Oct-2020
440,Revenue,CAHD,South Glos Users in South Glos Homes,Permanent Nursing,Blossom Field,735.68, 20-Oct-2020
441,Revenue,CAHD,South Glos Users in South Glos Homes,Permanent Nursing,Blossom Field,735.68, 20-Oct-2020
442,Revenue,CAHD,North - Community based support,Permanent Nursing,Blossom Field,4800.00, 20-Oct-2020
443,Revenue,CAHD,South Glos Users in South Glos Homes,Permanent Nursing,Blossom Field,735.68, 20-Oct-2020
444,Revenue,CAHD,Central - Commissioned Services,Permanent Nursing,Blossom Field,4352.72, 20-Oct-2020
445,Revenue,CAHD,South Glos Users in South Glos Homes,Permanent Nursing,Blossom Field,735.68, 20-Oct-2020
446,Revenue,CAHD,South Glos Users in South Glos Homes,Permanent Nursing,Blossom Field,735.68, 20-Oct-2020
447,Revenue,CAHD,South Glos Users in South Glos Homes,Permanent Nursing,Blossom Field,735.68, 20-Oct-2020
448,Revenue,CAHD,South - Commissioned Services,Permanent Nursing,Blossom Field,4039.20, 20-Oct-2020
449,Revenue,CAHD,South Glos Users in South Glos Homes,Permanent Nursing,Blossom Field,735.68, 20-Oct-2020
450,Revenue,CAHD,South Glos Users in South Glos Homes,Permanent Nursing,Blossom Field,735.68, 20-Oct-2020
451,Revenue,CAHD,South Glos Users in South Glos Homes,Permanent Nursing,Blossom Field,735.68, 20-Oct-2020
452,Revenue,CAHD,Central - Commissioned Services,Permanent Nursing,Blossom Field,4039.20, 20-Oct-2020
453,Revenue,CAHD,South Glos Users in South Glos Homes,Permanent Nursing,Blossom Field,735.68, 20-Oct-2020
454,Revenue,CAHD,South Glos Users in South Glos Homes,Permanent Nursing,Blossom Field,735.68, 20-Oct-2020
455,Revenue,CAHD,North - Community based support,Permanent Nursing,Blossom Field,5000.00, 20-Oct-2020
456,Revenue,CAHD,South Glos Users in South Glos Homes,Permanent Nursing,Blossom Field,735.68, 20-Oct-2020
457,Revenue,CAHD,South Glos Users in South Glos Homes,Permanent Nursing,Blossom Field,735.68, 20-Oct-2020
458,Revenue,CAHD,South Glos Users in South Glos Homes,Permanent Nursing,Blossom Field,1024.70, 20-Oct-2020
459,Revenue,CAHD,South Glos Users in South Glos Homes,Permanent Nursing,Blossom Field,735.68, 20-Oct-2020
460,Revenue,CAHD,Central - Commissioned Services,Permanent Nursing,Blossom Field,4400.00, 20-Oct-2020
461,Revenue,CAHD,South Glos Users in South Glos Homes,Permanent Nursing,Blossom Field,735.68, 20-Oct-2020
462,Revenue,CAHD,North - Community based support,Permanent Nursing,Blossom Field,4039.20, 20-Oct-2020
463,Revenue,CAHD,South Glos Users in South Glos Homes,Permanent Nursing,Blossom Field,735.68, 20-Oct-2020
464,Revenue,CAHD,South Glos Users in South Glos Homes,Permanent Nursing,Blossom Field,735.68, 20-Oct-2020
465,Revenue,CAHD,Central - Commissioned Services,Respite Planned - Nursing,Blossom Field,4039.20, 20-Oct-2020
466,Revenue,CAHD,South Glos Users in South Glos Homes,Permanent Nursing,Blossom Field,735.68, 20-Oct-2020
467,Revenue,CAHD,North - Community based support,Permanent Nursing,Blossom Field,3707.64, 20-Oct-2020
468,Revenue,CAHD,South Glos Users in South Glos Homes,Permanent Nursing,Blossom Field,735.68, 20-Oct-2020
469,Revenue,CAHD,North - Community based support,Permanent Residential,Bluebells,3699.60, 20-Oct-2020
470,Revenue,CAHD,Covid 19 -Adult Social Care,Other Small Contracts,Bluebird Care (South Gloucestershire),15.10, 07-Oct-2020
471,Revenue,CAHD,Central - Commissioned Services,Other Small Contracts,Bluebird Care (South Gloucestershire),12983.66, 07-Oct-2020
472,Revenue,CAHD,South - Commissioned Services,Other Small Contracts,Bluebird Care (South Gloucestershire),3899.34, 07-Oct-2020
473,Revenue,CAHD,North - Community based support,Other Small Contracts,Bluebird Care (South Gloucestershire),4166.59, 07-Oct-2020
474,Revenue,CAHD,Covid 19 -Adult Social Care,Other Small Contracts,Bluebird Care (South Gloucestershire),7.55, 08-Oct-2020
475,Revenue,CAHD,Central - Commissioned Services,Other Small Contracts,Bluebird Care (South Gloucestershire),14772.66, 08-Oct-2020
476,Revenue,CAHD,South - Commissioned Services,Other Small Contracts,Bluebird Care (South Gloucestershire),4133.39, 08-Oct-2020
477,Revenue,CAHD,North - Community based support,Other Small Contracts,Bluebird Care (South Gloucestershire),3441.79, 08-Oct-2020
478,Revenue,CAHD,Resilience Team,Other Small Contracts,Bluebird Care (South Gloucestershire),120.80, 08-Oct-2020
479,Revenue,CAHD,Covid 19 -Adult Social Care,Other Small Contracts,Bluebird Care (South Gloucestershire),15.10, 09-Oct-2020
480,Revenue,CAHD,Central - Commissioned Services,Other Small Contracts,Bluebird Care (South Gloucestershire),13605.17, 09-Oct-2020
481,Revenue,CAHD,South - Commissioned Services,Other Small Contracts,Bluebird Care (South Gloucestershire),3899.34, 09-Oct-2020
482,Revenue,CAHD,North - Community based support,Other Small Contracts,Bluebird Care (South Gloucestershire),3078.04, 09-Oct-2020
483,Revenue,CAHD,Resilience Team,Other Small Contracts,Bluebird Care (South Gloucestershire),211.40, 09-Oct-2020
484,Revenue,CAHD,Covid 19 -Adult Social Care,Other Small Contracts,Bluebird Care (South Gloucestershire),15.10, 09-Oct-2020
485,Revenue,CAHD,Central - Commissioned Services,Other Small Contracts,Bluebird Care (South Gloucestershire),13749.99, 09-Oct-2020
486,Revenue,CAHD,South - Commissioned Services,Other Small Contracts,Bluebird Care (South Gloucestershire),3627.54, 09-Oct-2020
487,Revenue,CAHD,North - Community based support,Other Small Contracts,Bluebird Care (South Gloucestershire),3396.34, 09-Oct-2020
488,Revenue,CAHD,Resilience Team,Other Small Contracts,Bluebird Care (South Gloucestershire),211.40, 09-Oct-2020
489,Revenue,CAHD,Central - Commissioned Services,Other Small Contracts,Bluebird Care (South Gloucestershire),12485.76, 14-Oct-2020
490,Revenue,CAHD,South - Commissioned Services,Other Small Contracts,Bluebird Care (South Gloucestershire),3635.09, 14-Oct-2020
491,Revenue,CAHD,North - Community based support,Other Small Contracts,Bluebird Care (South Gloucestershire),4091.09, 14-Oct-2020
492,Revenue,CAHD,Resilience Team,Other Small Contracts,Bluebird Care (South Gloucestershire),211.40, 14-Oct-2020
493,Revenue,CAHD,Central - Commissioned Services,Other Small Contracts,Bluebird Care (South Gloucestershire),8199.10, 15-Oct-2020
494,Revenue,CAHD,South - Commissioned Services,Other Small Contracts,Bluebird Care (South Gloucestershire),3468.99, 15-Oct-2020
495,Revenue,CAHD,North - Community based support,Other Small Contracts,Bluebird Care (South Gloucestershire),3456.89, 15-Oct-2020
496,Revenue,CAHD,Resilience Team,Other Small Contracts,Bluebird Care (South Gloucestershire),218.95, 15-Oct-2020
497,Revenue,CAHD,Sexual Health,Other Small Contracts,Boots UK Ltd,2031.85, 28-Oct-2020
498,Revenue,CAHD,Drug and Alcohol Programme,Other Small Contracts,Boots UK Ltd,3475.00, 28-Oct-2020
499,Revenue,CAHD,S28A cases,Permanent Residential,Bradbury House,6505.16, 20-Oct-2020
500,Revenue,CAHD,North - Community based support,Permanent Residential,Bradbury House,10016.24, 20-Oct-2020
501,Revenue,CAHD,Jointly Funded H&SC Packages,Permanent Residential,Bradbury House,8244.08, 20-Oct-2020
502,Revenue,CAHD,North - S117,Permanent Residential,Bradbury House,5969.84, 20-Oct-2020
503,Revenue,CAHD,South - Commissioned Services,Permanent Residential,Bradbury House,10168.08, 20-Oct-2020
504,Revenue,CAHD,Sexual Health,Other Small Contracts,Bradley Stoke Surgery,1824.67, 29-Oct-2020
505,Revenue,CAHD,Sexual Health,Other Small Contracts,Bradley Stoke Surgery,2133.55, 29-Oct-2020
506,Revenue,CAHD,NHS Health Checks,Other Small Contracts,Bradley Stoke Surgery,3007.21, 29-Oct-2020
507,Revenue,CAHD,Drug and Alcohol Programme,Other Small Contracts,Bradley Stoke Surgery,1082.67, 29-Oct-2020
508,Revenue,CAHD,CSC - Residential Placements,Permanent Residential,Branas ISAF Ltd,19478.57, 16-Oct-2020
509,Revenue,CAHD,Social Lettings Agency,Rent,Individual,699.32, 23-Oct-2020
510,Revenue,CAHD,Social Lettings Agency,Fees - General,Individual,20.57, 23-Oct-2020
511,Revenue,CAHD,Social Lettings Agency,Rent,Individual,1532.20, 01-Oct-2020
512,Revenue,CAHD,Social Lettings Agency,Fees - General,Individual,16.30, 01-Oct-2020
513,Revenue,CAHD,Social Lettings Agency,Rent,Individual,766.10, 02-Oct-2020
514,Revenue,CAHD,Social Lettings Agency,Fees - General,Individual,8.15, 02-Oct-2020
515,Revenue,CAHD,North - bed purchasing and direct  payments,Permanent Residential,Bridge House Care Home,2740.00, 20-Oct-2020
516,Revenue,CAHD,North - Community based support,Permanent Residential,Bridge House Care Home,2848.00, 20-Oct-2020
517,Revenue,CAHD,North - Community based support,Permanent Residential,Bridge House Care Home,2678.04, 20-Oct-2020
518,Revenue,CAHD,CSC - Vinney Green Secure Unit,Training Expenses,Bridgwater and Taunton College,5398.00, 16-Oct-2020
519,Revenue,CAHD,North - Community based support,Permanent Residential,Bridgwater Court Care Home,10773.64, 20-Oct-2020
520,Revenue,CAHD,Health Inequalities,Grants to Voluntary Bodies,Bristol & Avon Chinese Womens Group,500.00, 01-Oct-2020
521,Revenue,CAHD,Older People`s Commissioned Se,Grants to Voluntary Bodies,Bristol Area Stroke Foundation,19052.75, 01-Oct-2020
522,Revenue,CAHD,Statemented Support Payments to OLAs,Other L.A.s - General,Bristol Cathedral Choir School,942.58, 01-Oct-2020
523,Revenue,CAHD,Statemented Support Payments to OLAs,Other L.A.s - General,Bristol Cathedral Choir School,880.08, 01-Oct-2020
524,Revenue,CAHD,Statemented Support Payments to OLAs,Other L.A.s - General,Bristol Cathedral Choir School,942.58, 28-Oct-2020
525,Revenue,CAHD,Statemented Support Payments to OLAs,Other L.A.s - General,Bristol Cathedral Choir School,880.08, 28-Oct-2020
526,Revenue,CAHD,Sexual Health,Other Small Contracts,Bristol City Council,235634.00, 15-Oct-2020
527,Revenue,CAHD,CSC - Section 17 - NORTH,Interpreting & Translation,Bristol City Council,1393.54, 22-Oct-2020
528,Revenue,CAHD,Serious Case Review Child Safeguarding,Interest on Balances,Bristol City Council,528.12, 23-Oct-2020
529,Revenue,CAHD,Serious Case Review Child Safeguarding,Interest on Balances,Bristol City Council,2526.71, 23-Oct-2020
530,Revenue,CAHD,Placements OLA Special Schools and RB,Other L.A.s - General,Bristol City Council - Schools,1981.43, 28-Oct-2020
531,Revenue,CAHD,Placements OLA Special Schools and RB,Other L.A.s - General,Bristol City Council - Schools,1981.43, 28-Oct-2020
532,Revenue,CAHD,Placements OLA Special Schools and RB,Other L.A.s - General,Bristol City Council - Schools,645.99, 28-Oct-2020
533,Revenue,CAHD,Placements OLA Special Schools and RB,Other L.A.s - General,Bristol City Council - Schools,1268.04, 28-Oct-2020
534,Revenue,CAHD,Statemented Support Payments to OLAs,Other L.A.s - General,Bristol City Council - Schools,1625.17, 28-Oct-2020
535,Revenue,CAHD,Statemented Support Payments to OLAs,Other L.A.s - General,Bristol City Council - Schools,1379.43, 01-Oct-2020
536,Revenue,CAHD,Statemented Support Payments to OLAs,Other L.A.s - General,Bristol City Council - Schools,1379.43, 28-Oct-2020
537,Revenue,CAHD,Placements OLA Special Schools and RB,Other L.A.s - General,Bristol City Council - Schools,792.41, 28-Oct-2020
538,Revenue,CAHD,Placements OLA Special Schools and RB,Other L.A.s - General,Bristol City Council - Schools,1268.04, 28-Oct-2020
539,Revenue,CAHD,Statemented Support Payments to OLAs,Other L.A.s - General,Bristol City Council - Schools,554.13, 01-Oct-2020
540,Revenue,CAHD,Statemented Support Payments to OLAs,Other L.A.s - General,Bristol City Council - Schools,554.13, 28-Oct-2020
541,Revenue,CAHD,Placements OLA Special Schools and RB,Other L.A.s - General,Bristol City Council - Schools,2774.72, 28-Oct-2020
542,Revenue,CAHD,Placements OLA Special Schools and RB,Other L.A.s - General,Bristol City Council - Schools,645.99, 28-Oct-2020
543,Revenue,CAHD,Placements OLA Special Schools and RB,Other L.A.s - General,Bristol City Council - Schools,2774.72, 28-Oct-2020
544,Revenue,CAHD,Placements OLA Special Schools and RB,Other L.A.s - General,Bristol City Council - Schools,2774.72, 28-Oct-2020
545,Revenue,CAHD,Statemented Support Payments to OLAs,Other L.A.s - General,Bristol City Council - Schools,787.54, 01-Oct-2020
546,Revenue,CAHD,Statemented Support Payments to OLAs,Other L.A.s - General,Bristol City Council - Schools,787.54, 28-Oct-2020
547,Revenue,CAHD,Statemented Support Payments to OLAs,Other L.A.s - General,Bristol City Council - Schools,635.33, 28-Oct-2020
548,Revenue,CAHD,Placements OLA Special Schools and RB,Other L.A.s - General,Bristol City Council - Schools,1981.43, 28-Oct-2020
549,Revenue,CAHD,Placements OLA Special Schools and RB,Other L.A.s - General,Bristol City Council - Schools,645.99, 28-Oct-2020
550,Revenue,CAHD,Placements OLA Special Schools and RB,Other L.A.s - General,Bristol City Council - Schools,1268.04, 28-Oct-2020
551,Revenue,CAHD,Placements OLA Special Schools and RB,Other L.A.s - General,Bristol City Council - Schools,1981.43, 28-Oct-2020
552,Revenue,CAHD,Placements OLA Special Schools and RB,Other L.A.s - General,Bristol City Council - Schools,1268.04, 28-Oct-2020
553,Revenue,CAHD,Placements OLA Special Schools and RB,Other L.A.s - General,Bristol City Council - Schools,1268.04, 28-Oct-2020
554,Revenue,CAHD,Placements OLA Special Schools and RB,Other L.A.s - General,Bristol City Council - Schools,1981.43, 28-Oct-2020
555,Revenue,CAHD,Placements OLA Special Schools and RB,Other L.A.s - General,Bristol City Council - Schools,1707.43, 28-Oct-2020
556,Revenue,CAHD,Placements OLA Special Schools and RB,Other L.A.s - General,Bristol City Council - Schools,1906.67, 28-Oct-2020
557,Revenue,CAHD,Placements OLA Special Schools and RB,Other L.A.s - General,Bristol City Council - Schools,792.41, 28-Oct-2020
558,Revenue,CAHD,Placements OLA Special Schools and RB,Other L.A.s - General,Bristol City Council - Schools,2774.72, 28-Oct-2020
559,Revenue,CAHD,Placements OLA Special Schools and RB,Other L.A.s - General,Bristol City Council - Schools,1981.43, 28-Oct-2020
560,Revenue,CAHD,Placements OLA Special Schools and RB,Other L.A.s - General,Bristol City Council - Schools,792.41, 28-Oct-2020
561,Revenue,CAHD,Placements OLA Special Schools and RB,Other L.A.s - General,Bristol City Council - Schools,792.41, 28-Oct-2020
562,Revenue,CAHD,Placements OLA Special Schools and RB,Other L.A.s - General,Bristol City Council - Schools,3898.94, 28-Oct-2020
563,Revenue,CAHD,Placements OLA Special Schools and RB,Other L.A.s - General,Bristol City Council - Schools,1271.15, 28-Oct-2020
564,Revenue,CAHD,Placements OLA Special Schools and RB,Other L.A.s - General,Bristol City Council - Schools,792.58, 28-Oct-2020
565,Revenue,CAHD,Placements OLA Special Schools and RB,Other L.A.s - General,Bristol City Council - Schools,2774.72, 28-Oct-2020
566,Revenue,CAHD,Placements OLA Special Schools and RB,Other L.A.s - General,Bristol City Council - Schools,1981.43, 28-Oct-2020
567,Revenue,CAHD,Placements OLA Special Schools and RB,Other L.A.s - General,Bristol City Council - Schools,645.99, 28-Oct-2020
568,Revenue,CAHD,Placements OLA Special Schools and RB,Other L.A.s - General,Bristol City Council - Schools,792.41, 28-Oct-2020
569,Revenue,CAHD,Placements OLA Special Schools and RB,Other L.A.s - General,Bristol City Council - Schools,2774.72, 28-Oct-2020
570,Revenue,CAHD,Placements OLA Special Schools and RB,Other L.A.s - General,Bristol City Council - Schools,645.99, 28-Oct-2020
571,Revenue,CAHD,Placements OLA Special Schools and RB,Other L.A.s - General,Bristol City Council - Schools,1585.17, 28-Oct-2020
572,Revenue,CAHD,Placements OLA Special Schools and RB,Other L.A.s - General,Bristol City Council - Schools,516.77, 28-Oct-2020
573,Revenue,CAHD,Placements OLA Special Schools and RB,Other L.A.s - General,Bristol City Council - Schools,2495.17, 28-Oct-2020
574,Revenue,CAHD,Placements OLA Special Schools and RB,Other L.A.s - General,Bristol City Council - Schools,1268.04, 28-Oct-2020
575,Revenue,CAHD,Placements OLA Special Schools and RB,Other L.A.s - General,Bristol City Council - Schools,1981.43, 28-Oct-2020
576,Revenue,CAHD,Placements OLA Special Schools and RB,Other L.A.s - General,Bristol City Council - Schools,645.99, 28-Oct-2020
577,Revenue,CAHD,Placements OLA Special Schools and RB,Other L.A.s - General,Bristol City Council - Schools,2774.72, 28-Oct-2020
578,Revenue,CAHD,Placements OLA Special Schools and RB,Other L.A.s - General,Bristol City Council - Schools,1268.04, 28-Oct-2020
579,Revenue,CAHD,Placements OLA Special Schools and RB,Other L.A.s - General,Bristol City Council - Schools,1268.04, 28-Oct-2020
580,Revenue,CAHD,Training - Adult Services,Training Expenses,Bristol MIND,426.00, 30-Oct-2020
581,Revenue,CAHD,Training - Adult Services,Training Expenses,British Red Cross,510.00, 30-Oct-2020
582,Revenue,CAHD,Statemented Support Payments to OLAs,Other L.A.s - General,Broadlands Academy,1332.27, 01-Oct-2020
583,Revenue,CAHD,Statemented Support Payments to OLAs,Other L.A.s - General,Broadlands Academy,1332.27, 28-Oct-2020
584,Revenue,CAHD,North - Community based support,Permanent Residential,Brockhills Farm,3300.00, 20-Oct-2020
585,Revenue,CAHD,Supporting People Programme,Grants to Voluntary Bodies,Bromford  :  Merlin Housing Society,15637.00, 01-Oct-2020
586,Revenue,CAHD,Supporting People Programme,Grants to Voluntary Bodies,Bromford  :  Merlin Housing Society,2741.00, 01-Oct-2020
587,Revenue,CAHD,Supporting People Programme,Grants to Voluntary Bodies,Bromford  :  Merlin Housing Society,22940.00, 01-Oct-2020
588,Revenue,CAHD,Supporting People Programme,Grants to Voluntary Bodies,Bromford  :  Merlin Housing Society,1113.00, 01-Oct-2020
589,Revenue,CAHD,Supporting People Programme,Grants to Voluntary Bodies,Bromford  :  Merlin Housing Society,15637.00, 30-Oct-2020
590,Revenue,CAHD,Supporting People Programme,Grants to Voluntary Bodies,Bromford  :  Merlin Housing Society,2741.00, 30-Oct-2020
591,Revenue,CAHD,Supporting People Programme,Grants to Voluntary Bodies,Bromford  :  Merlin Housing Society,22940.00, 30-Oct-2020
592,Revenue,CAHD,Supporting People Programme,Grants to Voluntary Bodies,Bromford  :  Merlin Housing Society,1113.00, 30-Oct-2020
593,Revenue,CAHD,South Glos Users in South Glos Homes,Permanent Nursing,Brunelcare,788.23, 22-Oct-2020
594,Revenue,CAHD,South Glos Users in South Glos Homes,Permanent Nursing,Brunelcare,788.23, 22-Oct-2020
595,Revenue,CAHD,South Glos Users in South Glos Homes,Permanent Nursing,Brunelcare,788.23, 22-Oct-2020
596,Revenue,CAHD,South Glos Users in South Glos Homes,Permanent Nursing,Brunelcare,788.23, 22-Oct-2020
597,Revenue,CAHD,South Glos Users in South Glos Homes,Permanent Nursing,Brunelcare,788.23, 22-Oct-2020
598,Revenue,CAHD,South Glos Users in South Glos Homes,Permanent Nursing,Brunelcare,788.23, 22-Oct-2020
599,Revenue,CAHD,South Glos Users in South Glos Homes,Permanent Nursing,Brunelcare,788.23, 22-Oct-2020
600,Revenue,CAHD,South Glos Users in South Glos Homes,Permanent Nursing,Brunelcare,788.23, 22-Oct-2020
601,Revenue,CAHD,South Glos Users in South Glos Homes,Permanent Nursing,Brunelcare,788.23, 22-Oct-2020
602,Revenue,CAHD,South Glos Users in South Glos Homes,Permanent Nursing,Brunelcare,788.23, 22-Oct-2020
603,Revenue,CAHD,South Glos Users in South Glos Homes,Permanent Nursing,Brunelcare,788.23, 22-Oct-2020
604,Revenue,CAHD,South Glos Users in South Glos Homes,Permanent Nursing,Brunelcare,788.23, 22-Oct-2020
605,Revenue,CAHD,South Glos Users in South Glos Homes,Permanent Nursing,Brunelcare,788.23, 22-Oct-2020
606,Revenue,CAHD,South Glos Users in South Glos Homes,Permanent Nursing,Brunelcare,1287.44, 22-Oct-2020
607,Revenue,CAHD,North - S117,Permanent Nursing,Brunelcare,3621.73, 22-Oct-2020
608,Revenue,CAHD,North - S117,Permanent Nursing,Brunelcare,3621.73, 22-Oct-2020
609,Revenue,CAHD,South - Commissioned Services,Permanent Nursing,Brunelcare,3621.73, 22-Oct-2020
610,Revenue,CAHD,South - Commissioned Services,Permanent Nursing,Brunelcare,2629.93, 22-Oct-2020
611,Revenue,CAHD,South - Commissioned Services,Permanent Nursing,Brunelcare,2796.04, 22-Oct-2020
612,Revenue,CAHD,South - Commissioned Services,Permanent Nursing,Brunelcare,2913.64, 22-Oct-2020
613,Revenue,CAHD,South - Commissioned Services,Permanent Nursing,Brunelcare,2617.24, 22-Oct-2020
614,Revenue,CAHD,South - Commissioned Services,Permanent Nursing,Brunelcare,3016.89, 22-Oct-2020
615,Revenue,CAHD,South - Commissioned Services,Permanent Nursing,Brunelcare,2085.47, 22-Oct-2020
616,Revenue,CAHD,Central - Commissioned Services,Permanent Nursing,Brunelcare,2971.41, 22-Oct-2020
617,Revenue,CAHD,South - Commissioned Services,Respite Planned - Nursing,Brunelcare,5915.49, 22-Oct-2020
618,Revenue,CAHD,North - Community based support,Permanent Nursing,Brunelcare,3621.73, 22-Oct-2020
619,Revenue,CAHD,North - Community based support,Permanent Nursing,Brunelcare,2897.53, 22-Oct-2020
620,Revenue,CAHD,North - Community based support,Permanent Nursing,Brunelcare,2886.81, 22-Oct-2020
621,Revenue,CAHD,South - Commissioned Services,Other Small Contracts,Brunelcare,15474.48, 09-Oct-2020
622,Revenue,CAHD,North - Community based support,Other Small Contracts,Brunelcare,375.76, 09-Oct-2020
623,Revenue,CAHD,South - Commissioned Services,Other Small Contracts,Brunelcare,15655.48, 09-Oct-2020
624,Revenue,CAHD,North - Community based support,Other Small Contracts,Brunelcare,361.12, 09-Oct-2020
625,Revenue,CAHD,South - Commissioned Services,Other Small Contracts,Brunelcare,15855.12, 14-Oct-2020
626,Revenue,CAHD,North - Community based support,Other Small Contracts,Brunelcare,361.12, 14-Oct-2020
627,Revenue,CAHD,South - Commissioned Services,Other Small Contracts,Brunelcare,15801.44, 21-Oct-2020
628,Revenue,CAHD,North - Community based support,Other Small Contracts,Brunelcare,356.24, 21-Oct-2020
629,Revenue,CAHD,South - Commissioned Services,Other Small Contracts,Brunelcare,15367.12, 29-Oct-2020
630,Revenue,CAHD,North - Community based support,Other Small Contracts,Brunelcare,370.88, 29-Oct-2020
631,Revenue,CAHD,South - Commissioned Services,Other Small Contracts,Brunelcare,15733.12, 29-Oct-2020
632,Revenue,CAHD,North - Community based support,Other Small Contracts,Brunelcare,356.24, 29-Oct-2020
633,Revenue,CAHD,South - Commissioned Services,Other Small Contracts,Brunelcare,15557.44, 29-Oct-2020
634,Revenue,CAHD,North - Community based support,Other Small Contracts,Brunelcare,361.12, 29-Oct-2020
635,Revenue,CAHD,North - S117,Permanent Residential,Buckland Care,3600.00, 20-Oct-2020
636,Revenue,CAHD,EARLY YEARS DISABILITY  ACCES FUND,Preventative Assistance,Butterflies (Bristol) Limited,1230.00, 16-Oct-2020
637,Revenue,CAHD,CSC - Vinney Green Secure Unit,R & M by Departments,BWS Standfast Fire & Security Systems,806.00, 19-Oct-2020
638,Revenue,CAHD,CSC - Vinney Green Secure Unit,R & M by Departments,BWS Standfast Fire & Security Systems,2508.90, 30-Oct-2020
639,Revenue,CAHD,CSC - Agency Fostering,Foster Parent Allowances,By the Bridge Ltd,4219.50, 30-Oct-2020
640,Revenue,CAHD,CSC - Agency Fostering,Foster Parent Allowances,By the Bridge Ltd,4105.71, 30-Oct-2020
641,Revenue,CAHD,Social Lettings Agency,Rent,Individual,710.96, 26-Oct-2020
642,Revenue,CAHD,Social Lettings Agency,Fees - General,Individual,16.16, 26-Oct-2020
643,Revenue,CAHD,North - Community based support,Permanent Nursing,C31465Clevedon Court Nursing Home,3448.16, 20-Oct-2020
644,Revenue,CAHD,Statemented Support Payments to OLAs,Other L.A.s - General,Cabot Learning Federation,1544.49, 01-Oct-2020
645,Revenue,CAHD,Statemented Support Payments to OLAs,Other L.A.s - General,Cabot Learning Federation,1544.49, 28-Oct-2020
646,Revenue,CAHD,Statemented Support Academies,Other Public Bodies,Cabot Learning Federation,918.71, 28-Oct-2020
647,Revenue,CAHD,Statemented Support Academies,Other Public Bodies,Cabot Learning Federation,1202.39, 28-Oct-2020
648,Revenue,CAHD,Statemented Support Academies,Other Public Bodies,Cabot Learning Federation,908.00, 28-Oct-2020
649,Revenue,CAHD,Statemented Support Academies,Other Public Bodies,Cabot Learning Federation,1666.67, 28-Oct-2020
650,Revenue,CAHD,Statemented Support Academies,Other Public Bodies,Cabot Learning Federation,1103.25, 28-Oct-2020
651,Revenue,CAHD,Statemented Support Academies,Other Public Bodies,Cabot Learning Federation,907.83, 28-Oct-2020
652,Revenue,CAHD,Statemented Support Academies,Other Public Bodies,Cabot Learning Federation,1899.58, 28-Oct-2020
653,Revenue,CAHD,Statemented Support Academies,Other Public Bodies,Cabot Learning Federation,5517.54, 28-Oct-2020
654,Revenue,CAHD,Statemented Support Academies,Other Public Bodies,Cabot Learning Federation,957.92, 28-Oct-2020
655,Revenue,CAHD,Statemented Support Academies,Other Public Bodies,Cabot Learning Federation,1654.33, 28-Oct-2020
656,Revenue,CAHD,Statemented Support Academies,Other Public Bodies,Cabot Learning Federation,4412.50, 28-Oct-2020
657,Revenue,CAHD,Statemented Support Academies,Other Public Bodies,Cabot Learning Federation,2616.63, 28-Oct-2020
658,Revenue,CAHD,Statemented Support Payments to OLAs,Other L.A.s - General,Cabot Learning Federation,1013.94, 01-Oct-2020
659,Revenue,CAHD,Statemented Support Payments to OLAs,Other L.A.s - General,Cabot Learning Federation,1013.94, 28-Oct-2020
660,Revenue,CAHD,Statemented Support Academies,Other Public Bodies,Cabot Learning Federation,658.75, 28-Oct-2020
661,Revenue,CAHD,Statemented Support Academies,Other Public Bodies,Cabot Learning Federation,1854.42, 28-Oct-2020
662,Revenue,CAHD,Statemented Support Academies,Other Public Bodies,Cabot Learning Federation,632.67, 28-Oct-2020
663,Revenue,CAHD,Statemented Support Academies,Other Public Bodies,Cabot Learning Federation,695.61, 28-Oct-2020
664,Revenue,CAHD,Statemented Support Academies,Other Public Bodies,Cabot Learning Federation,530.55, 28-Oct-2020
665,Revenue,CAHD,Statemented Support Academies,Other Public Bodies,Cabot Learning Federation,918.75, 28-Oct-2020
666,Revenue,CAHD,Statemented Support Academies,Other Public Bodies,Cabot Learning Federation,975.58, 28-Oct-2020
667,Revenue,CAHD,Statemented Support Academies,Other Public Bodies,Cabot Learning Federation,1052.92, 28-Oct-2020
668,Revenue,CAHD,Academy Resource Base Funding,Other Public Bodies,Cabot Learning Federation,1175.88, 28-Oct-2020
669,Revenue,CAHD,Academy Resource Base Funding,Other Public Bodies,Cabot Learning Federation,1702.97, 28-Oct-2020
670,Revenue,CAHD,Academy Resource Base Funding,Other Public Bodies,Cabot Learning Federation,1540.84, 28-Oct-2020
671,Revenue,CAHD,Academy Resource Base Funding,Other Public Bodies,Cabot Learning Federation,1175.88, 28-Oct-2020
672,Revenue,CAHD,Academy Resource Base Funding,Other Public Bodies,Cabot Learning Federation,1540.84, 28-Oct-2020
673,Revenue,CAHD,Academy Resource Base Funding,Other Public Bodies,Cabot Learning Federation,1175.88, 28-Oct-2020
674,Revenue,CAHD,Academy Resource Base Funding,Other Public Bodies,Cabot Learning Federation,1540.84, 28-Oct-2020
675,Revenue,CAHD,Academy Resource Base Funding,Other Public Bodies,Cabot Learning Federation,1175.88, 28-Oct-2020
676,Revenue,CAHD,Academy Resource Base Funding,Other Public Bodies,Cabot Learning Federation,1175.88, 28-Oct-2020
677,Revenue,CAHD,Academy Resource Base Funding,Other Public Bodies,Cabot Learning Federation,1702.97, 28-Oct-2020
678,Revenue,CAHD,Academy Resource Base Funding,Other Public Bodies,Cabot Learning Federation,648.69, 28-Oct-2020
679,Revenue,CAHD,Academy Resource Base Funding,Other Public Bodies,Cabot Learning Federation,1013.75, 28-Oct-2020
680,Revenue,CAHD,Academy Resource Base Funding,Other Public Bodies,Cabot Learning Federation,648.69, 28-Oct-2020
681,Revenue,CAHD,Academy Resource Base Funding,Other Public Bodies,Cabot Learning Federation,1540.84, 28-Oct-2020
682,Revenue,CAHD,Academy Resource Base Funding,Other Public Bodies,Cabot Learning Federation,2189.53, 28-Oct-2020
683,Revenue,CAHD,Academy Resource Base Funding,Other Public Bodies,Cabot Learning Federation,2189.53, 28-Oct-2020
684,Revenue,CAHD,Academy Resource Base Funding,Other Public Bodies,Cabot Learning Federation,1175.88, 28-Oct-2020
685,Revenue,CAHD,Academy Resource Base Funding,Other Public Bodies,Cabot Learning Federation,1175.88, 28-Oct-2020
686,Revenue,CAHD,Academy Resource Base Funding,Other Public Bodies,Cabot Learning Federation,1175.88, 28-Oct-2020
687,Revenue,CAHD,Academy Resource Base Funding,Other Public Bodies,Cabot Learning Federation,1175.88, 28-Oct-2020
688,Revenue,CAHD,Academy Resource Base Funding,Other Public Bodies,Cabot Learning Federation,1702.97, 28-Oct-2020
689,Revenue,CAHD,Statemented Support Payments to OLAs,Other L.A.s - General,Cabot Learning Federation,872.46, 01-Oct-2020
690,Revenue,CAHD,Statemented Support Payments to OLAs,Other L.A.s - General,Cabot Learning Federation,872.46, 28-Oct-2020
691,Revenue,CAHD,Statemented Support Academies,Other Public Bodies,Cabot Learning Federation,1421.16, 28-Oct-2020
692,Revenue,CAHD,Statemented Support Academies,Other Public Bodies,Cabot Learning Federation,804.08, 28-Oct-2020
693,Revenue,CAHD,Statemented Support Academies,Other Public Bodies,Cabot Learning Federation,554.13, 28-Oct-2020
694,Revenue,CAHD,Statemented Support Academies,Other Public Bodies,Cabot Learning Federation,742.77, 28-Oct-2020
695,Revenue,CAHD,Statemented Support Academies,Other Public Bodies,Cabot Learning Federation,778.14, 28-Oct-2020
696,Revenue,CAHD,Statemented Support Academies,Other Public Bodies,Cabot Learning Federation,813.51, 28-Oct-2020
697,Revenue,CAHD,Statemented Support Payments to OLAs,Other L.A.s - General,Cabot Learning Federation,601.29, 01-Oct-2020
698,Revenue,CAHD,Statemented Support Payments to OLAs,Other L.A.s - General,Cabot Learning Federation,601.29, 28-Oct-2020
699,Revenue,CAHD,Statemented Support Academies,Other Public Bodies,Cabot Learning Federation,1131.84, 28-Oct-2020
700,Revenue,CAHD,Statemented Support Academies,Other Public Bodies,Cabot Learning Federation,589.50, 28-Oct-2020
701,Revenue,CAHD,Statemented Support Academies,Other Public Bodies,Cabot Learning Federation,554.13, 28-Oct-2020
702,Revenue,CAHD,Statemented Support Academies,Other Public Bodies,Cabot Learning Federation,801.72, 28-Oct-2020
703,Revenue,CAHD,Statemented Support Academies,Other Public Bodies,Cabot Learning Federation,1096.47, 28-Oct-2020
704,Revenue,CAHD,Statemented Support Academies,Other Public Bodies,Cabot Learning Federation,730.98, 28-Oct-2020
705,Revenue,CAHD,Statemented Support Academies,Other Public Bodies,Cabot Learning Federation,907.83, 28-Oct-2020
706,Revenue,CAHD,Statemented Support Academies,Other Public Bodies,Cabot Learning Federation,801.92, 28-Oct-2020
707,Revenue,CAHD,Statemented Support Academies,Other Public Bodies,Cabot Learning Federation,530.55, 28-Oct-2020
708,Revenue,CAHD,Statemented Support Academies,Other Public Bodies,Cabot Learning Federation,931.41, 28-Oct-2020
709,Revenue,CAHD,Statemented Support Payments to OLAs,Other L.A.s - General,Cabot Learning Federation,7390.66, 28-Oct-2020
710,Revenue,CAHD,Statemented Support Payments to OLAs,Other L.A.s - General,Cabot Learning Federation,1072.89, 01-Oct-2020
711,Revenue,CAHD,Statemented Support Academies,Other Public Bodies,Cabot Learning Federation,577.50, 28-Oct-2020
712,Revenue,CAHD,Statemented Support Academies,Other Public Bodies,Cabot Learning Federation,966.83, 28-Oct-2020
713,Revenue,CAHD,Statemented Support Academies,Other Public Bodies,Cabot Learning Federation,872.46, 28-Oct-2020
714,Revenue,CAHD,Sexual Health,Other Small Contracts,Cadbury Heath Healthcare,1288.00, 30-Oct-2020
715,Revenue,CAHD,Sexual Health,Other Small Contracts,Cadbury Heath Healthcare,1293.90, 30-Oct-2020
716,Revenue,CAHD,NHS Health Checks,Other Small Contracts,Cadbury Heath Healthcare,2514.67, 30-Oct-2020
717,Revenue,CAHD,Drug and Alcohol Programme,Other Small Contracts,Cadbury Heath Healthcare,3045.00, 30-Oct-2020
718,Revenue,CAHD,Early Years High Needs Support,Other Private Contractors,Caerleon Childcare,515.70, 27-Oct-2020
719,Revenue,CAHD,North - Community based support,Permanent Nursing,Caernarvon House,4800.00, 20-Oct-2020
720,Revenue,CAHD,North - Community based support,Permanent Nursing,Caernarvon House,4710.40, 20-Oct-2020
721,Revenue,CAHD,North - S117,Permanent Nursing,Caernarvon House,3990.24, 20-Oct-2020
722,Revenue,CAHD,South - Commissioned Services,Permanent Nursing,Caernarvon House,4915.20, 20-Oct-2020
723,Revenue,CAHD,South - Commissioned Services,Permanent Nursing,Caernarvon House,4800.00, 20-Oct-2020
724,Revenue,CAHD,South - Commissioned Services,Permanent Nursing,Caernarvon House,4300.80, 20-Oct-2020
725,Revenue,CAHD,South - S117,Permanent Nursing,Caernarvon House,4915.20, 20-Oct-2020
726,Revenue,CAHD,South - Commissioned Services,Respite Emergency - Residential,Caernarvon House,4800.00, 20-Oct-2020
727,Revenue,CAHD,Future Bright,Training Expenses,Call of the Wild Ltd,1990.00, 16-Oct-2020
728,Revenue,CAHD,CSC - Residential Placements,Permanent Residential,Cambian Childcare Ltd,19928.66, 20-Oct-2020
729,Revenue,CAHD,CSC - Residential Placements,Permanent Residential,Cambian Childcare Ltd,19042.99, 20-Oct-2020
730,Revenue,CAHD,CSC - Residential Placements,Permanent Residential,Cambian Childcare Ltd,23250.00, 20-Oct-2020
731,Revenue,CAHD,CSC - Residential Placements,Permanent Residential,Cambian Childcare Ltd,24135.67, 20-Oct-2020
732,Revenue,CAHD,Post 16 High Needs Placements,Other Private Contractors,Cambian Whinfell School Limited,48238.15, 01-Oct-2020
733,Revenue,CAHD,Post 16 High Needs Placements,Other Private Contractors,Cambian Whinfell School Limited,39943.64, 15-Oct-2020
734,Revenue,CAHD,North - Community based support,Day Care / Social Activities,Camphill Communities Thornbury Limited,478.17, 09-Oct-2020
735,Revenue,CAHD,North - Community based support,Other Small Contracts,Camphill Communities Thornbury Limited,642.39, 09-Oct-2020
736,Revenue,CAHD,North - Community based support,Supported Living,Camphill Communities Thornbury Limited,1072.26, 09-Oct-2020
737,Revenue,CAHD,North - Community based support,Day Care / Social Activities,Camphill Communities Thornbury Limited,1164.03, 16-Oct-2020
738,Revenue,CAHD,North - Community based support,Other Small Contracts,Camphill Communities Thornbury Limited,502.32, 16-Oct-2020
739,Revenue,CAHD,North - Community based support,Supported Living,Camphill Communities Thornbury Limited,1057.77, 16-Oct-2020
740,Revenue,CAHD,North - Community based support,Day Care / Social Activities,Camphill Communities Thornbury Limited,1159.20, 21-Oct-2020
741,Revenue,CAHD,North - Community based support,Other Small Contracts,Camphill Communities Thornbury Limited,497.49, 21-Oct-2020
742,Revenue,CAHD,North - Community based support,Supported Living,Camphill Communities Thornbury Limited,1072.26, 21-Oct-2020
743,Revenue,CAHD,North - Community based support,Day Care / Social Activities,Camphill Communities Thornbury Limited,1159.20, 30-Oct-2020
744,Revenue,CAHD,North - Community based support,Other Small Contracts,Camphill Communities Thornbury Limited,502.32, 30-Oct-2020
745,Revenue,CAHD,North - Community based support,Supported Living,Camphill Communities Thornbury Limited,1067.43, 30-Oct-2020
746,Revenue,CAHD,North - S117,Permanent Residential,Canjayor,3937.76, 20-Oct-2020
747,Revenue,CAHD,CSC - Asylum Seekers - Unaccompanied,Foster Parent Allowances,Capstone Foster Care (South West) Limited,3295.80, 02-Oct-2020
748,Revenue,CAHD,Central - Commissioned Services,Other Small Contracts,Care 1st Homecare,3021.55, 22-Oct-2020
749,Revenue,CAHD,Central - Commissioned Services,Other Small Contracts,Care 1st Homecare,3003.75, 22-Oct-2020
750,Revenue,CAHD,Central - Commissioned Services,Other Small Contracts,Care 1st Homecare,3003.75, 22-Oct-2020
751,Revenue,CAHD,Central - Commissioned Services,Other Small Contracts,Care 1st Homecare,3003.75, 29-Oct-2020
752,Revenue,CAHD,North - Community based support,Supported Living,Care Horizons,5435.28, 20-Oct-2020
753,Revenue,CAHD,North - Community based support,Supported Living,Care Horizons,5435.28, 20-Oct-2020
754,Revenue,CAHD,18-25 Year Olds,Other Small Contracts,Care Horizons Limited,78.88, 07-Oct-2020
755,Revenue,CAHD,Central - Commissioned Services,Other Small Contracts,Care Horizons Limited,1168.41, 07-Oct-2020
756,Revenue,CAHD,South - Commissioned Services,Other Small Contracts,Care Horizons Limited,493.00, 07-Oct-2020
757,Revenue,CAHD,North - Community based support,Day Care / Social Activities,Care Horizons Limited,414.12, 07-Oct-2020
758,Revenue,CAHD,North - Community based support,Other Small Contracts,Care Horizons Limited,808.52, 07-Oct-2020
759,Revenue,CAHD,Younger MH non-res purchasing,Other Small Contracts,Care Horizons Limited,157.76, 07-Oct-2020
760,Revenue,CAHD,18-25 Year Olds,Other Small Contracts,Care Horizons Limited,78.88, 07-Oct-2020
761,Revenue,CAHD,Central - Commissioned Services,Other Small Contracts,Care Horizons Limited,1015.58, 07-Oct-2020
762,Revenue,CAHD,South - Commissioned Services,Other Small Contracts,Care Horizons Limited,493.00, 07-Oct-2020
763,Revenue,CAHD,North - Community based support,Day Care / Social Activities,Care Horizons Limited,389.47, 07-Oct-2020
764,Revenue,CAHD,North - Community based support,Other Small Contracts,Care Horizons Limited,670.48, 07-Oct-2020
765,Revenue,CAHD,Younger MH non-res purchasing,Other Small Contracts,Care Horizons Limited,236.64, 07-Oct-2020
766,Revenue,CAHD,Central - Commissioned Services,Other Small Contracts,Care Horizons Limited,1079.67, 09-Oct-2020
767,Revenue,CAHD,South - Commissioned Services,Other Small Contracts,Care Horizons Limited,493.00, 09-Oct-2020
768,Revenue,CAHD,North - Community based support,Day Care / Social Activities,Care Horizons Limited,276.08, 09-Oct-2020
769,Revenue,CAHD,North - Community based support,Other Small Contracts,Care Horizons Limited,655.69, 09-Oct-2020
770,Revenue,CAHD,Younger MH non-res purchasing,Other Small Contracts,Care Horizons Limited,276.08, 09-Oct-2020
771,Revenue,CAHD,Central - Commissioned Services,Other Small Contracts,Care Horizons Limited,1109.25, 22-Oct-2020
772,Revenue,CAHD,South - Commissioned Services,Other Small Contracts,Care Horizons Limited,537.37, 22-Oct-2020
773,Revenue,CAHD,North - Community based support,Other Small Contracts,Care Horizons Limited,709.92, 22-Oct-2020
774,Revenue,CAHD,Younger MH non-res purchasing,Other Small Contracts,Care Horizons Limited,236.64, 22-Oct-2020
775,Revenue,CAHD,Central - Commissioned Services,Other Small Contracts,Care Horizons Limited,1030.37, 26-Oct-2020
776,Revenue,CAHD,South - Commissioned Services,Other Small Contracts,Care Horizons Limited,483.14, 26-Oct-2020
777,Revenue,CAHD,North - Community based support,Other Small Contracts,Care Horizons Limited,685.27, 26-Oct-2020
778,Revenue,CAHD,Younger MH non-res purchasing,Other Small Contracts,Care Horizons Limited,236.64, 26-Oct-2020
779,Revenue,CAHD,EARLY YEARS DISABILITY  ACCES FUND,Preventative Assistance,Career Nature T/A Silver Stars Day Nursery,615.00, 16-Oct-2020
780,Revenue,CAHD,Covid 19 -Adult Social Care,Other Small Contracts,Carepride Ltd,9.86, 26-Oct-2020
781,Revenue,CAHD,Central - Commissioned Services,Other Small Contracts,Carepride Ltd,374.68, 26-Oct-2020
782,Revenue,CAHD,South - Commissioned Services,Other Small Contracts,Carepride Ltd,88.74, 26-Oct-2020
783,Revenue,CAHD,North - Community based support,Other Small Contracts,Carepride Ltd,172.55, 26-Oct-2020
784,Revenue,CAHD,Covid 19 -Adult Social Care,Other Small Contracts,Carepride Ltd,9.86, 27-Oct-2020
785,Revenue,CAHD,Central - Commissioned Services,Other Small Contracts,Carepride Ltd,512.72, 27-Oct-2020
786,Revenue,CAHD,South - Commissioned Services,Other Small Contracts,Carepride Ltd,39.44, 27-Oct-2020
787,Revenue,CAHD,North - Community based support,Other Small Contracts,Carepride Ltd,216.92, 27-Oct-2020
788,Revenue,CAHD,Covid 19 -Adult Social Care,Other Small Contracts,Carepride Ltd,9.86, 27-Oct-2020
789,Revenue,CAHD,Central - Commissioned Services,Other Small Contracts,Carepride Ltd,532.44, 27-Oct-2020
790,Revenue,CAHD,South - Commissioned Services,Other Small Contracts,Carepride Ltd,19.72, 27-Oct-2020
791,Revenue,CAHD,North - Community based support,Other Small Contracts,Carepride Ltd,236.64, 27-Oct-2020
792,Revenue,CAHD,Covid 19 -Adult Social Care,Other Small Contracts,Carepride Ltd,9.86, 27-Oct-2020
793,Revenue,CAHD,Central - Commissioned Services,Other Small Contracts,Carepride Ltd,488.07, 27-Oct-2020
794,Revenue,CAHD,South - Commissioned Services,Other Small Contracts,Carepride Ltd,19.72, 27-Oct-2020
795,Revenue,CAHD,North - Community based support,Other Small Contracts,Carepride Ltd,211.99, 27-Oct-2020
796,Revenue,CAHD,Covid 19 -Adult Social Care,Other Small Contracts,Carepride Ltd,9.86, 27-Oct-2020
797,Revenue,CAHD,Central - Commissioned Services,Other Small Contracts,Carepride Ltd,517.65, 27-Oct-2020
798,Revenue,CAHD,South - Commissioned Services,Other Small Contracts,Carepride Ltd,19.72, 27-Oct-2020
799,Revenue,CAHD,North - Community based support,Other Small Contracts,Carepride Ltd,231.71, 27-Oct-2020
800,Revenue,CAHD,SLA Grants - Support Serv,Grants to Voluntary Bodies,Carers Support Centre,12275.00, 01-Oct-2020
801,Revenue,CAHD,SLA Grants - Support Serv,Grants to Voluntary Bodies,Carers Support Centre,25275.00, 01-Oct-2020
802,Revenue,CAHD,Health Inequalities,Other Small Contracts,Carers Support Centre,60477.00, 01-Oct-2020
803,Revenue,CAHD,Supporting People Programme,Grants to Voluntary Bodies,Caring for Communities and People,12849.00, 02-Oct-2020
804,Revenue,CAHD,CSC - Care Leavers Independent Living,Adults - Family Support,Caring for Communities and People,1755.71, 12-Oct-2020
805,Revenue,CAHD,CSC - Care Leavers Independent Living,Independent Living,Caring for Communities and People,6335.51, 12-Oct-2020
806,Revenue,CAHD,CSC - Care Leavers Independent Living,Adults - Family Support,Caring for Communities and People,3980.40, 16-Oct-2020
807,Revenue,CAHD,CSC - Care Leavers Independent Living,Adults - Family Support,Caring for Communities and People,4738.14, 16-Oct-2020
808,Revenue,CAHD,CSC - Care Leavers Independent Living,Adults - Family Support,Caring for Communities and People,5202.74, 12-Oct-2020
809,Revenue,CAHD,Social Lettings Agency,Rent,Individual,699.32, 21-Oct-2020
810,Revenue,CAHD,Social Lettings Agency,Fees - General,Individual,20.57, 21-Oct-2020
811,Revenue,CAHD,CSC - Section 17 SOUTH,Personal Needs of Clients,Individual,500.00, 09-Oct-2020
812,Revenue,CAHD,Central - Commissioned Services,Permanent Nursing,Cash Management Team  5Th Floor,3600.00, 20-Oct-2020
813,Revenue,CAHD,North - Community based support,Permanent Nursing,Cash Management Team  5Th Floor,6137.76, 20-Oct-2020
814,Revenue,CAHD,Statemented Support Academies,Other Public Bodies,Castle School Education Trust,530.55, 28-Oct-2020
815,Revenue,CAHD,Statemented Support Academies,Other Public Bodies,Castle School Education Trust,565.92, 28-Oct-2020
816,Revenue,CAHD,Statemented Support Academies,Other Public Bodies,Castle School Education Trust,778.14, 28-Oct-2020
817,Revenue,CAHD,Statemented Support Academies,Other Public Bodies,Castle School Education Trust,931.41, 28-Oct-2020
818,Revenue,CAHD,Statemented Support Academies,Other Public Bodies,Castle School Education Trust,1643.00, 28-Oct-2020
819,Revenue,CAHD,Statemented Support Academies,Other Public Bodies,Castle School Education Trust,672.03, 28-Oct-2020
820,Revenue,CAHD,Statemented Support Academies,Other Public Bodies,Castle School Education Trust,577.71, 28-Oct-2020
821,Revenue,CAHD,Statemented Support Academies,Other Public Bodies,Castle School Education Trust,505.08, 28-Oct-2020
822,Revenue,CAHD,Statemented Support Academies,Other Public Bodies,Castle School Education Trust,1461.96, 28-Oct-2020
823,Revenue,CAHD,Statemented Support Academies,Other Public Bodies,Castle School Education Trust,1002.15, 28-Oct-2020
824,Revenue,CAHD,Statemented Support Academies,Other Public Bodies,Castle School Education Trust,613.08, 28-Oct-2020
825,Revenue,CAHD,Statemented Support Academies,Other Public Bodies,Castle School Education Trust,672.03, 28-Oct-2020
826,Revenue,CAHD,Statemented Support Academies,Other Public Bodies,Castle School Education Trust,1120.05, 28-Oct-2020
827,Revenue,CAHD,Statemented Support Academies,Other Public Bodies,Castle School Education Trust,636.66, 28-Oct-2020
828,Revenue,CAHD,Statemented Support Academies,Other Public Bodies,Castle School Education Trust,589.08, 28-Oct-2020
829,Revenue,CAHD,Statemented Support Academies,Other Public Bodies,Castle School Education Trust,954.99, 28-Oct-2020
830,Revenue,CAHD,Statemented Support Academies,Other Public Bodies,Castle School Education Trust,577.71, 28-Oct-2020
831,Revenue,CAHD,Statemented Support Academies,Other Public Bodies,Castle School Education Trust,624.87, 28-Oct-2020
832,Revenue,CAHD,Statemented Support Academies,Other Public Bodies,Castle School Education Trust,825.30, 28-Oct-2020
833,Revenue,CAHD,Statemented Support Academies,Other Public Bodies,Castle School Education Trust,1190.79, 28-Oct-2020
834,Revenue,CAHD,Statemented Support Academies,Other Public Bodies,Castle School Education Trust,848.88, 28-Oct-2020
835,Revenue,CAHD,Statemented Support Academies,Other Public Bodies,Castle School Education Trust,1237.95, 28-Oct-2020
836,Revenue,CAHD,Statemented Support Academies,Other Public Bodies,Castle School Education Trust,1061.10, 28-Oct-2020
837,Revenue,CAHD,Statemented Support Academies,Other Public Bodies,Castle School Education Trust,518.76, 28-Oct-2020
838,Revenue,CAHD,Statemented Support Academies,Other Public Bodies,Castle School Education Trust,577.71, 28-Oct-2020
839,Revenue,CAHD,Statemented Support Academies,Other Public Bodies,Castle School Education Trust,1143.63, 28-Oct-2020
840,Revenue,CAHD,Statemented Support Academies,Other Public Bodies,Castle School Education Trust,754.25, 28-Oct-2020
841,Revenue,CAHD,Statemented Support Academies,Other Public Bodies,Castle School Education Trust,1485.54, 28-Oct-2020
842,Revenue,CAHD,Statemented Support Academies,Other Public Bodies,Castle School Education Trust,888.75, 28-Oct-2020
843,Revenue,CAHD,Statemented Support Academies,Other Public Bodies,Castle School Education Trust,1261.75, 28-Oct-2020
844,Revenue,CAHD,Statemented Support Academies,Other Public Bodies,Castle School Education Trust,1322.75, 28-Oct-2020
845,Revenue,CAHD,Statemented Support Academies,Other Public Bodies,Castle School Education Trust,801.92, 28-Oct-2020
846,Revenue,CAHD,Statemented Support Academies,Other Public Bodies,Castle School Education Trust,943.17, 28-Oct-2020
847,Revenue,CAHD,Statemented Support Academies,Other Public Bodies,Castle School Education Trust,1267.50, 28-Oct-2020
848,Revenue,CAHD,Academy Resource Base Funding,Other Public Bodies,Castle School Education Trust,1702.97, 28-Oct-2020
849,Revenue,CAHD,Academy Resource Base Funding,Other Public Bodies,Castle School Education Trust,1702.97, 28-Oct-2020
850,Revenue,CAHD,Academy Resource Base Funding,Other Public Bodies,Castle School Education Trust,1702.97, 28-Oct-2020
851,Revenue,CAHD,Academy Resource Base Funding,Other Public Bodies,Castle School Education Trust,1702.97, 28-Oct-2020
852,Revenue,CAHD,Academy Resource Base Funding,Other Public Bodies,Castle School Education Trust,1702.97, 28-Oct-2020
853,Revenue,CAHD,Academy Resource Base Funding,Other Public Bodies,Castle School Education Trust,1702.97, 28-Oct-2020
854,Revenue,CAHD,Academy Resource Base Funding,Other Public Bodies,Castle School Education Trust,2189.53, 28-Oct-2020
855,Revenue,CAHD,Academy Resource Base Funding,Other Public Bodies,Castle School Education Trust,1702.97, 28-Oct-2020
856,Revenue,CAHD,Academy Resource Base Funding,Other Public Bodies,Castle School Education Trust,1702.97, 28-Oct-2020
857,Revenue,CAHD,Academy Resource Base Funding,Other Public Bodies,Castle School Education Trust,1702.97, 28-Oct-2020
858,Revenue,CAHD,Academy Resource Base Funding,Other Public Bodies,Castle School Education Trust,4946.67, 28-Oct-2020
859,Revenue,CAHD,Academy Resource Base Funding,Other Public Bodies,Castle School Education Trust,3351.00, 28-Oct-2020
860,Revenue,CAHD,Statemented Support Academies,Other Public Bodies,Castle School Education Trust,672.03, 28-Oct-2020
861,Revenue,CAHD,Statemented Support Academies,Other Public Bodies,Castle School Education Trust,1645.00, 28-Oct-2020
862,Revenue,CAHD,Statemented Support Academies,Other Public Bodies,Castle School Education Trust,872.46, 28-Oct-2020
863,Revenue,CAHD,Statemented Support Academies,Other Public Bodies,Castle School Education Trust,848.88, 28-Oct-2020
864,Revenue,CAHD,Statemented Support Academies,Other Public Bodies,Castle School Education Trust,541.58, 28-Oct-2020
865,Revenue,CAHD,Statemented Support Academies,Other Public Bodies,Castle School Education Trust,1444.17, 28-Oct-2020
866,Revenue,CAHD,Statemented Support Academies,Other Public Bodies,Castle School Education Trust,956.00, 28-Oct-2020
867,Revenue,CAHD,Statemented Support Academies,Other Public Bodies,Castle School Education Trust,1025.73, 28-Oct-2020
868,Revenue,CAHD,Statemented Support Academies,Other Public Bodies,Castle School Education Trust,630.58, 28-Oct-2020
869,Revenue,CAHD,Statemented Support Academies,Other Public Bodies,Castle School Education Trust,778.14, 28-Oct-2020
870,Revenue,CAHD,Statemented Support Academies,Other Public Bodies,Castle School Education Trust,941.58, 28-Oct-2020
871,Revenue,CAHD,Statemented Support Academies,Other Public Bodies,Castle School Education Trust,613.08, 28-Oct-2020
872,Revenue,CAHD,Schools Specific Grant Income,Other Public Bodies,Castle School Education Trust,11000.00, 16-Oct-2020
873,Revenue,CAHD,Statemented Support Academies,Other Public Bodies,Castle School Educational Turust,1129.92, 28-Oct-2020
874,Revenue,CAHD,Statemented Support Academies,Other Public Bodies,Castle School Educational Turust,1581.16, 28-Oct-2020
875,Revenue,CAHD,Statemented Support Academies,Other Public Bodies,Castle School Educational Turust,508.67, 28-Oct-2020
876,Revenue,CAHD,Statemented Support Academies,Other Public Bodies,Castle School Educational Turust,1148.20, 28-Oct-2020
877,Revenue,CAHD,Statemented Support Academies,Other Public Bodies,Castle School Educational Turust,2194.50, 28-Oct-2020
878,Revenue,CAHD,Social Lettings Agency,Rent,Individual,595.11, 01-Oct-2020
879,Revenue,CAHD,Social Lettings Agency,Fees - General,Individual,10.53, 01-Oct-2020
880,Revenue,CAHD,Social Lettings Agency,Rent,Individual,595.11, 30-Oct-2020
881,Revenue,CAHD,Social Lettings Agency,Fees - General,Individual,10.53, 30-Oct-2020
882,Revenue,CAHD,North - Community based support,Day Care / Social Activities,Causeway House,2176.64, 20-Oct-2020
883,Revenue,CAHD,South - Commissioned Services,Day Care / Social Activities,Causeway House,5358.20, 20-Oct-2020
884,Revenue,CAHD,Central - Commissioned Services,Day Care / Social Activities,Causeway House,1447.08, 20-Oct-2020
885,Revenue,CAHD,18-25 Year Olds,Day Care / Social Activities,Causeway House,4502.92, 20-Oct-2020
886,Revenue,CAHD,Central - Commissioned Services,Day Care / Social Activities,Causeway House,3671.36, 20-Oct-2020
887,Revenue,CAHD,Central - Commissioned Services,Day Care / Social Activities,Causeway House,3969.44, 20-Oct-2020
888,Revenue,CAHD,Central - Commissioned Services,Day Care / Social Activities,Causeway House,2119.20, 20-Oct-2020
889,Revenue,CAHD,North - Community based support,Day Care / Social Activities,Causeway House,3290.72, 20-Oct-2020
890,Revenue,CAHD,North - Community based support,Day Care / Social Activities,Causeway House,4902.56, 20-Oct-2020
891,Revenue,CAHD,Central - Commissioned Services,Day Care / Social Activities,Causeway House,3725.16, 20-Oct-2020
892,Revenue,CAHD,North - Community based support,Day Care / Social Activities,Causeway House,3212.08, 20-Oct-2020
893,Revenue,CAHD,North - Community based support,Day Care / Social Activities,Causeway House,579.68, 20-Oct-2020
894,Revenue,CAHD,Housing Needs,Training Expenses,Central Consultancy & Training,2097.50, 16-Oct-2020
895,Revenue,CAHD,South - Commissioned Services,Permanent Residential,Challenge House,2834.44, 20-Oct-2020
896,Revenue,CAHD,South - Commissioned Services,Permanent Residential,Challenge House,2836.00, 20-Oct-2020
897,Revenue,CAHD,North - S117,Permanent Residential,Challenge House,2571.40, 20-Oct-2020
898,Revenue,CAHD,Central - Commissioned Services,Permanent Residential,Challenge House,2800.00, 20-Oct-2020
899,Revenue,CAHD,North - Community based support,Permanent Residential,Challenge House,2233.00, 20-Oct-2020
900,Revenue,CAHD,Central - Commissioned Services,Permanent Residential,Challenge House,2365.64, 20-Oct-2020
901,Revenue,CAHD,North - Community based support,Permanent Residential,Challenge House,2363.40, 20-Oct-2020
902,Revenue,CAHD,North - Community based support,Permanent Residential,Challenge House,2834.40, 20-Oct-2020
903,Revenue,CAHD,North - Community based support,Permanent Nursing,Challenge House,3205.48, 20-Oct-2020
904,Revenue,CAHD,North - S117,Permanent Nursing,Challenge House,2453.28, 20-Oct-2020
905,Revenue,CAHD,North - Community based support,Permanent Nursing,Challenge House,2453.28, 20-Oct-2020
906,Revenue,CAHD,North - Community based support,Permanent Nursing,Challenge House,3205.48, 20-Oct-2020
907,Revenue,CAHD,South Glos Users in South Glos Homes,Permanent Nursing,Challenge House,735.68, 20-Oct-2020
908,Revenue,CAHD,Covid 19- Spend on behalf of NHS,Respite Planned - Nursing,Challenge House,8864.29, 20-Oct-2020
909,Revenue,CAHD,North - Community based support,Permanent Nursing,Challenge House,3400.00, 20-Oct-2020
910,Revenue,CAHD,South Glos Users in South Glos Homes,Permanent Nursing,Challenge House,735.68, 20-Oct-2020
911,Revenue,CAHD,South - Commissioned Services,Permanent Nursing,Challenge House,2941.88, 20-Oct-2020
912,Revenue,CAHD,South Glos Users in South Glos Homes,Permanent Nursing,Challenge House,735.68, 20-Oct-2020
913,Revenue,CAHD,North - Community based support,Permanent Nursing,Challenge House,3272.64, 20-Oct-2020
914,Revenue,CAHD,South Glos Users in South Glos Homes,Permanent Nursing,Challenge House,735.68, 20-Oct-2020
915,Revenue,CAHD,South Glos Users in South Glos Homes,Permanent Nursing,Challenge House,735.68, 20-Oct-2020
916,Revenue,CAHD,North - Community based support,Permanent Nursing,Challenge House,3405.60, 20-Oct-2020
917,Revenue,CAHD,South Glos Users in South Glos Homes,Permanent Nursing,Challenge House,735.68, 20-Oct-2020
918,Revenue,CAHD,Covid 19- Spend on behalf of NHS,Respite Planned - Nursing,Challenge House,8500.00, 20-Oct-2020
919,Revenue,CAHD,Covid 19- Spend on behalf of NHS,Respite Planned - Nursing,Challenge House,3400.00, 20-Oct-2020
920,Revenue,CAHD,South Glos Users in South Glos Homes,Permanent Nursing,Challenge House,1839.20, 20-Oct-2020
921,Revenue,CAHD,South Glos Users in South Glos Homes,Permanent Nursing,Challenge House,735.68, 20-Oct-2020
922,Revenue,CAHD,South Glos Users in South Glos Homes,Permanent Nursing,Challenge House,735.68, 20-Oct-2020
923,Revenue,CAHD,South - Commissioned Services,Permanent Residential,Challenge House,3060.00, 20-Oct-2020
924,Revenue,CAHD,South Glos Users in South Glos Homes,Permanent Nursing,Challenge House,735.68, 20-Oct-2020
925,Revenue,CAHD,South Glos Users in South Glos Homes,Permanent Nursing,Challenge House,2312.14, 20-Oct-2020
926,Revenue,CAHD,South Glos Users in South Glos Homes,Permanent Nursing,Challenge House,735.68, 20-Oct-2020
927,Revenue,CAHD,South Glos Users in South Glos Homes,Permanent Nursing,Challenge House,735.68, 20-Oct-2020
928,Revenue,CAHD,South Glos Users in South Glos Homes,Permanent Nursing,Challenge House,735.68, 20-Oct-2020
929,Revenue,CAHD,South Glos Users in South Glos Homes,Permanent Nursing,Challenge House,735.68, 20-Oct-2020
930,Revenue,CAHD,South Glos Users in South Glos Homes,Permanent Nursing,Challenge House,735.68, 20-Oct-2020
931,Revenue,CAHD,South Glos Users in South Glos Homes,Permanent Nursing,Challenge House,735.68, 20-Oct-2020
932,Revenue,CAHD,South Glos Users in South Glos Homes,Permanent Nursing,Challenge House,735.68, 20-Oct-2020
933,Revenue,CAHD,South Glos Users in South Glos Homes,Permanent Nursing,Challenge House,1655.28, 20-Oct-2020
934,Revenue,CAHD,South Glos Users in South Glos Homes,Permanent Nursing,Challenge House,735.68, 20-Oct-2020
935,Revenue,CAHD,South Glos Users in South Glos Homes,Permanent Nursing,Challenge House,4913.29, 20-Oct-2020
936,Revenue,CAHD,South Glos Users in South Glos Homes,Permanent Nursing,Challenge House,2550.10, 20-Oct-2020
937,Revenue,CAHD,South Glos Users in South Glos Homes,Permanent Nursing,Challenge House,735.68, 20-Oct-2020
938,Revenue,CAHD,North - Community based support,Permanent Nursing,Challenge House,2884.08, 20-Oct-2020
939,Revenue,CAHD,South Glos Users in South Glos Homes,Permanent Nursing,Challenge House,735.68, 20-Oct-2020
940,Revenue,CAHD,North - Community based support,Permanent Nursing,Challenge House,3243.60, 20-Oct-2020
941,Revenue,CAHD,South Glos Users in South Glos Homes,Permanent Nursing,Challenge House,735.68, 20-Oct-2020
942,Revenue,CAHD,North - Community based support,Permanent Nursing,Challenge House,3405.60, 20-Oct-2020
943,Revenue,CAHD,South Glos Users in South Glos Homes,Permanent Nursing,Challenge House,735.68, 20-Oct-2020
944,Revenue,CAHD,Central - Commissioned Services,Respite Emergency - Residential,Challenge House,867.00, 20-Oct-2020
945,Revenue,CAHD,North - Community based support,Permanent Residential,Challenge House,3121.20, 20-Oct-2020
946,Revenue,CAHD,South Glos Users in South Glos Homes,Permanent Nursing,Challenge House,735.68, 20-Oct-2020
947,Revenue,CAHD,North - Community based support,Permanent Nursing,Challenge House,2884.08, 20-Oct-2020
948,Revenue,CAHD,South Glos Users in South Glos Homes,Permanent Nursing,Challenge House,735.68, 20-Oct-2020
949,Revenue,CAHD,South Glos Users in South Glos Homes,Permanent Nursing,Challenge House,735.68, 20-Oct-2020
950,Revenue,CAHD,CSC - Care Leavers Support Costs,Personal Needs of Clients,Individual,801.87, 16-Oct-2020
951,Revenue,CAHD,EARLY YEARS DISABILITY  ACCES FUND,Preventative Assistance,Charfield Pre-School,615.00, 16-Oct-2020
952,Revenue,CAHD,Alexandra Way,"Provisions (Food, etc)",Charles Saunders Limited,522.31, 01-Oct-2020
953,Revenue,CAHD,CSC - Vinney Green Secure Unit,"Provisions (Food, etc)",Charles Saunders Limited,474.38, 16-Oct-2020
954,Revenue,CAHD,CSC - Vinney Green Secure Unit,"Provisions (Food, etc)",Charles Saunders Limited,160.37, 16-Oct-2020
955,Revenue,CAHD,Mental Capacity Act / DOLS,Legal Fees,Individual,600.00, 13-Oct-2020
956,Revenue,CAHD,Training - Adult Services,Training Expenses,Individual,1200.00, 07-Oct-2020
957,Revenue,CAHD,Statemented Support Academies,Other Public Bodies,Charlton Wood Primary Academy,702.17, 28-Oct-2020
958,Revenue,CAHD,South - Commissioned Services,Other Small Contracts,Cherish Able Care Limited,2090.76, 26-Oct-2020
959,Revenue,CAHD,Central - Commissioned Services,Other Small Contracts,Cherish Able Care Limited,1555.26, 07-Oct-2020
960,Revenue,CAHD,South - Commissioned Services,Other Small Contracts,Cherish Able Care Limited,4616.76, 07-Oct-2020
961,Revenue,CAHD,North - Community based support,Other Small Contracts,Cherish Able Care Limited,753.48, 07-Oct-2020
962,Revenue,CAHD,Central - Commissioned Services,Other Small Contracts,Cherish Able Care Limited,2415.00, 13-Oct-2020
963,Revenue,CAHD,South - Commissioned Services,Other Small Contracts,Cherish Able Care Limited,5032.14, 13-Oct-2020
964,Revenue,CAHD,North - Community based support,Other Small Contracts,Cherish Able Care Limited,753.48, 13-Oct-2020
965,Revenue,CAHD,Central - Commissioned Services,Other Small Contracts,Cherish Able Care Limited,2434.32, 26-Oct-2020
966,Revenue,CAHD,South - Commissioned Services,Other Small Contracts,Cherish Able Care Limited,4595.52, 26-Oct-2020
967,Revenue,CAHD,North - Community based support,Other Small Contracts,Cherish Able Care Limited,792.12, 26-Oct-2020
968,Revenue,CAHD,Central - Commissioned Services,Other Small Contracts,Cherish Able Care Limited,2424.66, 27-Oct-2020
969,Revenue,CAHD,South - Commissioned Services,Other Small Contracts,Cherish Able Care Limited,5807.75, 27-Oct-2020
970,Revenue,CAHD,North - Community based support,Other Small Contracts,Cherish Able Care Limited,883.89, 27-Oct-2020
971,Revenue,CAHD,South - Commissioned Services,Supported Living,Cherry Orchards,1313.76, 07-Oct-2020
972,Revenue,CAHD,18-25 Year Olds,Other Small Contracts,Cherry Orchards,1622.88, 07-Oct-2020
973,Revenue,CAHD,South - Commissioned Services,Other Small Contracts,Cherry Orchards,6491.52, 09-Oct-2020
974,Revenue,CAHD,South - Commissioned Services,Supported Living,Cherry Orchards,2085.84, 20-Oct-2020
975,Revenue,CAHD,18-25 Year Olds,Supported Living,Cherry Orchards,2030.52, 20-Oct-2020
976,Revenue,CAHD,North - Community based support,Supported Living,Cherry Orchards,1042.96, 20-Oct-2020
977,Revenue,CAHD,S28A cases,Permanent Residential,Chescombe Trust Ltd,9959.72, 20-Oct-2020
978,Revenue,CAHD,EARLY YEARS DISABILITY  ACCES FUND,Preventative Assistance,Chipping Sodbury Pre School,1230.00, 16-Oct-2020
979,Revenue,CAHD,School Improvement and Support,Conference Expenses,Chris Lubbe Inspirational Speaker,500.00, 30-Oct-2020
980,Revenue,CAHD,CSC - Legal Fees,Legal Fees,Individual,950.00, 22-Oct-2020
981,Revenue,CAHD,18-25 Year Olds,Other Small Contracts,Cintre,846.60, 08-Oct-2020
982,Revenue,CAHD,Central - Commissioned Services,Other Small Contracts,Cintre,199.20, 08-Oct-2020
983,Revenue,CAHD,South - Commissioned Services,Other Small Contracts,Cintre,1055.76, 08-Oct-2020
984,Revenue,CAHD,18-25 Year Olds,Other Small Contracts,Cintre,846.60, 09-Oct-2020
985,Revenue,CAHD,Central - Commissioned Services,Other Small Contracts,Cintre,79.68, 09-Oct-2020
986,Revenue,CAHD,South - Commissioned Services,Other Small Contracts,Cintre,1005.96, 09-Oct-2020
987,Revenue,CAHD,18-25 Year Olds,Other Small Contracts,Cintre,846.60, 13-Oct-2020
988,Revenue,CAHD,Central - Commissioned Services,Other Small Contracts,Cintre,79.68, 13-Oct-2020
989,Revenue,CAHD,South - Commissioned Services,Other Small Contracts,Cintre,1015.92, 13-Oct-2020
990,Revenue,CAHD,18-25 Year Olds,Other Small Contracts,Cintre,846.60, 22-Oct-2020
991,Revenue,CAHD,Central - Commissioned Services,Other Small Contracts,Cintre,159.36, 22-Oct-2020
992,Revenue,CAHD,South - Commissioned Services,Other Small Contracts,Cintre,1105.56, 22-Oct-2020
993,Revenue,CAHD,Learning Difficulties,Premises Hire,Circadian Trust,910.00, 30-Oct-2020
994,Revenue,CAHD,Learning Difficulties,Premises Hire,Circadian Trust,980.00, 30-Oct-2020
995,Revenue,CAHD,Learning Difficulties Development Fund,Other Supplies & Services,Circles South West Ltd,3285.00, 22-Oct-2020
996,Revenue,CAHD,South - Commissioned Services,Permanent Residential,Clearwater Care,5280.28, 20-Oct-2020
997,Revenue,CAHD,South - Commissioned Services,Permanent Residential,Cleeve Lodge,3760.12, 20-Oct-2020
998,Revenue,CAHD,South - Commissioned Services,Permanent Residential,Cleeve Lodge,3760.12, 20-Oct-2020
999,Revenue,CAHD,South - Commissioned Services,Permanent Residential,Cleeve Lodge,1334.60, 20-Oct-2020
1000,Revenue,CAHD,South - Commissioned Services,Permanent Residential,Cleeve Lodge,2980.12, 20-Oct-2020
1001,Revenue,CAHD,South - Commissioned Services,Permanent Residential,Cleeve Lodge,4400.00, 20-Oct-2020
1002,Revenue,CAHD,North - Community based support,Permanent Residential,Cleeve Lodge,15871.43, 20-Oct-2020
1003,Revenue,CAHD,North - Community based support,Permanent Residential,Cleeve Lodge,4400.00, 20-Oct-2020
1004,Revenue,CAHD,South - Commissioned Services,Permanent Residential,Cleeve Lodge,4000.00, 20-Oct-2020
1005,Revenue,CAHD,South - Commissioned Services,Permanent Residential,Cleeve Lodge,2950.88, 20-Oct-2020
1006,Revenue,CAHD,South - Commissioned Services,Respite Planned - Residential,Cleeve Lodge,4114.29, 20-Oct-2020
1007,Revenue,CAHD,Covid - ASC - Infection Control,Grants to Voluntary Bodies,Cleeve Lodge,11498.18, 28-Oct-2020
1008,Revenue,CAHD,Central - Commissioned Services,Respite Planned - Residential,Cleeve Lodge,15428.57, 26-Oct-2020
1009,Revenue,CAHD,Tobacco Control,Other Small Contracts,Cleeve Wood Pharmacy,641.66, 28-Oct-2020
1010,Revenue,CAHD,Tobacco Control,Drugs & Medical Supplies,Cleeve Wood Pharmacy,563.81, 28-Oct-2020
1011,Revenue,CAHD,Sexual Health,Other Small Contracts,Close Farm Surgery,724.50, 29-Oct-2020
1012,Revenue,CAHD,Sexual Health,Other Small Contracts,Close Farm Surgery,791.48, 29-Oct-2020
1013,Revenue,CAHD,NHS Health Checks,Other Small Contracts,Close Farm Surgery,1165.33, 29-Oct-2020
1014,Revenue,CAHD,Drug and Alcohol Programme,Other Small Contracts,Close Farm Surgery,778.17, 29-Oct-2020
1015,Revenue,CAHD,Central - Commissioned Services,Other Small Contracts,Clover Health and Home Care Ltd,509.76, 13-Oct-2020
1016,Revenue,CAHD,Central - Commissioned Services,Other Small Contracts,Clover Health and Home Care Ltd,637.20, 23-Oct-2020
1017,Revenue,CAHD,Central - Commissioned Services,Other Small Contracts,Clover Health and Home Care Ltd,870.84, 08-Oct-2020
1018,Revenue,CAHD,Central - Commissioned Services,Other Small Contracts,Clover Health and Home Care Ltd,892.08, 23-Oct-2020
1019,Revenue,CAHD,Pathway 1 - Re-Ablement Home Care,Other Small Contracts,Clover Health and Home Care Ltd,546.93, 21-Oct-2020
1020,Revenue,CAHD,Health Inequalities,Other Small Contracts,Cohesian Consultancy,500.00, 01-Oct-2020
1021,Revenue,CAHD,SLA Grants - Support Serv,Grants to Voluntary Bodies,Cohesian Consultancy,500.00, 01-Oct-2020
1022,Revenue,CAHD,North - Community based support,Permanent Residential,Collingwood Care Home,3000.00, 20-Oct-2020
1023,Revenue,CAHD,South - Commissioned Services,Permanent Residential,Collingwood Care Home,2554.36, 20-Oct-2020
1024,Revenue,CAHD,South - Commissioned Services,Permanent Residential,Community Theraputic Services,7893.40, 20-Oct-2020
1025,Revenue,CAHD,Jointly Funded H&SC Packages,Permanent Residential,Community Theraputic Services,4875.84, 20-Oct-2020
1026,Revenue,CAHD,North - Community based support,Permanent Residential,Community Theraputic Services,8119.76, 20-Oct-2020
1027,Revenue,CAHD,Jointly Funded H&SC Packages,Permanent Residential,Community Theraputic Services,2027.52, 20-Oct-2020
1028,Revenue,CAHD,Sexual Health,Other Small Contracts,Concord Medical Centre,2254.00, 29-Oct-2020
1029,Revenue,CAHD,Sexual Health,Other Small Contracts,Concord Medical Centre,2181.75, 29-Oct-2020
1030,Revenue,CAHD,NHS Health Checks,Other Small Contracts,Concord Medical Centre,1479.67, 29-Oct-2020
1031,Revenue,CAHD,Drug and Alcohol Programme,Other Small Contracts,Concord Medical Centre,812.00, 29-Oct-2020
1032,Revenue,CAHD,Sexual Health,Other Small Contracts,Coniston Medical Practice,1307.67, 29-Oct-2020
1033,Revenue,CAHD,NHS Health Checks,Other Small Contracts,Coniston Medical Practice,605.67, 29-Oct-2020
1034,Revenue,CAHD,Drug and Alcohol Programme,Other Small Contracts,Coniston Medical Practice,1454.83, 29-Oct-2020
1035,Revenue,CAHD,Bed and Breakfast,Bed & Breakfast,Connolly & Callaghan Limited,422.80, 05-Oct-2020
1036,Revenue,CAHD,Bed and Breakfast,Bed & Breakfast,Connolly & Callaghan Limited,422.80, 05-Oct-2020
1037,Revenue,CAHD,Bed and Breakfast,Bed & Breakfast,Connolly & Callaghan Limited,642.40, 06-Oct-2020
1038,Revenue,CAHD,Bed and Breakfast,Bed & Breakfast,Connolly & Callaghan Limited,422.80, 06-Oct-2020
1039,Revenue,CAHD,Bed and Breakfast,Bed & Breakfast,Connolly & Callaghan Limited,422.80, 06-Oct-2020
1040,Revenue,CAHD,Bed and Breakfast,Bed & Breakfast,Connolly & Callaghan Limited,422.80, 12-Oct-2020
1041,Revenue,CAHD,Bed and Breakfast,Bed & Breakfast,Connolly & Callaghan Limited,679.00, 12-Oct-2020
1042,Revenue,CAHD,Bed and Breakfast,Bed & Breakfast,Connolly & Callaghan Limited,593.60, 06-Oct-2020
1043,Revenue,CAHD,Bed and Breakfast,Bed & Breakfast,Connolly & Callaghan Limited,515.90, 06-Oct-2020
1044,Revenue,CAHD,Bed and Breakfast,Bed & Breakfast,Connolly & Callaghan Limited,422.80, 14-Oct-2020
1045,Revenue,CAHD,Bed and Breakfast,Bed & Breakfast,Connolly & Callaghan Limited,422.80, 14-Oct-2020
1046,Revenue,CAHD,Bed and Breakfast,Bed & Breakfast,Connolly & Callaghan Limited,422.80, 23-Oct-2020
1047,Revenue,CAHD,Bed and Breakfast,Bed & Breakfast,Connolly & Callaghan Limited,679.00, 16-Oct-2020
1048,Revenue,CAHD,Bed and Breakfast,Bed & Breakfast,Connolly & Callaghan Limited,593.60, 23-Oct-2020
1049,Revenue,CAHD,Bed and Breakfast,Bed & Breakfast,Connolly & Callaghan Limited,515.90, 14-Oct-2020
1050,Revenue,CAHD,Bed and Breakfast,Bed & Breakfast,Connolly & Callaghan Limited,457.00, 23-Oct-2020
1051,Revenue,CAHD,Bed and Breakfast,Bed & Breakfast,Connolly & Callaghan Limited,422.80, 22-Oct-2020
1052,Revenue,CAHD,Bed and Breakfast,Bed & Breakfast,Connolly & Callaghan Limited,422.80, 23-Oct-2020
1053,Revenue,CAHD,Bed and Breakfast,Bed & Breakfast,Connolly & Callaghan Limited,679.00, 23-Oct-2020
1054,Revenue,CAHD,Bed and Breakfast,Bed & Breakfast,Connolly & Callaghan Limited,593.60, 23-Oct-2020
1055,Revenue,CAHD,Bed and Breakfast,Bed & Breakfast,Connolly & Callaghan Limited,515.90, 20-Oct-2020
1056,Revenue,CAHD,CSC - Care Leavers Independent Living,Adults - Family Support,Connolly & Callaghan Limited,450.00, 20-Oct-2020
1057,Revenue,CAHD,Bed and Breakfast,Bed & Breakfast,Connolly & Callaghan Limited,422.80, 28-Oct-2020
1058,Revenue,CAHD,Bed and Breakfast,Bed & Breakfast,Connolly & Callaghan Limited,422.80, 28-Oct-2020
1059,Revenue,CAHD,Bed and Breakfast,Bed & Breakfast,Connolly & Callaghan Limited,679.00, 28-Oct-2020
1060,Revenue,CAHD,Bed and Breakfast,Bed & Breakfast,Connolly & Callaghan Limited,593.60, 28-Oct-2020
1061,Revenue,CAHD,Bed and Breakfast,Bed & Breakfast,Connolly & Callaghan Limited,515.90, 29-Oct-2020
1062,Revenue,CAHD,Pathway 1 - Re-Ablement Home Care,Day Care / Social Activities,Cornwall County Council,218931.34, 29-Oct-2020
1063,Revenue,CAHD,Independent Special Placements - Pre 16,Other Private Contractors,Cotswold Chine School,25793.63, 19-Oct-2020
1064,Revenue,CAHD,Alexandra Way,Cleaning & Domestic Services,Countrywide Healthcare Supplies Ltd,848.65, 01-Oct-2020
1065,Revenue,CAHD,Alexandra Way,Cleaning & Domestic Services,Countrywide Healthcare Supplies Ltd,439.97, 06-Oct-2020
1066,Revenue,CAHD,Alexandra Way,Cleaning & Domestic Services,Countrywide Healthcare Supplies Ltd,520.63, 20-Oct-2020
1067,Revenue,CAHD,North - Community based support,Permanent Residential,Court House Residential C.H.,3400.00, 20-Oct-2020
1068,Revenue,CAHD,North - Community based support,Fees & Charges Income - General,Court House Residential C.H.,680.46, 20-Oct-2020
1069,Revenue,CAHD,Early Years Inclusion Fund,Other Public Bodies,Courtney Ladybirds Pre-School,2450.00, 19-Oct-2020
1070,Revenue,CAHD,Sexual Health,Other Small Contracts,Courtside Surgery,1824.67, 29-Oct-2020
1071,Revenue,CAHD,Sexual Health,Other Small Contracts,Courtside Surgery,2295.07, 29-Oct-2020
1072,Revenue,CAHD,NHS Health Checks,Other Small Contracts,Courtside Surgery,1947.33, 29-Oct-2020
1073,Revenue,CAHD,Drug and Alcohol Programme,Other Small Contracts,Courtside Surgery,1624.00, 29-Oct-2020
1074,Revenue,CAHD,S28A cases,Permanent Residential,Creedy Court,10597.96, 20-Oct-2020
1075,Revenue,CAHD,S28A cases,Permanent Residential,Creedy Court,8904.92, 20-Oct-2020
1076,Revenue,CAHD,North - Community based support,Permanent Residential,Creedy Court,14054.00, 20-Oct-2020
1077,Revenue,CAHD,Early Years Inclusion Fund,Other Public Bodies,Crossways Pre-School,2000.00, 21-Oct-2020
1078,Revenue,CAHD,Future Bright,Fees - General,CVJS Inspired Forest Schools,875.00, 02-Oct-2020
1079,Revenue,CAHD,Central - Commissioned Services,Supported Living,Cygnet Healthcare Limited,3304.00, 20-Oct-2020
1080,Revenue,CAHD,South - Commissioned Services,Permanent Residential,Daneswood,12759.56, 20-Oct-2020
1081,Revenue,CAHD,South - Commissioned Services,Day Care / Social Activities,Daneswood,1441.60, 20-Oct-2020
1082,Revenue,CAHD,North - Community based support,Permanent Residential,Daneswood,13579.68, 20-Oct-2020
1083,Revenue,CAHD,South - S117,Permanent Nursing,Danshell Healthcare Group,11437.64, 20-Oct-2020
1084,Revenue,CAHD,Jointly Funded H&SC Packages,Permanent Nursing,Danshell Healthcare Group,1697.16, 20-Oct-2020
1085,Revenue,CAHD,Learning Difficulties PSL,Rent,Individual,2400.00, 22-Oct-2020
1086,Revenue,CAHD,School Caretaker Houses R&M,Prop.Serv. General Repairs,Davis Roofing Limited,1385.00, 16-Oct-2020
1087,Revenue,CAHD,Drug and Alcohol Programme,Other Small Contracts,Day Lewis - Horfield Branch,975.00, 28-Oct-2020
1088,Revenue,CAHD,South - Commissioned Services,Day Care / Social Activities,Deafblind Uk,767.82, 16-Oct-2020
1089,Revenue,CAHD,Central - Commissioned Services,Permanent Residential,Debt Recovery,4173.72, 20-Oct-2020
1090,Revenue,CAHD,South - Commissioned Services,Permanent Residential,Debt Recovery,4266.36, 20-Oct-2020
1091,Revenue,CAHD,North - Community based support,Permanent Nursing,Debt Recovery,4478.12, 20-Oct-2020
1092,Revenue,CAHD,North - Community based support,Permanent Nursing,Debt Recovery,3687.20, 20-Oct-2020
1093,Revenue,CAHD,Central - Commissioned Services,Permanent Residential,Debt Recovery,4617.04, 20-Oct-2020
1094,Revenue,CAHD,North - Community based support,Permanent Nursing,Debt Recovery,36232.06, 20-Oct-2020
1095,Revenue,CAHD,North - Community based support,Permanent Nursing,Debt Recovery,5604.96, 20-Oct-2020
1096,Revenue,CAHD,Jointly Funded H&SC Packages,Permanent Nursing,Debt Recovery,2497.56, 20-Oct-2020
1097,Revenue,CAHD,North - Community based support,Fees & Charges Income - General,Debt Recovery,5270.46, 20-Oct-2020
1098,Revenue,CAHD,North - Community based support,Permanent Nursing,Debt Recovery,3586.16, 20-Oct-2020
1099,Revenue,CAHD,Central - Commissioned Services,Permanent Nursing,Debt Recovery,5568.36, 20-Oct-2020
1100,Revenue,CAHD,North - Community based support,Permanent Residential,Debt Recovery,3643.92, 20-Oct-2020
1101,Revenue,CAHD,North - Community based support,Permanent Nursing,Debt Recovery,40787.24, 20-Oct-2020
1102,Revenue,CAHD,North - Community based support,Permanent Nursing,Debt Recovery,6274.96, 20-Oct-2020
1103,Revenue,CAHD,North - Community based support,Permanent Nursing,Debt Recovery,4121.24, 20-Oct-2020
1104,Revenue,CAHD,South Glos Users in South Glos Homes,Permanent Nursing,Deerhurst Nursing Home,735.68, 20-Oct-2020
1105,Revenue,CAHD,South - Commissioned Services,Permanent Nursing,Deerhurst Nursing Home,3881.40, 20-Oct-2020
1106,Revenue,CAHD,South Glos Users in South Glos Homes,Permanent Nursing,Deerhurst Nursing Home,735.68, 20-Oct-2020
1107,Revenue,CAHD,South - Commissioned Services,Respite Planned - Residential,Deerhurst Nursing Home,6397.86, 20-Oct-2020
1108,Revenue,CAHD,South Glos Users in South Glos Homes,Permanent Nursing,Deerhurst Nursing Home,735.68, 20-Oct-2020
1109,Revenue,CAHD,South - Commissioned Services,Permanent Nursing,Deerhurst Nursing Home,4400.00, 20-Oct-2020
1110,Revenue,CAHD,South Glos Users in South Glos Homes,Permanent Nursing,Deerhurst Nursing Home,735.68, 20-Oct-2020
1111,Revenue,CAHD,South - Commissioned Services,Day Care / Social Activities,Deerhurst Nursing Home,568.16, 20-Oct-2020
1112,Revenue,CAHD,South Glos Users in South Glos Homes,Permanent Nursing,Deerhurst Nursing Home,735.68, 20-Oct-2020
1113,Revenue,CAHD,South - Commissioned Services,Permanent Nursing,Deerhurst Nursing Home,4098.52, 20-Oct-2020
1114,Revenue,CAHD,South Glos Users in South Glos Homes,Permanent Nursing,Deerhurst Nursing Home,735.68, 20-Oct-2020
1115,Revenue,CAHD,South - Commissioned Services,Permanent Nursing,Deerhurst Nursing Home,4006.00, 20-Oct-2020
1116,Revenue,CAHD,South Glos Users in South Glos Homes,Permanent Nursing,Deerhurst Nursing Home,735.68, 20-Oct-2020
1117,Revenue,CAHD,North - Community based support,Permanent Nursing,Deerhurst Nursing Home,3891.20, 20-Oct-2020
1118,Revenue,CAHD,South - Commissioned Services,Permanent Nursing,Deerhurst Nursing Home,3965.12, 20-Oct-2020
1119,Revenue,CAHD,South Glos Users in South Glos Homes,Permanent Nursing,Deerhurst Nursing Home,735.68, 20-Oct-2020
1120,Revenue,CAHD,North - Community based support,Permanent Nursing,Deerhurst Nursing Home,4140.00, 20-Oct-2020
1121,Revenue,CAHD,South - Commissioned Services,Permanent Nursing,Deerhurst Nursing Home,4129.40, 20-Oct-2020
1122,Revenue,CAHD,South - Commissioned Services,Day Care / Social Activities,Deerhurst Nursing Home,568.16, 20-Oct-2020
1123,Revenue,CAHD,South - Commissioned Services,Permanent Nursing,Deerhurst Nursing Home,4088.08, 20-Oct-2020
1124,Revenue,CAHD,South Glos Users in South Glos Homes,Permanent Nursing,Deerhurst Nursing Home,735.68, 20-Oct-2020
1125,Revenue,CAHD,South - bed purchasing and direct  payments,Permanent Nursing,Deerhurst Nursing Home,4084.08, 20-Oct-2020
1126,Revenue,CAHD,South Glos Users in South Glos Homes,Permanent Nursing,Deerhurst Nursing Home,735.68, 20-Oct-2020
1127,Revenue,CAHD,South Glos Users in South Glos Homes,Permanent Nursing,Deerhurst Nursing Home,735.68, 20-Oct-2020
1128,Revenue,CAHD,South Glos Users in South Glos Homes,Permanent Nursing,Deerhurst Nursing Home,735.68, 20-Oct-2020
1129,Revenue,CAHD,North - Community based support,Permanent Nursing,Deerhurst Nursing Home,4088.08, 20-Oct-2020
1130,Revenue,CAHD,South Glos Users in South Glos Homes,Permanent Nursing,Deerhurst Nursing Home,735.68, 20-Oct-2020
1131,Revenue,CAHD,South - Commissioned Services,Permanent Nursing,Deerhurst Nursing Home,4086.08, 20-Oct-2020
1132,Revenue,CAHD,South Glos Users in South Glos Homes,Permanent Nursing,Deerhurst Nursing Home,735.68, 20-Oct-2020
1133,Revenue,CAHD,South Glos Users in South Glos Homes,Permanent Nursing,Deerhurst Nursing Home,735.68, 20-Oct-2020
1134,Revenue,CAHD,South - Commissioned Services,Permanent Nursing,Deerhurst Nursing Home,3969.04, 20-Oct-2020
1135,Revenue,CAHD,South Glos Users in South Glos Homes,Permanent Nursing,Deerhurst Nursing Home,735.68, 20-Oct-2020
1136,Revenue,CAHD,South Glos Users in South Glos Homes,Permanent Nursing,Deerhurst Nursing Home,735.68, 20-Oct-2020
1137,Revenue,CAHD,South - Commissioned Services,Permanent Nursing,Deerhurst Nursing Home,4132.00, 20-Oct-2020
1138,Revenue,CAHD,South Glos Users in South Glos Homes,Permanent Nursing,Deerhurst Nursing Home,735.68, 20-Oct-2020
1139,Revenue,CAHD,South Glos Users in South Glos Homes,Permanent Nursing,Deerhurst Nursing Home,735.68, 20-Oct-2020
1140,Revenue,CAHD,South Glos Users in South Glos Homes,Permanent Nursing,Deerhurst Nursing Home,735.68, 20-Oct-2020
1141,Revenue,CAHD,South Glos Users in South Glos Homes,Permanent Nursing,Deerhurst Nursing Home,735.68, 20-Oct-2020
1142,Revenue,CAHD,South Glos Users in South Glos Homes,Permanent Nursing,Deerhurst Nursing Home,735.68, 20-Oct-2020
1143,Revenue,CAHD,North - Community based support,Permanent Nursing,Deerhurst Nursing Home,4006.00, 20-Oct-2020
1144,Revenue,CAHD,South Glos Users in South Glos Homes,Permanent Nursing,Deerhurst Nursing Home,735.68, 20-Oct-2020
1145,Revenue,CAHD,South - Commissioned Services,Permanent Nursing,Deerhurst Nursing Home,4085.36, 20-Oct-2020
1146,Revenue,CAHD,South Glos Users in South Glos Homes,Permanent Nursing,Deerhurst Nursing Home,735.68, 20-Oct-2020
1147,Revenue,CAHD,South Glos Users in South Glos Homes,Permanent Nursing,Deerhurst Nursing Home,735.68, 20-Oct-2020
1148,Revenue,CAHD,South Glos Users in South Glos Homes,Permanent Nursing,Deerhurst Nursing Home,735.68, 20-Oct-2020
1149,Revenue,CAHD,South - Commissioned Services,Permanent Nursing,Deerhurst Nursing Home,4006.00, 20-Oct-2020
1150,Revenue,CAHD,South - Commissioned Services,Permanent Residential,Deerhurst Nursing Home,4129.00, 20-Oct-2020
1151,Revenue,CAHD,South Glos Users in South Glos Homes,Permanent Nursing,Deerhurst Nursing Home,735.68, 20-Oct-2020
1152,Revenue,CAHD,South Glos Users in South Glos Homes,Permanent Nursing,Deerhurst Nursing Home,735.68, 20-Oct-2020
1153,Revenue,CAHD,South - Commissioned Services,Permanent Nursing,Deerhurst Nursing Home,4006.00, 20-Oct-2020
1154,Revenue,CAHD,South - Commissioned Services,Permanent Residential,Deerhurst Nursing Home,3891.20, 20-Oct-2020
1155,Revenue,CAHD,South Glos Users in South Glos Homes,Permanent Nursing,Deerhurst Nursing Home,735.68, 20-Oct-2020
1156,Revenue,CAHD,North - Community based support,Permanent Nursing,Deerhurst Nursing Home,3094.88, 20-Oct-2020
1157,Revenue,CAHD,South Glos Users in South Glos Homes,Permanent Nursing,Deerhurst Nursing Home,735.68, 20-Oct-2020
1158,Revenue,CAHD,South Glos Users in South Glos Homes,Permanent Nursing,Deerhurst Nursing Home,735.68, 20-Oct-2020
1159,Revenue,CAHD,South Glos Users in South Glos Homes,Permanent Nursing,Deerhurst Nursing Home,735.68, 20-Oct-2020
1160,Revenue,CAHD,South Glos Users in South Glos Homes,Permanent Nursing,Deerhurst Nursing Home,735.68, 20-Oct-2020
1161,Revenue,CAHD,South Glos Users in South Glos Homes,Permanent Nursing,Deerhurst Nursing Home,735.68, 20-Oct-2020
1162,Revenue,CAHD,Covid - ASC - Infection Control,Grants to Voluntary Bodies,Deerhurst Nursing Home,22996.35, 28-Oct-2020
1163,Revenue,CAHD,South - Commissioned Services,Supported Living,Design House,2714.44, 20-Oct-2020
1164,Revenue,CAHD,South - Commissioned Services,Other Small Contracts,Design House,3124.28, 20-Oct-2020
1165,Revenue,CAHD,South - Commissioned Services,Supported Living,Design House,3053.16, 20-Oct-2020
1166,Revenue,CAHD,South - Commissioned Services,Day Care / Social Activities,Design House,526.72, 20-Oct-2020
1167,Revenue,CAHD,18-25 Year Olds,Supported Living,Design House,2370.48, 20-Oct-2020
1168,Revenue,CAHD,18-25 Year Olds,Supported Living,Design House,1952.16, 20-Oct-2020
1169,Revenue,CAHD,Central - Commissioned Services,Day Care / Social Activities,Design House,2991.44, 20-Oct-2020
1170,Revenue,CAHD,South - Commissioned Services,Day Care / Social Activities,Design House,1317.04, 20-Oct-2020
1171,Revenue,CAHD,South - Commissioned Services,Day Care / Social Activities,Design House,939.72, 20-Oct-2020
1172,Revenue,CAHD,South - Commissioned Services,Supported Living,Design House,2691.36, 20-Oct-2020
1173,Revenue,CAHD,South - Commissioned Services,Supported Living,Design House,2691.36, 20-Oct-2020
1174,Revenue,CAHD,South - Commissioned Services,Other Small Contracts,Design House,2192.32, 20-Oct-2020
1175,Revenue,CAHD,South - Commissioned Services,Day Care / Social Activities,Design House,526.72, 20-Oct-2020
1176,Revenue,CAHD,South - Commissioned Services,Supported Living,Design House,1934.44, 20-Oct-2020
1177,Revenue,CAHD,South - Commissioned Services,Other Small Contracts,Design House,2566.92, 20-Oct-2020
1178,Revenue,CAHD,South - Commissioned Services,Supported Living,Design House,4393.28, 20-Oct-2020
1179,Revenue,CAHD,North - Community based support,Supported Living,Design House,3115.32, 20-Oct-2020
1180,Revenue,CAHD,South - Commissioned Services,Day Care / Social Activities,Design House,1536.08, 20-Oct-2020
1181,Revenue,CAHD,South - Commissioned Services,Supported Living,Design House,2983.16, 20-Oct-2020
1182,Revenue,CAHD,South - Commissioned Services,Supported Living,Design House,2593.64, 20-Oct-2020
1183,Revenue,CAHD,South - Commissioned Services,Supported Living,Design House,2302.64, 20-Oct-2020
1184,Revenue,CAHD,South - Commissioned Services,Supported Living,Design House,2302.64, 20-Oct-2020
1185,Revenue,CAHD,Future Bright,Fees - General,Distance Learning College & Training,416.67, 16-Oct-2020
1186,Revenue,CAHD,Family and Young People Support South,Legal Fees,Individual,16250.00, 21-Oct-2020
1187,Revenue,CAHD,Sexual Health,Other Small Contracts,Downend Health Group,3085.83, 29-Oct-2020
1188,Revenue,CAHD,Sexual Health,Other Small Contracts,Downend Health Group,2391.66, 29-Oct-2020
1189,Revenue,CAHD,NHS Health Checks,Other Small Contracts,Downend Health Group,4906.67, 29-Oct-2020
1190,Revenue,CAHD,Drug and Alcohol Programme,Other Small Contracts,Downend Health Group,5717.83, 29-Oct-2020
1191,Revenue,CAHD,High Risk Group Funding,Other Public Bodies,Downend School,1140.00, 09-Oct-2020
1192,Revenue,CAHD,Statemented Support Academies,Other Public Bodies,Downend School,978.57, 28-Oct-2020
1193,Revenue,CAHD,Statemented Support Academies,Other Public Bodies,Downend School,660.24, 28-Oct-2020
1194,Revenue,CAHD,Statemented Support Academies,Other Public Bodies,Downend School,1025.73, 28-Oct-2020
1195,Revenue,CAHD,Statemented Support Academies,Other Public Bodies,Downend School,1013.94, 28-Oct-2020
1196,Revenue,CAHD,Statemented Support Academies,Other Public Bodies,Downend School,801.72, 28-Oct-2020
1197,Revenue,CAHD,Statemented Support Academies,Other Public Bodies,Downend School,1108.26, 28-Oct-2020
1198,Revenue,CAHD,Statemented Support Academies,Other Public Bodies,Downend School,554.13, 28-Oct-2020
1199,Revenue,CAHD,Statemented Support Academies,Other Public Bodies,Downend School,666.00, 28-Oct-2020
1200,Revenue,CAHD,Statemented Support Academies,Other Public Bodies,Downend School,1438.38, 28-Oct-2020
1201,Revenue,CAHD,Statemented Support Academies,Other Public Bodies,Downend School,1709.55, 28-Oct-2020
1202,Revenue,CAHD,Statemented Support Academies,Other Public Bodies,Downend School,1192.50, 28-Oct-2020
1203,Revenue,CAHD,Statemented Support Academies,Other Public Bodies,Downend School,1544.49, 28-Oct-2020
1204,Revenue,CAHD,Statemented Support Academies,Other Public Bodies,Downend School,821.34, 28-Oct-2020
1205,Revenue,CAHD,Statemented Support Academies,Other Public Bodies,Downend School,718.66, 28-Oct-2020
1206,Revenue,CAHD,Social Lettings Agency,Rent,Individual,595.11, 23-Oct-2020
1207,Revenue,CAHD,Social Lettings Agency,Fees - General,Individual,10.53, 23-Oct-2020
1208,Revenue,CAHD,CSC - Therapeutic Foster Care Programm,Special Fostering Scheme,Individual,573.00, 02-Oct-2020
1209,Revenue,CAHD,CSC - Therapeutic Foster Care Programm,Special Fostering Scheme,Individual,573.00, 09-Oct-2020
1210,Revenue,CAHD,CSC - Therapeutic Foster Care Programm,Special Fostering Scheme,Individual,573.00, 16-Oct-2020
1211,Revenue,CAHD,CSC - Therapeutic Foster Care Programm,Special Fostering Scheme,Individual,573.00, 23-Oct-2020
1212,Revenue,CAHD,CSC - Therapeutic Foster Care Programm,Special Fostering Scheme,Individual,573.00, 30-Oct-2020
1213,Revenue,CAHD,North - Community based support,Permanent Residential,East Court,2763.56, 20-Oct-2020
1214,Revenue,CAHD,CSC - Residential Placements,Permanent Residential,East Sussex County Council,29690.00, 12-Oct-2020
1215,Revenue,CAHD,Central - Commissioned Services,Permanent Residential,Edendale Lodge,3000.00, 20-Oct-2020
1216,Revenue,CAHD,South - Commissioned Services,Permanent Residential,Edgemont House Ltd,3200.00, 20-Oct-2020
1217,Revenue,CAHD,South - Commissioned Services,Permanent Residential,Edgemont House Ltd,2742.86, 20-Oct-2020
1218,Revenue,CAHD,South - bed purchasing and direct  payments,Permanent Residential,Edgemont House Ltd,3264.00, 20-Oct-2020
1219,Revenue,CAHD,South - Commissioned Services,Respite Planned - Nursing,Edgemont View Ltd,3000.00, 20-Oct-2020
1220,Revenue,CAHD,South Glos Users in South Glos Homes,Permanent Nursing,Edgemont View Ltd,735.68, 20-Oct-2020
1221,Revenue,CAHD,South - Commissioned Services,Permanent Nursing,Edgemont View Ltd,3655.68, 20-Oct-2020
1222,Revenue,CAHD,South Glos Users in South Glos Homes,Permanent Nursing,Edgemont View Ltd,735.68, 20-Oct-2020
1223,Revenue,CAHD,Bed Purchasing - Southmead Hospital,Respite Planned - Nursing,Edgemont View Ltd,4750.00, 20-Oct-2020
1224,Revenue,CAHD,Bed Purchasing - Southmead Hospital,Respite Planned - Nursing,Edgemont View Ltd,2250.00, 20-Oct-2020
1225,Revenue,CAHD,South Glos Users in South Glos Homes,Permanent Nursing,Edgemont View Ltd,735.68, 20-Oct-2020
1226,Revenue,CAHD,South Glos Users in South Glos Homes,Permanent Nursing,Edgemont View Ltd,735.68, 20-Oct-2020
1227,Revenue,CAHD,South - Commissioned Services,Permanent Nursing,Edgemont View Ltd,5271.43, 20-Oct-2020
1228,Revenue,CAHD,South - Commissioned Services,Permanent Nursing,Edgemont View Ltd,3600.00, 20-Oct-2020
1229,Revenue,CAHD,South Glos Users in South Glos Homes,Permanent Nursing,Edgemont View Ltd,735.68, 20-Oct-2020
1230,Revenue,CAHD,South Glos Users in South Glos Homes,Permanent Nursing,Edgemont View Ltd,1418.81, 20-Oct-2020
1231,Revenue,CAHD,South Glos Users in South Glos Homes,Permanent Nursing,Edgemont View Ltd,735.68, 20-Oct-2020
1232,Revenue,CAHD,South Glos Users in South Glos Homes,Permanent Nursing,Edgemont View Ltd,735.68, 20-Oct-2020
1233,Revenue,CAHD,South - Commissioned Services,Permanent Nursing,Edgemont View Ltd,3655.68, 20-Oct-2020
1234,Revenue,CAHD,South Glos Users in South Glos Homes,Permanent Nursing,Edgemont View Ltd,735.68, 20-Oct-2020
1235,Revenue,CAHD,CSC - Legal Fees,Legal Fees,Individual,720.00, 22-Oct-2020
1236,Revenue,CAHD,Planning and Partnerships Procurement,Other Supplies & Services,Eldercare,2719.50, 30-Oct-2020
1237,Revenue,CAHD,Planning and Partnerships Procurement,Other Supplies & Services,Eldercare,450.00, 30-Oct-2020
1238,Revenue,CAHD,Planning and Partnerships Procurement,Other Supplies & Services,Eldercare,2595.16, 30-Oct-2020
1239,Revenue,CAHD,Supporting People Programme,Grants to Voluntary Bodies,Elim Housing Association Limited,5362.00, 01-Oct-2020
1240,Revenue,CAHD,Supporting People Programme,Grants to Voluntary Bodies,Elim Housing Association Limited,5362.00, 30-Oct-2020
1241,Revenue,CAHD,Social Lettings Agency,Rent,Individual,1169.28, 05-Oct-2020
1242,Revenue,CAHD,Social Lettings Agency,Fees - General,Individual,15.12, 05-Oct-2020
1243,Revenue,CAHD,Hospital Tuition,Other Private Contractors,Elysium Healthcare Ltd,2400.00, 21-Oct-2020
1244,Revenue,CAHD,CSC - Vinney Green Secure Unit,Training Expenses,Elysium Healthcare Ltd,750.00, 23-Oct-2020
1245,Revenue,CAHD,Sexual Health,Other Small Contracts,Emersons Green Medical Centre,1046.50, 29-Oct-2020
1246,Revenue,CAHD,Sexual Health,Other Small Contracts,Emersons Green Medical Centre,1025.47, 29-Oct-2020
1247,Revenue,CAHD,NHS Health Checks,Other Small Contracts,Emersons Green Medical Centre,743.67, 29-Oct-2020
1248,Revenue,CAHD,Drug and Alcohol Programme,Other Small Contracts,Emersons Green Medical Centre,1522.50, 29-Oct-2020
1249,Revenue,CAHD,Special ISB,Other Public Bodies,Enable Trust,1540.84, 28-Oct-2020
1250,Revenue,CAHD,Special ISB,Other Public Bodies,Enable Trust,1175.88, 28-Oct-2020
1251,Revenue,CAHD,Special ISB,Other Public Bodies,Enable Trust,1175.88, 28-Oct-2020
1252,Revenue,CAHD,Special ISB,Other Public Bodies,Enable Trust,892.04, 28-Oct-2020
1253,Revenue,CAHD,Special ISB,Other Public Bodies,Enable Trust,1540.84, 28-Oct-2020
1254,Revenue,CAHD,Special ISB,Other Public Bodies,Enable Trust,1540.84, 28-Oct-2020
1255,Revenue,CAHD,Special ISB,Other Public Bodies,Enable Trust,1175.88, 28-Oct-2020
1256,Revenue,CAHD,Special ISB,Other Public Bodies,Enable Trust,1175.88, 28-Oct-2020
1257,Revenue,CAHD,Special ISB,Other Public Bodies,Enable Trust,1175.88, 28-Oct-2020
1258,Revenue,CAHD,Special ISB,Other Public Bodies,Enable Trust,1540.84, 28-Oct-2020
1259,Revenue,CAHD,Special ISB,Other Public Bodies,Enable Trust,648.69, 28-Oct-2020
1260,Revenue,CAHD,Special ISB,Other Public Bodies,Enable Trust,892.04, 28-Oct-2020
1261,Revenue,CAHD,Special ISB,Other Public Bodies,Enable Trust,892.04, 28-Oct-2020
1262,Revenue,CAHD,Special ISB,Other Public Bodies,Enable Trust,1175.88, 28-Oct-2020
1263,Revenue,CAHD,Special ISB,Other Public Bodies,Enable Trust,1175.88, 28-Oct-2020
1264,Revenue,CAHD,Special ISB,Other Public Bodies,Enable Trust,1175.88, 28-Oct-2020
1265,Revenue,CAHD,Special ISB,Other Public Bodies,Enable Trust,1540.84, 28-Oct-2020
1266,Revenue,CAHD,Special ISB,Other Public Bodies,Enable Trust,648.69, 28-Oct-2020
1267,Revenue,CAHD,Special ISB,Other Public Bodies,Enable Trust,1702.97, 28-Oct-2020
1268,Revenue,CAHD,Special ISB,Other Public Bodies,Enable Trust,1540.84, 28-Oct-2020
1269,Revenue,CAHD,Special ISB,Other Public Bodies,Enable Trust,1175.88, 28-Oct-2020
1270,Revenue,CAHD,Special ISB,Other Public Bodies,Enable Trust,1175.88, 28-Oct-2020
1271,Revenue,CAHD,Special ISB,Other Public Bodies,Enable Trust,892.04, 28-Oct-2020
1272,Revenue,CAHD,Special ISB,Other Public Bodies,Enable Trust,1175.88, 28-Oct-2020
1273,Revenue,CAHD,Special ISB,Other Public Bodies,Enable Trust,892.04, 28-Oct-2020
1274,Revenue,CAHD,Special ISB,Other Public Bodies,Enable Trust,2189.53, 28-Oct-2020
1275,Revenue,CAHD,Special ISB,Other Public Bodies,Enable Trust,1175.88, 28-Oct-2020
1276,Revenue,CAHD,Special ISB,Other Public Bodies,Enable Trust,1175.88, 28-Oct-2020
1277,Revenue,CAHD,Special ISB,Other Public Bodies,Enable Trust,1175.88, 28-Oct-2020
1278,Revenue,CAHD,Special ISB,Other Public Bodies,Enable Trust,1175.88, 28-Oct-2020
1279,Revenue,CAHD,Special ISB,Other Public Bodies,Enable Trust,1175.88, 28-Oct-2020
1280,Revenue,CAHD,Special ISB,Other Public Bodies,Enable Trust,2189.53, 28-Oct-2020
1281,Revenue,CAHD,Special ISB,Other Public Bodies,Enable Trust,1175.88, 28-Oct-2020
1282,Revenue,CAHD,Special ISB,Other Public Bodies,Enable Trust,1540.84, 28-Oct-2020
1283,Revenue,CAHD,Special ISB,Other Public Bodies,Enable Trust,892.04, 28-Oct-2020
1284,Revenue,CAHD,Special ISB,Other Public Bodies,Enable Trust,1540.84, 28-Oct-2020
1285,Revenue,CAHD,Special ISB,Other Public Bodies,Enable Trust,1175.88, 28-Oct-2020
1286,Revenue,CAHD,Special ISB,Other Public Bodies,Enable Trust,1540.84, 28-Oct-2020
1287,Revenue,CAHD,Special ISB,Other Public Bodies,Enable Trust,1175.88, 28-Oct-2020
1288,Revenue,CAHD,Special ISB,Other Public Bodies,Enable Trust,1540.84, 28-Oct-2020
1289,Revenue,CAHD,Special ISB,Other Public Bodies,Enable Trust,1175.88, 28-Oct-2020
1290,Revenue,CAHD,Special ISB,Other Public Bodies,Enable Trust,1175.88, 28-Oct-2020
1291,Revenue,CAHD,Special ISB,Other Public Bodies,Enable Trust,1175.88, 28-Oct-2020
1292,Revenue,CAHD,Special ISB,Other Public Bodies,Enable Trust,1175.88, 28-Oct-2020
1293,Revenue,CAHD,Special ISB,Other Public Bodies,Enable Trust,2189.53, 28-Oct-2020
1294,Revenue,CAHD,Special ISB,Other Public Bodies,Enable Trust,1540.84, 28-Oct-2020
1295,Revenue,CAHD,Special ISB,Other Public Bodies,Enable Trust,892.04, 28-Oct-2020
1296,Revenue,CAHD,Special ISB,Other Public Bodies,Enable Trust,892.04, 28-Oct-2020
1297,Revenue,CAHD,Special ISB,Other Public Bodies,Enable Trust,863.27, 28-Oct-2020
1298,Revenue,CAHD,Special ISB,Other Public Bodies,Enable Trust,1540.84, 28-Oct-2020
1299,Revenue,CAHD,Special ISB,Other Public Bodies,Enable Trust,1540.84, 28-Oct-2020
1300,Revenue,CAHD,Special ISB,Other Public Bodies,Enable Trust,1175.88, 28-Oct-2020
1301,Revenue,CAHD,Special ISB,Other Public Bodies,Enable Trust,1175.88, 28-Oct-2020
1302,Revenue,CAHD,Special ISB,Other Public Bodies,Enable Trust,1540.84, 28-Oct-2020
1303,Revenue,CAHD,Special ISB,Other Public Bodies,Enable Trust,1540.84, 28-Oct-2020
1304,Revenue,CAHD,Special ISB,Other Public Bodies,Enable Trust,1175.88, 28-Oct-2020
1305,Revenue,CAHD,Special ISB,Other Public Bodies,Enable Trust,1175.88, 28-Oct-2020
1306,Revenue,CAHD,Special ISB,Other Public Bodies,Enable Trust,1175.88, 28-Oct-2020
1307,Revenue,CAHD,Special ISB,Other Public Bodies,Enable Trust,1175.88, 28-Oct-2020
1308,Revenue,CAHD,Special ISB,Other Public Bodies,Enable Trust,1540.84, 28-Oct-2020
1309,Revenue,CAHD,Special ISB,Other Public Bodies,Enable Trust,2189.53, 28-Oct-2020
1310,Revenue,CAHD,Special ISB,Other Public Bodies,Enable Trust,2189.53, 28-Oct-2020
1311,Revenue,CAHD,Special ISB,Other Public Bodies,Enable Trust,1175.88, 28-Oct-2020
1312,Revenue,CAHD,Special ISB,Other Public Bodies,Enable Trust,648.69, 28-Oct-2020
1313,Revenue,CAHD,Special ISB,Other Public Bodies,Enable Trust,1175.88, 28-Oct-2020
1314,Revenue,CAHD,Special ISB,Other Public Bodies,Enable Trust,1175.88, 28-Oct-2020
1315,Revenue,CAHD,Special ISB,Other Public Bodies,Enable Trust,892.04, 28-Oct-2020
1316,Revenue,CAHD,Special ISB,Other Public Bodies,Enable Trust,1175.88, 28-Oct-2020
1317,Revenue,CAHD,Special ISB,Other Public Bodies,Enable Trust,892.04, 28-Oct-2020
1318,Revenue,CAHD,Special ISB,Other Public Bodies,Enable Trust,1540.84, 28-Oct-2020
1319,Revenue,CAHD,Special ISB,Other Public Bodies,Enable Trust,957.43, 28-Oct-2020
1320,Revenue,CAHD,Special ISB,Other Public Bodies,Enable Trust,2313.82, 28-Oct-2020
1321,Revenue,CAHD,Special ISB,Other Public Bodies,Enable Trust,3031.97, 28-Oct-2020
1322,Revenue,CAHD,Special ISB,Other Public Bodies,Enable Trust,1175.88, 28-Oct-2020
1323,Revenue,CAHD,Special ISB,Other Public Bodies,Enable Trust,1175.88, 28-Oct-2020
1324,Revenue,CAHD,Special ISB,Other Public Bodies,Enable Trust,1702.97, 28-Oct-2020
1325,Revenue,CAHD,Special ISB,Other Public Bodies,Enable Trust,892.04, 28-Oct-2020
1326,Revenue,CAHD,Special ISB,Other Public Bodies,Enable Trust,1702.97, 28-Oct-2020
1327,Revenue,CAHD,Special ISB,Other Public Bodies,Enable Trust,1175.88, 28-Oct-2020
1328,Revenue,CAHD,Special ISB,Other Public Bodies,Enable Trust,2189.53, 28-Oct-2020
1329,Revenue,CAHD,Special ISB,Other Public Bodies,Enable Trust,2189.53, 28-Oct-2020
1330,Revenue,CAHD,Special ISB,Other Public Bodies,Enable Trust,1508.32, 28-Oct-2020
1331,Revenue,CAHD,Special ISB,Other Public Bodies,Enable Trust,892.04, 28-Oct-2020
1332,Revenue,CAHD,Special ISB,Other Public Bodies,Enable Trust,892.04, 28-Oct-2020
1333,Revenue,CAHD,Special ISB,Other Public Bodies,Enable Trust,2513.88, 28-Oct-2020
1334,Revenue,CAHD,Special ISB,Other Public Bodies,Enable Trust,892.04, 28-Oct-2020
1335,Revenue,CAHD,Special ISB,Other Public Bodies,Enable Trust,892.04, 28-Oct-2020
1336,Revenue,CAHD,Special ISB,Other Public Bodies,Enable Trust,1702.97, 28-Oct-2020
1337,Revenue,CAHD,Special ISB,Other Public Bodies,Enable Trust,1702.97, 28-Oct-2020
1338,Revenue,CAHD,Special ISB,Other Public Bodies,Enable Trust,1175.88, 28-Oct-2020
1339,Revenue,CAHD,Special ISB,Other Public Bodies,Enable Trust,1702.97, 28-Oct-2020
1340,Revenue,CAHD,Special ISB,Other Public Bodies,Enable Trust,1702.97, 28-Oct-2020
1341,Revenue,CAHD,Special ISB,Other Public Bodies,Enable Trust,1175.88, 28-Oct-2020
1342,Revenue,CAHD,Special ISB,Other Public Bodies,Enable Trust,1175.88, 28-Oct-2020
1343,Revenue,CAHD,Special ISB,Other Public Bodies,Enable Trust,892.04, 28-Oct-2020
1344,Revenue,CAHD,Special ISB,Other Public Bodies,Enable Trust,1702.97, 28-Oct-2020
1345,Revenue,CAHD,Special ISB,Other Public Bodies,Enable Trust,1175.88, 28-Oct-2020
1346,Revenue,CAHD,Special ISB,Other Public Bodies,Enable Trust,1175.88, 28-Oct-2020
1347,Revenue,CAHD,Special ISB,Other Public Bodies,Enable Trust,1175.88, 28-Oct-2020
1348,Revenue,CAHD,Special ISB,Other Public Bodies,Enable Trust,1702.97, 28-Oct-2020
1349,Revenue,CAHD,Special ISB,Other Public Bodies,Enable Trust,1175.88, 28-Oct-2020
1350,Revenue,CAHD,Special ISB,Other Public Bodies,Enable Trust,1702.97, 28-Oct-2020
1351,Revenue,CAHD,Special ISB,Other Public Bodies,Enable Trust,1175.88, 28-Oct-2020
1352,Revenue,CAHD,Special ISB,Other Public Bodies,Enable Trust,1175.88, 28-Oct-2020
1353,Revenue,CAHD,Special ISB,Other Public Bodies,Enable Trust,1175.88, 28-Oct-2020
1354,Revenue,CAHD,Special ISB,Other Public Bodies,Enable Trust,1013.75, 28-Oct-2020
1355,Revenue,CAHD,Special ISB,Other Public Bodies,Enable Trust,1175.88, 28-Oct-2020
1356,Revenue,CAHD,Special ISB,Other Public Bodies,Enable Trust,892.04, 28-Oct-2020
1357,Revenue,CAHD,Special ISB,Other Public Bodies,Enable Trust,1175.88, 28-Oct-2020
1358,Revenue,CAHD,Special ISB,Other Public Bodies,Enable Trust,1175.88, 28-Oct-2020
1359,Revenue,CAHD,Special ISB,Other Public Bodies,Enable Trust,2189.53, 28-Oct-2020
1360,Revenue,CAHD,Special ISB,Other Public Bodies,Enable Trust,1702.97, 28-Oct-2020
1361,Revenue,CAHD,Special ISB,Other Public Bodies,Enable Trust,1702.97, 28-Oct-2020
1362,Revenue,CAHD,Special ISB,Other Public Bodies,Enable Trust,892.04, 28-Oct-2020
1363,Revenue,CAHD,Special ISB,Other Public Bodies,Enable Trust,648.69, 28-Oct-2020
1364,Revenue,CAHD,Special ISB,Other Public Bodies,Enable Trust,1175.88, 28-Oct-2020
1365,Revenue,CAHD,Special ISB,Other Public Bodies,Enable Trust,892.04, 28-Oct-2020
1366,Revenue,CAHD,Special ISB,Other Public Bodies,Enable Trust,1175.88, 28-Oct-2020
1367,Revenue,CAHD,Special ISB,Other Public Bodies,Enable Trust,1702.97, 28-Oct-2020
1368,Revenue,CAHD,Special ISB,Other Public Bodies,Enable Trust,1540.84, 28-Oct-2020
1369,Revenue,CAHD,Special ISB,Other Public Bodies,Enable Trust,892.04, 28-Oct-2020
1370,Revenue,CAHD,Special ISB,Other Public Bodies,Enable Trust,1702.97, 28-Oct-2020
1371,Revenue,CAHD,Special ISB,Other Public Bodies,Enable Trust,1175.88, 28-Oct-2020
1372,Revenue,CAHD,Special ISB,Other Public Bodies,Enable Trust,1175.88, 28-Oct-2020
1373,Revenue,CAHD,Special ISB,Other Public Bodies,Enable Trust,1175.88, 28-Oct-2020
1374,Revenue,CAHD,Special ISB,Other Public Bodies,Enable Trust,892.04, 28-Oct-2020
1375,Revenue,CAHD,Special ISB,Other Public Bodies,Enable Trust,892.04, 28-Oct-2020
1376,Revenue,CAHD,Special ISB,Other Public Bodies,Enable Trust,892.04, 28-Oct-2020
1377,Revenue,CAHD,Special ISB,Other Public Bodies,Enable Trust,1175.88, 28-Oct-2020
1378,Revenue,CAHD,Special ISB,Other Public Bodies,Enable Trust,892.04, 28-Oct-2020
1379,Revenue,CAHD,Special ISB,Other Public Bodies,Enable Trust,892.04, 28-Oct-2020
1380,Revenue,CAHD,Special ISB,Other Public Bodies,Enable Trust,892.04, 28-Oct-2020
1381,Revenue,CAHD,Special ISB,Other Public Bodies,Enable Trust,1175.88, 28-Oct-2020
1382,Revenue,CAHD,Special ISB,Other Public Bodies,Enable Trust,1175.88, 28-Oct-2020
1383,Revenue,CAHD,Special ISB,Other Public Bodies,Enable Trust,892.04, 28-Oct-2020
1384,Revenue,CAHD,Special ISB,Other Public Bodies,Enable Trust,892.04, 28-Oct-2020
1385,Revenue,CAHD,Special ISB,Other Public Bodies,Enable Trust,1175.88, 28-Oct-2020
1386,Revenue,CAHD,Special ISB,Other Public Bodies,Enable Trust,1175.88, 28-Oct-2020
1387,Revenue,CAHD,Special ISB,Other Public Bodies,Enable Trust,1175.88, 28-Oct-2020
1388,Revenue,CAHD,Special ISB,Other Public Bodies,Enable Trust,1702.97, 28-Oct-2020
1389,Revenue,CAHD,Special ISB,Other Public Bodies,Enable Trust,1175.88, 28-Oct-2020
1390,Revenue,CAHD,Special ISB,Other Public Bodies,Enable Trust,892.04, 28-Oct-2020
1391,Revenue,CAHD,Special ISB,Other Public Bodies,Enable Trust,892.04, 28-Oct-2020
1392,Revenue,CAHD,Special ISB,Other Public Bodies,Enable Trust,1702.97, 28-Oct-2020
1393,Revenue,CAHD,Special ISB,Other Public Bodies,Enable Trust,2189.53, 28-Oct-2020
1394,Revenue,CAHD,Special ISB,Other Public Bodies,Enable Trust,1175.88, 28-Oct-2020
1395,Revenue,CAHD,Special ISB,Other Public Bodies,Enable Trust,892.04, 28-Oct-2020
1396,Revenue,CAHD,Special ISB,Other Public Bodies,Enable Trust,2189.53, 28-Oct-2020
1397,Revenue,CAHD,Special ISB,Other Public Bodies,Enable Trust,1540.84, 28-Oct-2020
1398,Revenue,CAHD,Special ISB,Other Public Bodies,Enable Trust,648.69, 28-Oct-2020
1399,Revenue,CAHD,Special ISB,Other Public Bodies,Enable Trust,1175.88, 28-Oct-2020
1400,Revenue,CAHD,Special ISB,Other Public Bodies,Enable Trust,2189.53, 28-Oct-2020
1401,Revenue,CAHD,Special ISB,Other Public Bodies,Enable Trust,1175.88, 28-Oct-2020
1402,Revenue,CAHD,Special ISB,Other Public Bodies,Enable Trust,1702.97, 28-Oct-2020
1403,Revenue,CAHD,Special ISB,Other Public Bodies,Enable Trust,2189.53, 28-Oct-2020
1404,Revenue,CAHD,Special ISB,Other Public Bodies,Enable Trust,1021.76, 28-Oct-2020
1405,Revenue,CAHD,Special ISB,Other Public Bodies,Enable Trust,1702.97, 28-Oct-2020
1406,Revenue,CAHD,Special ISB,Other Public Bodies,Enable Trust,1702.97, 28-Oct-2020
1407,Revenue,CAHD,Special ISB,Other Public Bodies,Enable Trust,1702.97, 28-Oct-2020
1408,Revenue,CAHD,Special ISB,Other Public Bodies,Enable Trust,2513.88, 28-Oct-2020
1409,Revenue,CAHD,Special ISB,Other Public Bodies,Enable Trust,2189.53, 28-Oct-2020
1410,Revenue,CAHD,Special ISB,Other Public Bodies,Enable Trust,1702.97, 28-Oct-2020
1411,Revenue,CAHD,Special ISB,Other Public Bodies,Enable Trust,1702.97, 28-Oct-2020
1412,Revenue,CAHD,Special ISB,Other Public Bodies,Enable Trust,1175.88, 28-Oct-2020
1413,Revenue,CAHD,Special ISB,Other Public Bodies,Enable Trust,3351.00, 28-Oct-2020
1414,Revenue,CAHD,Special ISB,Other Public Bodies,Enable Trust,4946.67, 28-Oct-2020
1415,Revenue,CAHD,Special ISB,Other Public Bodies,Enable Trust,3351.00, 28-Oct-2020
1416,Revenue,CAHD,Special ISB,Other Public Bodies,Enable Trust,35000.00, 27-Oct-2020
1417,Revenue,CAHD,South - Commissioned Services,Day Care / Social Activities,Epiphany In Care,693.00, 08-Oct-2020
1418,Revenue,CAHD,South - Commissioned Services,Day Care / Social Activities,Epiphany In Care,643.50, 27-Oct-2020
1419,Revenue,CAHD,Central - Commissioned Services,Other Small Contracts,Epiphany In Care,1188.00, 05-Oct-2020
1420,Revenue,CAHD,South - Commissioned Services,Other Small Contracts,Epiphany In Care,1742.40, 20-Oct-2020
1421,Revenue,CAHD,North - S117,Permanent Residential,Evolve House,3276.80, 20-Oct-2020
1422,Revenue,CAHD,Placements OLA Special Schools and RB,Other L.A.s - General,Excalibur Academies Trust T/A,2238.77, 28-Oct-2020
1423,Revenue,CAHD,Social Lettings Agency,Prop.Serv. General Repairs,Express Property Services Limited,39.00, 20-Oct-2020
1424,Revenue,CAHD,Social Lettings Agency,Prop.Serv. General Repairs,Express Property Services Limited,60.00, 20-Oct-2020
1425,Revenue,CAHD,Social Lettings Agency,Prop.Serv. General Repairs,Express Property Services Limited,128.00, 20-Oct-2020
1426,Revenue,CAHD,Social Lettings Agency,Prop.Serv. General Repairs,Express Property Services Limited,62.00, 20-Oct-2020
1427,Revenue,CAHD,Social Lettings Agency,Prop.Serv. General Repairs,Express Property Services Limited,98.00, 20-Oct-2020
1428,Revenue,CAHD,Social Lettings Agency,Prop.Serv. General Repairs,Express Property Services Limited,112.00, 20-Oct-2020
1429,Revenue,CAHD,Social Lettings Agency,Prop.Serv. General Repairs,Express Property Services Limited,399.00, 20-Oct-2020
1430,Revenue,CAHD,Social Lettings Agency,Prop.Serv. General Repairs,Express Property Services Limited,657.25, 20-Oct-2020
1431,Revenue,CAHD,Social Lettings Agency,Prop.Serv. General Repairs,Express Property Services Limited,115.99, 20-Oct-2020
1432,Revenue,CAHD,Social Lettings Agency,Prop.Serv. General Repairs,Express Property Services Limited,112.00, 20-Oct-2020
1433,Revenue,CAHD,Social Lettings Agency,Prop.Serv. General Repairs,Express Property Services Limited,196.00, 20-Oct-2020
1434,Revenue,CAHD,Social Lettings Agency,Prop.Serv. General Repairs,Express Property Services Limited,60.00, 20-Oct-2020
1435,Revenue,CAHD,Learning Difficulties PSL,Prop.Serv. General Repairs,Express Property Services Limited,112.00, 20-Oct-2020
1436,Revenue,CAHD,Homeless - Private Sector Leasing,Prop.Serv. General Repairs,Express Property Services Limited,112.00, 20-Oct-2020
1437,Revenue,CAHD,Social Lettings Agency,Prop.Serv. General Repairs,Express Property Services Limited,166.00, 12-Oct-2020
1438,Revenue,CAHD,Social Lettings Agency,Prop.Serv. General Repairs,Express Property Services Limited,202.00, 12-Oct-2020
1439,Revenue,CAHD,Social Lettings Agency,Prop.Serv. General Repairs,Express Property Services Limited,189.00, 12-Oct-2020
1440,Revenue,CAHD,Social Lettings Agency,Prop.Serv. General Repairs,Express Property Services Limited,60.00, 12-Oct-2020
1441,Revenue,CAHD,Social Lettings Agency,Prop.Serv. General Repairs,Express Property Services Limited,60.00, 12-Oct-2020
1442,Revenue,CAHD,Social Lettings Agency,Prop.Serv. General Repairs,Express Property Services Limited,130.10, 12-Oct-2020
1443,Revenue,CAHD,Social Lettings Agency,Prop.Serv. General Repairs,Express Property Services Limited,60.00, 12-Oct-2020
1444,Revenue,CAHD,Social Lettings Agency,Prop.Serv. General Repairs,Express Property Services Limited,70.00, 12-Oct-2020
1445,Revenue,CAHD,Social Lettings Agency,Prop.Serv. General Repairs,Express Property Services Limited,56.00, 12-Oct-2020
1446,Revenue,CAHD,Homeless - Private Sector Leasing,Prop.Serv. General Repairs,Express Property Services Limited,60.00, 12-Oct-2020
1447,Revenue,CAHD,Homeless - Private Sector Leasing,Prop.Serv. General Repairs,Express Property Services Limited,60.00, 12-Oct-2020
1448,Revenue,CAHD,Extra Care Housing,Private & Voluntary Home Care,Extra Care Charitable Trust,26966.00, 12-Oct-2020
1449,Revenue,CAHD,North - Community based support,Fees & Charges Income - General,Eyre Court,17400.36, 20-Oct-2020
1450,Revenue,CAHD,Post 16 High Needs Placements,Other Private Contractors,Fairfield Farm Trust,6285.21, 22-Oct-2020
1451,Revenue,CAHD,Post 16 High Needs Placements,Other Private Contractors,Fairfield Farm Trust,12494.66, 16-Oct-2020
1452,Revenue,CAHD,South - Commissioned Services,Permanent Nursing,Fairview Court,3886.76, 20-Oct-2020
1453,Revenue,CAHD,South Glos Users in South Glos Homes,Permanent Nursing,Fairview Court,735.68, 20-Oct-2020
1454,Revenue,CAHD,South Glos Users in South Glos Homes,Permanent Nursing,Fairview Court,735.68, 20-Oct-2020
1455,Revenue,CAHD,South Glos Users in South Glos Homes,Permanent Nursing,Fairview Court,735.68, 20-Oct-2020
1456,Revenue,CAHD,North - Community based support,Respite Planned - Nursing,Fairview Court,5172.20, 20-Oct-2020
1457,Revenue,CAHD,South - Commissioned Services,Permanent Nursing,Fairview Court,4137.76, 20-Oct-2020
1458,Revenue,CAHD,South Glos Users in South Glos Homes,Permanent Nursing,Fairview Court,735.68, 20-Oct-2020
1459,Revenue,CAHD,South Glos Users in South Glos Homes,Permanent Nursing,Fairview Court,735.68, 20-Oct-2020
1460,Revenue,CAHD,South - Commissioned Services,Permanent Nursing,Fairview Court,3618.72, 20-Oct-2020
1461,Revenue,CAHD,South Glos Users in South Glos Homes,Permanent Nursing,Fairview Court,735.68, 20-Oct-2020
1462,Revenue,CAHD,South Glos Users in South Glos Homes,Permanent Nursing,Fairview Court,735.68, 20-Oct-2020
1463,Revenue,CAHD,South - Commissioned Services,Permanent Nursing,Fairview Court,5485.71, 20-Oct-2020
1464,Revenue,CAHD,South - Commissioned Services,Permanent Nursing,Fairview Court,4800.00, 20-Oct-2020
1465,Revenue,CAHD,South - S117,Permanent Nursing,Fairview Court,4257.32, 20-Oct-2020
1466,Revenue,CAHD,South Glos Users in South Glos Homes,Permanent Nursing,Fairview Court,735.68, 20-Oct-2020
1467,Revenue,CAHD,South Glos Users in South Glos Homes,Permanent Nursing,Fairview Court,735.68, 20-Oct-2020
1468,Revenue,CAHD,South Glos Users in South Glos Homes,Permanent Nursing,Fairview Court,1210.65, 20-Oct-2020
1469,Revenue,CAHD,South - bed purchasing and direct  payments,Permanent Nursing,Fairview Court,4078.24, 20-Oct-2020
1470,Revenue,CAHD,South Glos Users in South Glos Homes,Permanent Nursing,Fairview Court,735.68, 20-Oct-2020
1471,Revenue,CAHD,South Glos Users in South Glos Homes,Permanent Nursing,Fairview Court,735.68, 20-Oct-2020
1472,Revenue,CAHD,South Glos Users in South Glos Homes,Permanent Nursing,Fairview Court,735.68, 20-Oct-2020
1473,Revenue,CAHD,South Glos Users in South Glos Homes,Permanent Nursing,Fairview Court,735.68, 20-Oct-2020
1474,Revenue,CAHD,South - Commissioned Services,Permanent Nursing,Fairview Court,3886.76, 20-Oct-2020
1475,Revenue,CAHD,South Glos Users in South Glos Homes,Permanent Nursing,Fairview Court,735.68, 20-Oct-2020
1476,Revenue,CAHD,South Glos Users in South Glos Homes,Permanent Nursing,Fairview Court,735.68, 20-Oct-2020
1477,Revenue,CAHD,South - Commissioned Services,Permanent Nursing,Fairview Court,4800.00, 20-Oct-2020
1478,Revenue,CAHD,South Glos Users in South Glos Homes,Permanent Nursing,Fairview Court,735.68, 20-Oct-2020
1479,Revenue,CAHD,South Glos Users in South Glos Homes,Permanent Nursing,Fairview Court,735.68, 20-Oct-2020
1480,Revenue,CAHD,South Glos Users in South Glos Homes,Permanent Nursing,Fairview Court,735.68, 20-Oct-2020
1481,Revenue,CAHD,South Glos Users in South Glos Homes,Permanent Nursing,Fairview Court,735.68, 20-Oct-2020
1482,Revenue,CAHD,South - Commissioned Services,Permanent Residential,Fairview Court,4048.64, 20-Oct-2020
1483,Revenue,CAHD,South Glos Users in South Glos Homes,Permanent Nursing,Fairview Court,735.68, 20-Oct-2020
1484,Revenue,CAHD,South Glos Users in South Glos Homes,Permanent Nursing,Fairview Court,735.68, 20-Oct-2020
1485,Revenue,CAHD,South - Commissioned Services,Permanent Nursing,Fairview Court,4800.00, 20-Oct-2020
1486,Revenue,CAHD,South Glos Users in South Glos Homes,Permanent Nursing,Fairview Court,735.68, 20-Oct-2020
1487,Revenue,CAHD,South Glos Users in South Glos Homes,Permanent Nursing,Fairview Court,735.68, 20-Oct-2020
1488,Revenue,CAHD,North - Community based support,Permanent Residential,Fairview Court,3321.44, 20-Oct-2020
1489,Revenue,CAHD,South - bed purchasing and direct  payments,Permanent Nursing,Fairview Court,4137.76, 20-Oct-2020
1490,Revenue,CAHD,South Glos Users in South Glos Homes,Permanent Nursing,Fairview Court,735.68, 20-Oct-2020
1491,Revenue,CAHD,South Glos Users in South Glos Homes,Permanent Nursing,Fairview Court,735.68, 20-Oct-2020
1492,Revenue,CAHD,South Glos Users in South Glos Homes,Permanent Nursing,Fairview Court,735.68, 20-Oct-2020
1493,Revenue,CAHD,South - Commissioned Services,Permanent Nursing,Fairview Court,3553.36, 20-Oct-2020
1494,Revenue,CAHD,South Glos Users in South Glos Homes,Permanent Nursing,Fairview Court,735.68, 20-Oct-2020
1495,Revenue,CAHD,North - Community based support,Permanent Nursing,Fairview Court,3886.76, 20-Oct-2020
1496,Revenue,CAHD,South Glos Users in South Glos Homes,Permanent Nursing,Fairview Court,735.68, 20-Oct-2020
1497,Revenue,CAHD,South - Commissioned Services,Permanent Nursing,Fairview Court,3192.96, 20-Oct-2020
1498,Revenue,CAHD,South Glos Users in South Glos Homes,Permanent Nursing,Fairview Court,735.68, 20-Oct-2020
1499,Revenue,CAHD,South - Commissioned Services,Permanent Nursing,Fairview Court,3618.72, 20-Oct-2020
1500,Revenue,CAHD,South Glos Users in South Glos Homes,Permanent Nursing,Fairview Court,735.68, 20-Oct-2020
1501,Revenue,CAHD,South - Commissioned Services,Permanent Nursing,Fairview Court,4028.00, 20-Oct-2020
1502,Revenue,CAHD,South Glos Users in South Glos Homes,Permanent Nursing,Fairview Court,735.68, 20-Oct-2020
1503,Revenue,CAHD,South - Commissioned Services,Permanent Nursing,Fairview Court,4137.76, 20-Oct-2020
1504,Revenue,CAHD,South Glos Users in South Glos Homes,Permanent Nursing,Fairview Court,735.68, 20-Oct-2020
1505,Revenue,CAHD,Covid - ASC - Infection Control,Grants to Voluntary Bodies,Fairview Court,17073.05, 28-Oct-2020
1506,Revenue,CAHD,South - Commissioned Services,Permanent Residential,Fairview House,2349.60, 20-Oct-2020
1507,Revenue,CAHD,South - Commissioned Services,Permanent Residential,Fairview House,3400.00, 20-Oct-2020
1508,Revenue,CAHD,South - Commissioned Services,Permanent Residential,Fairview House,3400.00, 20-Oct-2020
1509,Revenue,CAHD,South Glos Users in South Glos Homes,Permanent Nursing,Fairview House,735.68, 20-Oct-2020
1510,Revenue,CAHD,South - Commissioned Services,Permanent Residential,Fairview House,3468.00, 20-Oct-2020
1511,Revenue,CAHD,South - Commissioned Services,Permanent Residential,Fairview House,3800.00, 20-Oct-2020
1512,Revenue,CAHD,Covid - ASC - Infection Control,Grants to Voluntary Bodies,Fairview House,8362.31, 28-Oct-2020
1513,Revenue,CAHD,Central - Commissioned Services,Permanent Residential,Faith House,4334.92, 20-Oct-2020
1514,Revenue,CAHD,North - Community based support,Permanent Residential,Faith House,2861.88, 20-Oct-2020
1515,Revenue,CAHD,North - Community based support,Permanent Nursing,Faith House,3128.00, 20-Oct-2020
1516,Revenue,CAHD,Central - Commissioned Services,Permanent Residential,Faith House,3574.86, 20-Oct-2020
1517,Revenue,CAHD,Central - Commissioned Services,Permanent Residential,Faith House,3128.00, 20-Oct-2020
1518,Revenue,CAHD,North - Community based support,Permanent Residential,Faith House,3039.60, 20-Oct-2020
1519,Revenue,CAHD,South - Commissioned Services,Permanent Residential,Faith House,2958.00, 20-Oct-2020
1520,Revenue,CAHD,CSC - Agency Fostering,Foster Parent Allowances,Families First (SW) Ltd,6047.50, 05-Oct-2020
1521,Revenue,CAHD,Post 16 High Needs Placements,Other Private Contractors,Farleigh FEC-Frome Priory,22815.17, 22-Oct-2020
1522,Revenue,CAHD,CSC - Fostering Carer Support,Agency Staff (Admin/Support Staff) Pay,Individual,2000.00, 23-Oct-2020
1523,Revenue,CAHD,Information Systems - Software,Consultation Expenses,Fibonacci Ltd,733.00, 30-Oct-2020
1524,Revenue,CAHD,North - Community based support,Permanent Nursing,Field House Care Home,3522.56, 20-Oct-2020
1525,Revenue,CAHD,North - Community based support,Permanent Nursing,Field House Care Home,3403.60, 20-Oct-2020
1526,Revenue,CAHD,North - Community based support,Permanent Nursing,Field House Care Home,3589.48, 20-Oct-2020
1527,Revenue,CAHD,Central - Commissioned Services,Permanent Nursing,Field House Care Home,3740.00, 20-Oct-2020
1528,Revenue,CAHD,North - Community based support,Permanent Nursing,Field House Care Home,2271.72, 20-Oct-2020
1529,Revenue,CAHD,Central - Commissioned Services,Permanent Nursing,Field House Care Home,3740.00, 20-Oct-2020
1530,Revenue,CAHD,North - Community based support,Permanent Nursing,Field House Care Home,2271.72, 20-Oct-2020
1531,Revenue,CAHD,North - Community based support,Permanent Nursing,Field House Care Home,3506.00, 20-Oct-2020
1532,Revenue,CAHD,Central - Commissioned Services,Permanent Residential,Fieldview,4950.00, 20-Oct-2020
1533,Revenue,CAHD,Central - Commissioned Services,Permanent Residential,Fieldview,3481.60, 20-Oct-2020
1534,Revenue,CAHD,North - Community based support,Permanent Residential,Fieldview,3200.00, 20-Oct-2020
1535,Revenue,CAHD,South - Commissioned Services,Permanent Residential,Fieldview,3600.00, 20-Oct-2020
1536,Revenue,CAHD,Statemented Support Payments to OLAs,Other L.A.s - General,Filton Avenue Primary School,1131.84, 01-Oct-2020
1537,Revenue,CAHD,Statemented Support Payments to OLAs,Other L.A.s - General,Filton Avenue Primary School,1131.84, 28-Oct-2020
1538,Revenue,CAHD,Statemented Support Payments to OLAs,Other L.A.s - General,Filton Avenue Primary School,1332.27, 01-Oct-2020
1539,Revenue,CAHD,Statemented Support Payments to OLAs,Other L.A.s - General,Filton Avenue Primary School,1332.27, 28-Oct-2020
1540,Revenue,CAHD,Covid 19- Spend on behalf of NHS,Respite Planned - Nursing,First Floor  Lingfield House,7600.00, 20-Oct-2020
1541,Revenue,CAHD,Covid 19- Spend on behalf of NHS,Respite Planned - Nursing,First Floor  Lingfield House,5564.29, 20-Oct-2020
1542,Revenue,CAHD,Covid 19- Spend on behalf of NHS,Respite Planned - Nursing,First Floor  Lingfield House,7464.29, 20-Oct-2020
1543,Revenue,CAHD,Covid 19- Spend on behalf of NHS,Respite Planned - Nursing,First Floor  Lingfield House,3657.15, 20-Oct-2020
1544,Revenue,CAHD,Covid 19- Spend on behalf of NHS,Respite Planned - Nursing,First Floor  Lingfield House,4614.29, 20-Oct-2020
1545,Revenue,CAHD,Covid 19- Spend on behalf of NHS,Respite Planned - Nursing,First Floor  Lingfield House,7600.00, 20-Oct-2020
1546,Revenue,CAHD,Covid 19- Spend on behalf of NHS,Respite Planned - Nursing,First Floor  Lingfield House,7328.57, 20-Oct-2020
1547,Revenue,CAHD,South - Commissioned Services,Permanent Nursing,First Floor  Lingfield House,5108.72, 20-Oct-2020
1548,Revenue,CAHD,South Glos Users in South Glos Homes,Permanent Nursing,First Floor  Lingfield House,1471.36, 20-Oct-2020
1549,Revenue,CAHD,South - Commissioned Services,Permanent Residential,First Floor  Lingfield House,505.75, 20-Oct-2020
1550,Revenue,CAHD,Covid 19- Spend on behalf of NHS,Respite Planned - Nursing,First Floor  Lingfield House,1357.14, 20-Oct-2020
1551,Revenue,CAHD,Covid 19- Spend on behalf of NHS,Respite Planned - Nursing,First Floor  Lingfield House,7600.00, 20-Oct-2020
1552,Revenue,CAHD,Covid 19- Spend on behalf of NHS,Respite Planned - Nursing,First Floor  Lingfield House,7057.14, 20-Oct-2020
1553,Revenue,CAHD,Covid 19- Spend on behalf of NHS,Respite Planned - Nursing,First Floor  Lingfield House,3392.86, 20-Oct-2020
1554,Revenue,CAHD,Covid 19- Spend on behalf of NHS,Respite Planned - Residential,First Floor  Lingfield House,5564.29, 20-Oct-2020
1555,Revenue,CAHD,Covid 19- Spend on behalf of NHS,Respite Planned - Nursing,First Floor  Lingfield House,5292.86, 20-Oct-2020
1556,Revenue,CAHD,Covid 19- Spend on behalf of NHS,Respite Planned - Nursing,First Floor  Lingfield House,2035.71, 20-Oct-2020
1557,Revenue,CAHD,Covid 19- Spend on behalf of NHS,Respite Planned - Nursing,First Floor  Lingfield House,1764.29, 20-Oct-2020
1558,Revenue,CAHD,South Glos Users in South Glos Homes,Permanent Nursing,First Floor  Lingfield House,1471.36, 20-Oct-2020
1559,Revenue,CAHD,Covid 19- Spend on behalf of NHS,Respite Planned - Nursing,First Floor  Lingfield House,11400.00, 20-Oct-2020
1560,Revenue,CAHD,Covid 19- Spend on behalf of NHS,Respite Planned - Nursing,First Floor  Lingfield House,7600.00, 20-Oct-2020
1561,Revenue,CAHD,South Glos Users in South Glos Homes,Permanent Nursing,First Floor  Lingfield House,2443.51, 20-Oct-2020
1562,Revenue,CAHD,South Glos Users in South Glos Homes,Permanent Nursing,First Floor  Lingfield House,1107.62, 20-Oct-2020
1563,Revenue,CAHD,South - Commissioned Services,Permanent Residential,First Floor  Lingfield House,6720.00, 20-Oct-2020
1564,Revenue,CAHD,Covid 19- Spend on behalf of NHS,Respite Planned - Nursing,First Floor  Lingfield House,4478.57, 20-Oct-2020
1565,Revenue,CAHD,South - Commissioned Services,Fees & Charges Income - General,First Floor  Lingfield House,1980.38, 20-Oct-2020
1566,Revenue,CAHD,North - Community based support,Permanent Nursing,First Floor  Lingfield House,2657.80, 20-Oct-2020
1567,Revenue,CAHD,Central - Commissioned Services,Fees & Charges Income - General,First Floor  Lingfield House,1799.23, 20-Oct-2020
1568,Revenue,CAHD,EARLY YEARS DISABILITY  ACCES FUND,Preventative Assistance,First Step Pre-School Ltd,615.00, 30-Oct-2020
1569,Revenue,CAHD,CSC - Agency Fostering,Foster Parent Allowances,Five Rivers Child Care Limited,3447.82, 26-Oct-2020
1570,Revenue,CAHD,CSC - Agency Fostering,Foster Parent Allowances,Five Rivers Child Care Limited,3627.00, 30-Oct-2020
1571,Revenue,CAHD,CSC - Agency Fostering,Foster Parent Allowances,Five Rivers Child Care Limited,3627.00, 30-Oct-2020
1572,Revenue,CAHD,CSC - Agency Fostering,Foster Parent Allowances,Five Rivers Child Care Limited,2223.76, 30-Oct-2020
1573,Revenue,CAHD,CSC - Agency Fostering,Foster Parent Allowances,Five Rivers Child Care Limited,3627.00, 30-Oct-2020
1574,Revenue,CAHD,CSC - Agency Fostering,Foster Parent Allowances,Five Rivers Child Care Limited,3447.82, 30-Oct-2020
1575,Revenue,CAHD,CSC - Agency Fostering,Foster Parent Allowances,Five Rivers Child Care Limited,3447.82, 30-Oct-2020
1576,Revenue,CAHD,CSC - Agency Fostering,Foster Parent Allowances,Five Rivers Child Care Limited,3671.29, 30-Oct-2020
1577,Revenue,CAHD,Future Bright,Fees - General,Focus Training SW Ltd T/A DCET,760.00, 16-Oct-2020
1578,Revenue,CAHD,Health Promotion in Schools,Other Small Contracts,Foster & Brown Research LTD,17482.50, 21-Oct-2020
1579,Revenue,CAHD,School Improvement and Support,Consultation Expenses,Foster & Brown Research LTD,2000.00, 23-Oct-2020
1580,Revenue,CAHD,CSC - Agency Fostering,Foster Parent Allowances,Foster Care Associates Limited,3733.80, 13-Oct-2020
1581,Revenue,CAHD,CSC - Agency Fostering,Foster Parent Allowances,Foster Care Associates Limited,526.50, 01-Oct-2020
1582,Revenue,CAHD,CSC - Agency Fostering,Foster Parent Allowances,Foster Care Associates Limited,1016.00, 02-Oct-2020
1583,Revenue,CAHD,CSC - Agency Fostering,Foster Parent Allowances,Foster Care Associates Limited,3858.26, 16-Oct-2020
1584,Revenue,CAHD,CSC - Parent & Child Assessments,Foster Parent Allowances,Foster Care Associates Limited,6660.00, 15-Oct-2020
1585,Revenue,CAHD,CSC - Agency Fostering,Foster Parent Allowances,Foster Care Associates Limited,3648.30, 15-Oct-2020
1586,Revenue,CAHD,CSC - Agency Fostering,Foster Parent Allowances,Foster Care Associates Limited,3810.00, 15-Oct-2020
1587,Revenue,CAHD,CSC - Agency Fostering,Foster Parent Allowances,Foster Care Associates Limited,3810.00, 15-Oct-2020
1588,Revenue,CAHD,CSC - Agency Fostering,Foster Parent Allowances,Fostering Matters Ltd,3407.10, 09-Oct-2020
1589,Revenue,CAHD,CSC - Agency Fostering,Foster Parent Allowances,Fostering Matters Ltd,3407.10, 14-Oct-2020
1590,Revenue,CAHD,CSC - Parent & Child Assessments,Foster Parent Allowances,Fostering Solutions Limited,7269.90, 07-Oct-2020
1591,Revenue,CAHD,CSC - Parent & Child Assessments,Foster Parent Allowances,Fostering Solutions Limited,5869.54, 30-Oct-2020
1592,Revenue,CAHD,CSC - Parent & Child Assessments,Foster Parent Allowances,Fostering Solutions Limited,7512.23, 30-Oct-2020
1593,Revenue,CAHD,Covid 19 -Adult Social Care,Other Small Contracts,Fourways Care Limited,39.84, 09-Oct-2020
1594,Revenue,CAHD,Central - Commissioned Services,Other Small Contracts,Fourways Care Limited,557.04, 09-Oct-2020
1595,Revenue,CAHD,South - Commissioned Services,Other Small Contracts,Fourways Care Limited,653.76, 09-Oct-2020
1596,Revenue,CAHD,North - Community based support,Other Small Contracts,Fourways Care Limited,10901.58, 09-Oct-2020
1597,Revenue,CAHD,Covid 19 -Adult Social Care,Other Small Contracts,Fourways Care Limited,39.84, 14-Oct-2020
1598,Revenue,CAHD,Central - Commissioned Services,Other Small Contracts,Fourways Care Limited,547.08, 14-Oct-2020
1599,Revenue,CAHD,South - Commissioned Services,Other Small Contracts,Fourways Care Limited,773.28, 14-Oct-2020
1600,Revenue,CAHD,North - Community based support,Other Small Contracts,Fourways Care Limited,10761.12, 14-Oct-2020
1601,Revenue,CAHD,Covid 19 -Adult Social Care,Other Small Contracts,Fourways Care Limited,39.84, 22-Oct-2020
1602,Revenue,CAHD,Central - Commissioned Services,Other Small Contracts,Fourways Care Limited,552.06, 22-Oct-2020
1603,Revenue,CAHD,South - Commissioned Services,Other Small Contracts,Fourways Care Limited,798.18, 22-Oct-2020
1604,Revenue,CAHD,North - Community based support,Other Small Contracts,Fourways Care Limited,10693.44, 22-Oct-2020
1605,Revenue,CAHD,Supporting People Programme,Grants to Voluntary Bodies,Freeways Trust Limited,1067.00, 01-Oct-2020
1606,Revenue,CAHD,Supporting People Programme,Grants to Voluntary Bodies,Freeways Trust Limited,1067.00, 30-Oct-2020
1607,Revenue,CAHD,South - Commissioned Services,Day Care / Social Activities,Freeways Trust Limited,1139.12, 19-Oct-2020
1608,Revenue,CAHD,South - Commissioned Services,Day Care / Social Activities,Freeways Trust Limited,1139.12, 19-Oct-2020
1609,Revenue,CAHD,North - Community based support,Other Small Contracts,Freeways Trust Limited,864.16, 19-Oct-2020
1610,Revenue,CAHD,North - Community based support,Other Small Contracts,Freeways Trust Limited,549.92, 26-Oct-2020
1611,Revenue,CAHD,Central - Commissioned Services,Permanent Residential,Freeways Trust Limited,3968.00, 20-Oct-2020
1612,Revenue,CAHD,Central - Commissioned Services,Permanent Residential,Freeways Trust Limited,4006.56, 20-Oct-2020
1613,Revenue,CAHD,Central - Commissioned Services,Permanent Residential,Freeways Trust Limited,4462.28, 20-Oct-2020
1614,Revenue,CAHD,Central - Commissioned Services,Permanent Residential,Freeways Trust Limited,5152.32, 20-Oct-2020
1615,Revenue,CAHD,North - Community based support,Permanent Residential,Freeways Trust Limited,4009.36, 20-Oct-2020
1616,Revenue,CAHD,Central - Commissioned Services,Permanent Residential,Freeways Trust Limited,4197.36, 20-Oct-2020
1617,Revenue,CAHD,Central - Commissioned Services,Permanent Residential,Freeways Trust Limited,1240.20, 20-Oct-2020
1618,Revenue,CAHD,Central - Commissioned Services,Permanent Residential,Freeways Trust Limited,808.08, 20-Oct-2020
1619,Revenue,CAHD,Central - Bed Purchasing and Direct Payments,Permanent Residential,Freeways Trust Limited,702.26, 20-Oct-2020
1620,Revenue,CAHD,South - Commissioned Services,Permanent Residential,Freeways Trust Limited,4431.96, 20-Oct-2020
1621,Revenue,CAHD,Central - Commissioned Services,Permanent Residential,Freeways Trust Limited,4006.56, 20-Oct-2020
1622,Revenue,CAHD,Central - Commissioned Services,Permanent Residential,Freeways Trust Limited,4006.56, 20-Oct-2020
1623,Revenue,CAHD,North - Community based support,Permanent Residential,Freeways Trust Limited,4009.36, 20-Oct-2020
1624,Revenue,CAHD,Central - Commissioned Services,Permanent Residential,Freeways Trust Limited,5991.92, 20-Oct-2020
1625,Revenue,CAHD,Covid - ASC - Infection Control,Grants to Voluntary Bodies,Freeways Trust Limited,5574.87, 28-Oct-2020
1626,Revenue,CAHD,North - Community based support,Supported Living,Freeways Trust Ltd,862.44, 20-Oct-2020
1627,Revenue,CAHD,S28A cases,Permanent Residential,Freeways Trust Ltd,3979.92, 20-Oct-2020
1628,Revenue,CAHD,North - Community based support,Permanent Residential,Freeways Trust Ltd,3853.72, 20-Oct-2020
1629,Revenue,CAHD,North - Community based support,Permanent Residential,Freeways Trust Ltd,3380.28, 20-Oct-2020
1630,Revenue,CAHD,North - Community based support,Permanent Residential,Freeways Trust Ltd,3792.12, 20-Oct-2020
1631,Revenue,CAHD,North - Community based support,Permanent Residential,Freeways Trust Ltd,3768.80, 20-Oct-2020
1632,Revenue,CAHD,Section 117 Placements MH Younger,Permanent Residential,Freeways Trust Ltd,3419.16, 20-Oct-2020
1633,Revenue,CAHD,Central - Commissioned Services,Day Care / Social Activities,Frenchay Beckspool Building,1933.52, 20-Oct-2020
1634,Revenue,CAHD,South - Commissioned Services,Day Care / Social Activities,Frenchay Beckspool Building,920.44, 20-Oct-2020
1635,Revenue,CAHD,South - Commissioned Services,Day Care / Social Activities,Frenchay Beckspool Building,652.88, 20-Oct-2020
1636,Revenue,CAHD,North - Community based support,Permanent Nursing,Frenchay Park Nursing Home,3400.00, 20-Oct-2020
1637,Revenue,CAHD,Early Years High Needs Support,Other Private Contractors,Frenchay Pre School Playgroup,1253.55, 27-Oct-2020
1638,Revenue,CAHD,Sexual Health,Other Small Contracts,Frome Valley Medical Centre,1905.17, 29-Oct-2020
1639,Revenue,CAHD,Sexual Health,Other Small Contracts,Frome Valley Medical Centre,1582.95, 29-Oct-2020
1640,Revenue,CAHD,NHS Health Checks,Other Small Contracts,Frome Valley Medical Centre,3779.33, 29-Oct-2020
1641,Revenue,CAHD,Drug and Alcohol Programme,Other Small Contracts,Frome Valley Medical Centre,710.50, 29-Oct-2020
1642,Revenue,CAHD,CSC - Through & Leaving Care Team,Agency Staff (Admin/Support Staff) Pay,Frontline Staffing Ltd,1871.60, 27-Oct-2020
1643,Revenue,CAHD,CSC - Social Work Team - CENTRAL,Agency Staff (Admin/Support Staff) Pay,Frontline Staffing Ltd,1409.10, 06-Oct-2020
1644,Revenue,CAHD,CSC - Social Work Team - CENTRAL,Agency Staff (Admin/Support Staff) Pay,Frontline Staffing Ltd,1735.55, 06-Oct-2020
1645,Revenue,CAHD,CSC - Through & Leaving Care Team,Agency Staff (Admin/Support Staff) Pay,Frontline Staffing Ltd,1087.87, 13-Oct-2020
1646,Revenue,CAHD,CSC - Through & Leaving Care Team,Agency Staff (Admin/Support Staff) Pay,Frontline Staffing Ltd,1450.49, 13-Oct-2020
1647,Revenue,CAHD,CSC - Through & Leaving Care Team,Agency Staff (Admin/Support Staff) Pay,Frontline Staffing Ltd,1883.30, 13-Oct-2020
1648,Revenue,CAHD,CSC - Through & Leaving Care Team,Agency Staff (Admin/Support Staff) Pay,Frontline Staffing Ltd,1871.60, 13-Oct-2020
1649,Revenue,CAHD,CSC - Through & Leaving Care Team,Agency Staff (Admin/Support Staff) Pay,Frontline Staffing Ltd,1883.30, 13-Oct-2020
1650,Revenue,CAHD,CSC - Social Work Team - CENTRAL,Agency Staff (Admin/Support Staff) Pay,Frontline Staffing Ltd,1418.10, 13-Oct-2020
1651,Revenue,CAHD,CSC - Social Work Team - CENTRAL,Agency Staff (Admin/Support Staff) Pay,Frontline Staffing Ltd,1737.27, 13-Oct-2020
1652,Revenue,CAHD,CSC - Through & Leaving Care Team,Agency Staff (Admin/Support Staff) Pay,Frontline Staffing Ltd,1871.60, 27-Oct-2020
1653,Revenue,CAHD,CSC - Social Work Team - CENTRAL,Agency Staff (Admin/Support Staff) Pay,Frontline Staffing Ltd,1403.70, 19-Oct-2020
1654,Revenue,CAHD,CSC - Social Work Team - CENTRAL,Agency Staff (Admin/Support Staff) Pay,Frontline Staffing Ltd,1811.05, 19-Oct-2020
1655,Revenue,CAHD,CSC - Through & Leaving Care Team,Agency Staff (Admin/Support Staff) Pay,Frontline Staffing Ltd,1883.30, 27-Oct-2020
1656,Revenue,CAHD,CSC - Social Work Team - CENTRAL,Agency Staff (Admin/Support Staff) Pay,Frontline Staffing Ltd,1423.75, 27-Oct-2020
1657,Revenue,CAHD,CSC - Social Work Team - CENTRAL,Agency Staff (Admin/Support Staff) Pay,Frontline Staffing Ltd,1805.29, 27-Oct-2020
1658,Revenue,CAHD,CSC - Through & Leaving Care Team,Agency Staff (Admin/Support Staff) Pay,Frontline Staffing Ltd,1883.30, 28-Oct-2020
1659,Revenue,CAHD,CSC - Agency Fostering,Foster Parent Allowances,Fusion Fostering Ltd,3613.71, 26-Oct-2020
1660,Revenue,CAHD,CSC - Asylum Seekers - Unaccompanied,Foster Parent Allowances,Fusion Fostering Ltd,3764.29, 26-Oct-2020
1661,Revenue,CAHD,CSC - Agency Fostering,Foster Parent Allowances,Fusion Fostering Ltd,4209.05, 26-Oct-2020
1662,Revenue,CAHD,CSC - Asylum Seekers - Unaccompanied,Foster Parent Allowances,Fusion Fostering Ltd,3405.57, 26-Oct-2020
1663,Revenue,CAHD,North - Community based support,Supported Living,Gladstone House,3237.64, 20-Oct-2020
1664,Revenue,CAHD,18-25 Year Olds,Supported Living,Gladstone House,3237.64, 20-Oct-2020
1665,Revenue,CAHD,South - Commissioned Services,Permanent Residential,Gladstone House,5999.84, 20-Oct-2020
1666,Revenue,CAHD,MH Purchasing - Younger,Permanent Residential,Gladstone House,3135.90, 20-Oct-2020
1667,Revenue,CAHD,Jointly Funded H&SC Packages,Permanent Residential,Gladstone House,783.98, 20-Oct-2020
1668,Revenue,CAHD,North - Community based support,Permanent Residential,Glan Y Felin,6803.40, 20-Oct-2020
1669,Revenue,CAHD,South - Commissioned Services,Permanent Residential,Glasallt Fawr,5550.16, 20-Oct-2020
1670,Revenue,CAHD,North - Community based support,Permanent Nursing,Glebe House Nursing Home,3737.44, 20-Oct-2020
1671,Revenue,CAHD,South Glos Users in South Glos Homes,Permanent Nursing,Glebe House Nursing Home,735.68, 20-Oct-2020
1672,Revenue,CAHD,North - Community based support,Permanent Nursing,Glebe House Nursing Home,4052.60, 20-Oct-2020
1673,Revenue,CAHD,South Glos Users in South Glos Homes,Permanent Nursing,Glebe House Nursing Home,735.68, 20-Oct-2020
1674,Revenue,CAHD,South Glos Users in South Glos Homes,Permanent Nursing,Glebe House Nursing Home,735.68, 20-Oct-2020
1675,Revenue,CAHD,South Glos Users in South Glos Homes,Permanent Nursing,Glebe House Nursing Home,735.68, 20-Oct-2020
1676,Revenue,CAHD,South Glos Users in South Glos Homes,Permanent Nursing,Glebe House Nursing Home,735.68, 20-Oct-2020
1677,Revenue,CAHD,North - Community based support,Permanent Nursing,Glebe House Nursing Home,3998.40, 20-Oct-2020
1678,Revenue,CAHD,South Glos Users in South Glos Homes,Permanent Nursing,Glebe House Nursing Home,735.68, 20-Oct-2020
1679,Revenue,CAHD,South Glos Users in South Glos Homes,Permanent Nursing,Glebe House Nursing Home,735.68, 20-Oct-2020
1680,Revenue,CAHD,North - Community based support,Permanent Residential,Glebe House Nursing Home,3910.52, 20-Oct-2020
1681,Revenue,CAHD,South Glos Users in South Glos Homes,Permanent Nursing,Glebe House Nursing Home,735.68, 20-Oct-2020
1682,Revenue,CAHD,South Glos Users in South Glos Homes,Permanent Nursing,Glebe House Nursing Home,735.68, 20-Oct-2020
1683,Revenue,CAHD,South Glos Users in South Glos Homes,Permanent Nursing,Glebe House Nursing Home,735.68, 20-Oct-2020
1684,Revenue,CAHD,North - Community based support,Permanent Nursing,Glebe House Nursing Home,4048.60, 20-Oct-2020
1685,Revenue,CAHD,South Glos Users in South Glos Homes,Permanent Nursing,Glebe House Nursing Home,735.68, 20-Oct-2020
1686,Revenue,CAHD,Central - Commissioned Services,Permanent Residential,Glebe House Nursing Home,3980.00, 20-Oct-2020
1687,Revenue,CAHD,South Glos Users in South Glos Homes,Permanent Nursing,Glebe House Nursing Home,735.68, 20-Oct-2020
1688,Revenue,CAHD,Central - Commissioned Services,Permanent Nursing,Glebe House Nursing Home,4120.00, 20-Oct-2020
1689,Revenue,CAHD,North - Community based support,Permanent Nursing,Glebe House Nursing Home,4080.00, 20-Oct-2020
1690,Revenue,CAHD,South Glos Users in South Glos Homes,Permanent Nursing,Glebe House Nursing Home,735.68, 20-Oct-2020
1691,Revenue,CAHD,South Glos Users in South Glos Homes,Permanent Nursing,Glebe House Nursing Home,735.68, 20-Oct-2020
1692,Revenue,CAHD,North - Community based support,Permanent Nursing,Glebe House Nursing Home,4039.36, 20-Oct-2020
1693,Revenue,CAHD,South Glos Users in South Glos Homes,Permanent Nursing,Glebe House Nursing Home,735.68, 20-Oct-2020
1694,Revenue,CAHD,North - Community based support,Permanent Nursing,Glebe House Nursing Home,4080.00, 20-Oct-2020
1695,Revenue,CAHD,South Glos Users in South Glos Homes,Permanent Nursing,Glebe House Nursing Home,735.68, 20-Oct-2020
1696,Revenue,CAHD,South Glos Users in South Glos Homes,Permanent Nursing,Glebe House Nursing Home,1234.89, 20-Oct-2020
1697,Revenue,CAHD,South Glos Users in South Glos Homes,Permanent Nursing,Glebe House Nursing Home,735.68, 20-Oct-2020
1698,Revenue,CAHD,North - Community based support,Permanent Residential,Glebe House Nursing Home,5051.24, 20-Oct-2020
1699,Revenue,CAHD,South Glos Users in South Glos Homes,Permanent Nursing,Glebe House Nursing Home,735.68, 20-Oct-2020
1700,Revenue,CAHD,South Glos Users in South Glos Homes,Permanent Nursing,Glebe House Nursing Home,735.68, 20-Oct-2020
1701,Revenue,CAHD,South Glos Users in South Glos Homes,Permanent Nursing,Glebe House Nursing Home,735.68, 20-Oct-2020
1702,Revenue,CAHD,South Glos Users in South Glos Homes,Permanent Nursing,Glebe House Nursing Home,735.68, 20-Oct-2020
1703,Revenue,CAHD,South Glos Users in South Glos Homes,Permanent Nursing,Glebe House Nursing Home,735.68, 20-Oct-2020
1704,Revenue,CAHD,North - Community based support,Permanent Nursing,Glebe House Nursing Home,3572.12, 20-Oct-2020
1705,Revenue,CAHD,South Glos Users in South Glos Homes,Permanent Nursing,Glebe House Nursing Home,735.68, 20-Oct-2020
1706,Revenue,CAHD,South Glos Users in South Glos Homes,Permanent Nursing,Glebe House Nursing Home,735.68, 20-Oct-2020
1707,Revenue,CAHD,South Glos Users in South Glos Homes,Permanent Nursing,Glebe House Nursing Home,656.86, 20-Oct-2020
1708,Revenue,CAHD,South Glos Users in South Glos Homes,Permanent Nursing,Glebe House Nursing Home,735.68, 20-Oct-2020
1709,Revenue,CAHD,Central - Commissioned Services,Permanent Nursing,Glenview Care Home,3224.00, 20-Oct-2020
1710,Revenue,CAHD,South - Commissioned Services,Permanent Nursing,Glenview Care Home,3220.00, 20-Oct-2020
1711,Revenue,CAHD,North - Community based support,Permanent Nursing,Glenview Care Home,3600.00, 20-Oct-2020
1712,Revenue,CAHD,North - Community based support,Respite Planned - Nursing,Glenview Care Home,785.71, 20-Oct-2020
1713,Revenue,CAHD,North - Community based support,Permanent Nursing,Glenview Care Home,3224.00, 20-Oct-2020
1714,Revenue,CAHD,CSC - Fostering Carer Support,Advertising - General,Global Radio Services Ltd,857.64, 13-Oct-2020
1715,Revenue,CAHD,Childrens - Safeguarding Board,Other Supplies & Services,Gloucestershire County Council,1154.84, 16-Oct-2020
1716,Revenue,CAHD,South - Commissioned Services,Permanent Residential,Gordena Care Home,4018.92, 20-Oct-2020
1717,Revenue,CAHD,South - Commissioned Services,Permanent Residential,Gordena Care Home,2790.84, 20-Oct-2020
1718,Revenue,CAHD,South - Commissioned Services,Permanent Residential,Gordena Care Home,3973.32, 20-Oct-2020
1719,Revenue,CAHD,South - Commissioned Services,Permanent Residential,Gordena Care Home,3985.44, 20-Oct-2020
1720,Revenue,CAHD,18-25 Year Olds,Supported Living,Granville House,1940.60, 20-Oct-2020
1721,Revenue,CAHD,South - Commissioned Services,Supported Living,Granville House,1941.20, 20-Oct-2020
1722,Revenue,CAHD,South - Commissioned Services,Supported Living,Granville House,1940.32, 20-Oct-2020
1723,Revenue,CAHD,North - S117,Permanent Nursing,Grasmere Rest Home,14250.00, 20-Oct-2020
1724,Revenue,CAHD,CSC - Care Leavers Independent Living,Independent Living,Greenfields Adolecent Development Limited,8303.57, 02-Oct-2020
1725,Revenue,CAHD,CSC - Care Leavers Independent Living,Adults - Family Support,Greenfields Adolecent Development Limited,5978.57, 02-Oct-2020
1726,Revenue,CAHD,CSC - Residential Placements,Permanent Residential,Greenfields Adolecent Development Limited,25671.43, 30-Oct-2020
1727,Revenue,CAHD,CSC - Care Leavers Independent Living,Adults - Family Support,Greenfields Adolecent Development Limited,7285.71, 30-Oct-2020
1728,Revenue,CAHD,CSC - Residential Placements,Permanent Residential,Greenfields Adolecent Development Limited,7425.00, 30-Oct-2020
1729,Revenue,CAHD,Early Years Inclusion Fund,Other Public Bodies,Greenshaw Learning Trust T/A Woodlands Primary,3600.00, 01-Oct-2020
1730,Revenue,CAHD,Statemented Support Academies,Other Public Bodies,Greenshaw Learning Trust T/A Woodlands Primary,774.50, 28-Oct-2020
1731,Revenue,CAHD,Academy Resource Base Funding,Other Public Bodies,Greenshaw Learning Trust T/A Woodlands Primary,648.69, 28-Oct-2020
1732,Revenue,CAHD,Academy Resource Base Funding,Other Public Bodies,Greenshaw Learning Trust T/A Woodlands Primary,1175.88, 28-Oct-2020
1733,Revenue,CAHD,Statemented Support Academies,Other Public Bodies,Greenshaw Learning Trust T/A Yate Academy,554.13, 28-Oct-2020
1734,Revenue,CAHD,Statemented Support Academies,Other Public Bodies,Greenshaw Learning Trust T/A Yate Academy,589.50, 28-Oct-2020
1735,Revenue,CAHD,Statemented Support Academies,Other Public Bodies,Greenshaw Learning Trust T/A Yate Academy,1072.89, 28-Oct-2020
1736,Revenue,CAHD,Statemented Support Academies,Other Public Bodies,Greenshaw Learning Trust T/A Yate Academy,707.40, 28-Oct-2020
1737,Revenue,CAHD,Statemented Support Academies,Other Public Bodies,Greenshaw Learning Trust T/A Yate Academy,1320.48, 28-Oct-2020
1738,Revenue,CAHD,Statemented Support Academies,Other Public Bodies,Greenshaw Learning Trust T/A Yate Academy,1320.48, 28-Oct-2020
1739,Revenue,CAHD,Statemented Support Academies,Other Public Bodies,Greenshaw Learning Trust T/A Yate Academy,1072.89, 28-Oct-2020
1740,Revenue,CAHD,Statemented Support Academies,Other Public Bodies,Greenshaw Learning Trust T/A Yate Academy,837.09, 28-Oct-2020
1741,Revenue,CAHD,Statemented Support Academies,Other Public Bodies,Greenshaw Learning Trust T/A Yate Academy,801.72, 28-Oct-2020
1742,Revenue,CAHD,Statemented Support Academies,Other Public Bodies,Greenshaw Learning Trust T/A Yate Academy,742.77, 28-Oct-2020
1743,Revenue,CAHD,Statemented Support Academies,Other Public Bodies,Greenshaw Learning Trust T/A Yate Academy,778.14, 28-Oct-2020
1744,Revenue,CAHD,Statemented Support Academies,Other Public Bodies,Greenshaw Learning Trust T/A Yate Academy,541.58, 28-Oct-2020
1745,Revenue,CAHD,Statemented Support Academies,Other Public Bodies,Greenshaw Learning Trust T/A Yate Academy,601.29, 28-Oct-2020
1746,Revenue,CAHD,Statemented Support Academies,Other Public Bodies,Greenshaw Learning Trust T/A Yate Academy,860.67, 28-Oct-2020
1747,Revenue,CAHD,Statemented Support Academies,Other Public Bodies,Greenshaw Learning Trust T/A Yate Academy,624.87, 28-Oct-2020
1748,Revenue,CAHD,Statemented Support Academies,Other Public Bodies,Greenshaw Learning Trust T/A Yate Academy,624.87, 28-Oct-2020
1749,Revenue,CAHD,Academy Resource Base Funding,Other Public Bodies,Greenshaw Learning Trust T/A Yate Academy,1540.84, 28-Oct-2020
1750,Revenue,CAHD,Academy Resource Base Funding,Other Public Bodies,Greenshaw Learning Trust T/A Yate Academy,1013.75, 28-Oct-2020
1751,Revenue,CAHD,Academy Resource Base Funding,Other Public Bodies,Greenshaw Learning Trust T/A Yate Academy,1540.84, 28-Oct-2020
1752,Revenue,CAHD,South - Commissioned Services,Permanent Residential,Gwendoline House,2522.88, 20-Oct-2020
1753,Revenue,CAHD,South - Commissioned Services,Permanent Residential,Gwendoline House,2652.00, 20-Oct-2020
1754,Revenue,CAHD,North - Community based support,Other Small Contracts,H F T,953.25, 20-Oct-2020
1755,Revenue,CAHD,North - Community based support,Other Small Contracts,H F T,984.25, 20-Oct-2020
1756,Revenue,CAHD,North - Community based support,Other Small Contracts,H F T,744.00, 20-Oct-2020
1757,Revenue,CAHD,North - Community based support,Other Small Contracts,H F T,635.50, 19-Oct-2020
1758,Revenue,CAHD,North - Community based support,Other Small Contracts,H F T,728.50, 20-Oct-2020
1759,Revenue,CAHD,North - Community based support,Other Small Contracts,H F T,511.50, 19-Oct-2020
1760,Revenue,CAHD,North - Community based support,Other Small Contracts,H F T,744.00, 20-Oct-2020
1761,Revenue,CAHD,North - Community based support,Other Small Contracts,H F T,744.00, 20-Oct-2020
1762,Revenue,CAHD,North - Community based support,Other Small Contracts,H F T,744.00, 19-Oct-2020
1763,Revenue,CAHD,North - Community based support,Other Small Contracts,H F T,744.00, 19-Oct-2020
1764,Revenue,CAHD,North - Community based support,Other Small Contracts,H F T,744.00, 19-Oct-2020
1765,Revenue,CAHD,North - Community based support,Other Small Contracts,H F T,744.00, 21-Oct-2020
1766,Revenue,CAHD,North - Community based support,Other Small Contracts,H F T,744.00, 19-Oct-2020
1767,Revenue,CAHD,North - Community based support,Other Small Contracts,H F T,777.12, 19-Oct-2020
1768,Revenue,CAHD,North - Community based support,Other Small Contracts,H F T,635.50, 20-Oct-2020
1769,Revenue,CAHD,Supporting People Programme,Grants to Voluntary Bodies,Habinteg Housing Association,694.00, 01-Oct-2020
1770,Revenue,CAHD,Supporting People Programme,Grants to Voluntary Bodies,Habinteg Housing Association,694.00, 30-Oct-2020
1771,Revenue,CAHD,Social Lettings Agency,Rent,Individual,577.72, 27-Oct-2020
1772,Revenue,CAHD,Social Lettings Agency,Fees - General,Individual,13.13, 27-Oct-2020
1773,Revenue,CAHD,CSC - Through & Leaving Care Team,Agency Staff (Admin/Support Staff) Pay,Hampton`s Resourcing,3111.90, 13-Oct-2020
1774,Revenue,CAHD,CSC - Through & Leaving Care Team,Agency Staff (Admin/Support Staff) Pay,Hampton`s Resourcing,4893.35, 13-Oct-2020
1775,Revenue,CAHD,CSC - Through & Leaving Care Team,Agency Staff (Admin/Support Staff) Pay,Hampton`s Resourcing,1668.70, 20-Oct-2020
1776,Revenue,CAHD,CSC - Through & Leaving Care Team,Agency Staff (Admin/Support Staff) Pay,Hampton`s Resourcing,3596.73, 20-Oct-2020
1777,Revenue,CAHD,CSC - Through & Leaving Care Team,Agency Staff (Admin/Support Staff) Pay,Hampton`s Resourcing,1770.18, 27-Oct-2020
1778,Revenue,CAHD,Leadership and Business Support,Computer Equipment - Purchase,Hands Free Computing Ltd,542.00, 09-Oct-2020
1779,Revenue,CAHD,Leadership and Business Support,Computer Equipment - Purchase,Hands Free Computing Ltd,619.00, 12-Oct-2020
1780,Revenue,CAHD,Sexual Health,Other Small Contracts,Hanham Health,2790.67, 29-Oct-2020
1781,Revenue,CAHD,Sexual Health,Other Small Contracts,Hanham Health,1752.27, 29-Oct-2020
1782,Revenue,CAHD,NHS Health Checks,Other Small Contracts,Hanham Health,4117.00, 29-Oct-2020
1783,Revenue,CAHD,Drug and Alcohol Programme,Other Small Contracts,Hanham Health,2097.67, 29-Oct-2020
1784,Revenue,CAHD,Early Years Inclusion Fund,Other Public Bodies,Hanham Toddlers Pre School,2000.00, 21-Oct-2020
1785,Revenue,CAHD,Early Years Inclusion Fund,Other Public Bodies,Happy Days Day Nursery,3600.00, 21-Oct-2020
1786,Revenue,CAHD,CSC - Legal Fees,Legal Fees,Individual,700.00, 26-Oct-2020
1787,Revenue,CAHD,North - Community based support,Permanent Nursing,Head Office,4554.08, 20-Oct-2020
1788,Revenue,CAHD,CSC - Residential Placements,Permanent Residential,Headway Adolescent Resources Limited,1457.00, 09-Oct-2020
1789,Revenue,CAHD,CSC - Residential Placements,Permanent Residential,Headway Adolescent Resources Limited,2171.00, 06-Oct-2020
1790,Revenue,CAHD,CSC - Residential Placements,Permanent Residential,Headway Adolescent Resources Limited,15200.00, 14-Oct-2020
1791,Revenue,CAHD,Central - Commissioned Services,Day Care / Social Activities,Headway Bristol,270.72, 05-Oct-2020
1792,Revenue,CAHD,Central - Commissioned Services,Other Small Contracts,Headway Bristol,338.40, 05-Oct-2020
1793,Revenue,CAHD,South - Commissioned Services,Day Care / Social Activities,Headway Bristol,135.36, 05-Oct-2020
1794,Revenue,CAHD,South - Commissioned Services,Other Small Contracts,Headway Bristol,135.36, 05-Oct-2020
1795,Revenue,CAHD,Younger MH non-res purchasing,Day Care / Social Activities,Headway Bristol,45.12, 05-Oct-2020
1796,Revenue,CAHD,Central - Commissioned Services,Day Care / Social Activities,Headway Bristol,315.84, 12-Oct-2020
1797,Revenue,CAHD,Central - Commissioned Services,Other Small Contracts,Headway Bristol,541.44, 12-Oct-2020
1798,Revenue,CAHD,South - Commissioned Services,Day Care / Social Activities,Headway Bristol,135.36, 12-Oct-2020
1799,Revenue,CAHD,South - Commissioned Services,Other Small Contracts,Headway Bristol,203.04, 12-Oct-2020
1800,Revenue,CAHD,Younger MH non-res purchasing,Day Care / Social Activities,Headway Bristol,45.12, 12-Oct-2020
1801,Revenue,CAHD,Central - Commissioned Services,Day Care / Social Activities,Headway Bristol,428.64, 16-Oct-2020
1802,Revenue,CAHD,Central - Commissioned Services,Other Small Contracts,Headway Bristol,406.08, 16-Oct-2020
1803,Revenue,CAHD,South - Commissioned Services,Day Care / Social Activities,Headway Bristol,135.36, 16-Oct-2020
1804,Revenue,CAHD,South - Commissioned Services,Other Small Contracts,Headway Bristol,203.04, 16-Oct-2020
